Workbook

Sheet 操作方法
A1: 土寄せ判断支援システム（2023年版）の使用法 | G1: 京都府南丹農業改良普及センター
A3: システムの概要
A4: このシステムは、黒大豆（新丹波黒）の種まきなどの作業日や、雑草発生状況を入力することにより、その後の作業適期を表示します。推奨する作業体系は、直播、初期除草剤散布、土寄せ２回、茎葉処理除草剤散布、摘心です。 表示される「評価・コメント」を参考にしたり、「観察記録」を入力することで生育・収量の分析にも活用でます。 操作方法 画面左側の水色の欄に各作業日を入力し、その横に表示される作業適期を参考に、以後の作業計画を立てます。 入力された作業日に対して、評価・コメントが表示されるとともに、画面右の観察記録を入力すれば、今後の分析・反省に活用できます。
A31: １ 「判断日」（最上段の欄）は、判断する時点の日付を毎回入力（実際の日でなくてもよい、シミュレーション可）。「播種日」は必ず入力 ２ 日付は半角文字で「6/1」などと入力すれば、「6月1日」と表示 ３ 参照アメダス地点は、園部、美山、須知、本庄、三和から最寄り地点を▼リストで選択 ４ 判断日までに実施した作業日を、各作業の「実施月日」欄に入力。実施していない作業は入力しなくて良い。上書き入力すれば、何度でも適期を計算。 ５ 下欄の「追加入力」は、「判断日」が下記の時期になれば入力する（入力欄が水色に変わる）。右側に写真が表示されるので参考に▼リストで選択 ・播種後草量：播種後15日以降 ・株間草大 ：1回目土寄せの５日後以降 または、１回目未実施の場合、表示した２回目土寄せ適期始め以降 ・開花前茎長：７月１日以降 ６ 計算結果は印刷して残しても良いが、複数ほ場の結果をそれぞれ別の名前（ほ場名や作型）でファイル保存すれば、次回続きから入力できる（判断日はその都度日付を更新して入力）
A60: ７ 「評価・コメント」欄は、入力内容により今後の注意点や評価を表示 ８ 「観察記録」を入力すれば、生育・収量の分析や栽培の反省に活用できる（入力しなくても動作に影響なし）。 発芽揃い、開花始め、着莢始めは日付を入力。除草剤、土寄せの土壌条件は▼リストで選択。
A67: ９ 表左上の「メニューに戻る」をクリックすると終了して「黒大豆メニュー」に戻る ここでファイル保存でき、名前を付けて保存も可能

Sheet 入力表
B1: 2025 | C1: 年 | D1: 判断日 | E1: 2025-06-01 | F1: 6月1日は | G1: 6/1 と入力（過去年の入力は2024/6/1などと入力） | K1: 京都府南丹農業改良普及センター | P1: 250512
B2: 土寄せ判断システム | D2: 参照アメダス | E2: =VLOOKUP(C36,C37:D41,2) -> 園部 | F2: 近くのアメダスを▼で園部、美山、須知、本庄、三和 から選んでください
B3: 作業 | C3: 実施月日 | D3: おすすめする作業適期 | G3: 作業実施状況に対する 評 価 ・ コ メ ン ト | I3: 観察記録(月日又は土壌条件▼) | L3: 観察内容（自由記述）
B4: 播種 | C4: 2025-06-01 | D4: =IF(OR(判断日入力="",アメダス地点="",播種日=""),"判断日(最上段),参照アメダス, 播種日を初めに全て入力しください","") ->  | I4: 発芽揃い
B5: 初期除草剤 | D5: =播種日 -> 2025-06-01 | E5: ～ | F5: =播種日+3 -> 2025-06-04 | G5: =コメント!E5 ->  | I5: 初期除草剤処理時土壌条件 | J5: =VLOOKUP(E42,C37:E41,3) -> 0
B6: 定稙 | D6: =播種日+8 -> 2025-06-09 | E6: ～ | F6: =播種日+14 -> 2025-06-15 | G6: =コメント!E6 ->  | I6: 定稙時の 土壌条件 | J6: =VLOOKUP($E43,$C$37:$E$41,3) -> 0
B7: 土寄① | D7: =土寄①始修正 -> 2025-06-21 | E7: =IF($D$7="土寄困難","","～") -> ～ | F7: =土寄①終修正 -> 2025-07-01 | G7: =コメント!E7 ->  | I7: 土寄①の 土壌条件 | J7: =VLOOKUP($E44,$C$37:$E$41,3) -> 0
D8: =IF($D$7="土寄困難","","適期内作業可能確率") -> 適期内作業可能確率 | F8: =IF(土寄①始修正="土寄困難","",土寄①確率) -> 0.4818181818
B9: 土寄② | D9: =IF(土寄①始修正="土寄困難","",土寄②始修正) -> 2025-07-06 | E9: =IF($D$7="土寄困難","","～") -> ～ | F9: =IF(土寄①始修正="土寄困難","",土寄期限) -> 2025-07-16 | G9: =コメント!E8 ->  | I9: 土寄②の 土壌条件 | J9: =VLOOKUP($E45,$C$37:$E$41,3) -> 0
D10: =IF($D$7="土寄困難","","適期内作業可能確率") -> 適期内作業可能確率 | F10: =IF(土寄①始修正="土寄困難","",土寄②確率) -> 0.4181818182
B11: 茎葉除草剤 | D11: =茎葉始 -> 2025-07-13 | E11: ～ | F11: =茎葉終 -> 2025-07-23 | G11: =コメント!E9 ->  | I11: 開花始め
D12: =IF($D$7="土寄困難","",IF(茎葉剤時期="土寄せ前","土寄せ前 5～7日に処理","土寄せ7日～10日後に処理")) -> 土寄せ7日～10日後に処理
B13: 摘心 | D13: =IF(摘心実施="主茎長45cmで摘心",摘心始修正,"") ->  | E13: =IF(D13="","","～") ->  | F13: =IF(摘心実施="主茎長45cmで摘心",摘心終,"") ->  | G13: =コメント!E10 ->  | I13: 着莢始め (5mm以上)
D14: =IF(摘心判断時期>判断日入力,IF(摘心検討="摘心実施を考える",摘心検討,"7月1日以降の主茎長で要否を判断"),摘心実施) -> 7月1日以降の主茎長で要否を判断
B15: 追加入力 | C15: 水色セルに ▼リストで選択してください | G15: =写真画像!D1 -> 消去 | H15: =写真画像!E1 -> 消去
B16: 播種後草量 | C16: 3 | D16: 草多：雑草多 草少：雑草少 | E16: 播種2週間後、草目立てば 土寄せ①は20～25日後 | G16: =参照画像1 -> 0 | H16: =参照画像2 -> 0 | J16: 観察記録の土壌条件は▼リストで選択
B18: 株間草大 | C18: 3 | D18: 草大：雑草大 草小：雑草小 | E18: 土寄せ①後 株間残草大なら 茎葉剤土寄せ②前処理 | J18: 土壌条件： 乾燥 適湿 やや過湿 不良
B20: 開花前茎長 | C20: 3 | D20: 主茎：超50cm 主茎：短50cm | E20: 開花までに主茎長50cm 超えるなら、45cmで摘心
B23: 土寄せ作業可能かどうかの 判断条件
B25: 作業できない降雨量mm
B26: 当日 | C26: 2 | D26: mm
B27: 翌日 | C27: 10 | D27: mm
B28: ２日後 | C28: 30 | D28: mm
C29: ↑
C30: 降雨量条件は変更できます
C34: ↓追加入力のメッセージ表示
C35: =IF(AND(判断日入力>=ルール!C40,$C$16=3)=TRUE,1,"入力済み") -> 入力済み | D35: =IF(OR(AND(判断日入力>=播種後20日,$C$16=""),AND(株間草入力="株間草入力",$C$18=3),AND(開花前茎長入力="開花前茎長を入力",$C$20=3)),"赤字","見えなくする") -> 見えなくする
C36: 1
C37: 1 | D37: 園部 | E37: 乾燥 | F37: 草多
C38: 2 | D38: 美山 | E38: 適湿 | F38: 草少
C39: 3 | D39: 須知 | E39: やや過湿
C40: 4 | D40: 本庄 | E40: 過湿 | F40: 草大
C41: 5 | D41: 三和 | F41: 草小
E42: 5
E43: 5 | F43: 超50cm
E44: 5 | F44: 短50cm
E45: 5

Sheet 写真画像 (hidden)
B1: 写真画像データ | C1: 写真表示 | D1: =IF(播種後草入力="播種後草入力","草多",IF(株間草入力="株間草入力","草大",IF(摘心実施="開花前茎長を入力","主茎長超50cm","消去"))) -> 消去 | E1: =IF(播種後草入力="播種後草入力","草少",IF(株間草入力="株間草入力","草小",IF(摘心実施="開花前茎長を入力","主茎長短50m","消去"))) -> 消去
B3: 草多 | C3: 草大 | D3: 主茎長超50cm | F3: =IF(AND(播種後草量="",播種後草入力="播種後草入力"),"草多","") -> 
A4: 左
B5: 草少 | C5: 草小 | D5: 主茎長短50m
A6: 右
B7: 消去
B10: =IF(AND(播種後草量="",播種後草入力="播種後草入力"),"草少","") ->  | C10: 草小

Sheet ルール (hidden)
A1: 黒大豆 土寄せ判断システム知識ベース（判断ルール）
C3: 数式 | D3: 内容（名前） | E3: 出力値
B4: 判断日の設定（未入力時のガード） | C4: =IF(判断日入力="",TODAY(),判断日入力) -> 2025-06-01 | D4: 判断日 | E4: =C4 -> 2025-06-01
A6: 定稙時期
B7: 定稙遅れの植え傷み（15日以上で2日、18日以上で3日） | C7: =IF(定稙日<播種日+15,0,IF(定稙日<播種日+18,2,3)) -> 0 | D7: 植傷み | E7: =C7 -> 0
A10: 土寄せ時期
A11: 1100 | B11: １回目 直播後20～30日後に実施（始め） | C11: =播種日+植傷み+20 -> 2025-06-21 | D11: 土寄①始の原則 | E11: =C11 -> 2025-06-21
A12: 1110 | B12: １回目 直播後20～30日後に実施（終わり） | C12: =播種日+植傷み+30 -> 2025-07-01 | D12: 土寄①終の原則 | E12: =C12 -> 2025-07-01
A13: 1115 | B13: 土寄①始原則が>7/26なら7/26(播種15日以内なら土寄困難） | C13: =IF(C11>土寄最遅,IF(土寄最遅-15<播種日+植傷み,"土寄困難",土寄最遅),C11) -> 2025-06-21 | D13: 土寄①始・前段階 | E13: =C13 -> 2025-06-21
A14: 1117 | B14: 土寄①始原則が>=7/26なら7/31(土寄困難なら""） | C14: =IF(C11>土寄最遅,IF(土寄①始="土寄困難","",土寄最遅+5),IF(C12>土寄最遅+5,土寄最遅+5,C12)) -> 2025-07-01 | D14: 土寄①終・前段階 | E14: =C14 -> 2025-07-01
B15: 移植の場合土寄①始は移植７日後以降 | C15: =IF(定稙日="",C13,MAX(C13,定稙日+7)) -> 2025-06-21 | D15: 移植の土寄①始 | E15: =C15 -> 2025-06-21
B16: 移植の場合土寄①終は移植７日後以降 | C16: =IF(定稙日="",C14,MAX(C14,定稙日+17)) -> 2025-07-01 | D16: 移植の土寄①終 | E16: 2025-07-01
A17: 1200 | B17: ２回目 １回目未なら 15日後に実施（始め） | C17: =IF(土寄①="",IF(土寄①始修正="土寄困難","",土寄①始+15),"①入力済") -> 2025-07-06 | D17: ①未実施の土寄②始
A18: 1210 | B18: ２回目 １回目後12日後に実施（始め） | C18: =IF(土寄①<>"",土寄①+12,"①未実施") -> ①未実施 | D18: ①実施済みの土寄②始
A19: 1220 | B19: ２回目 １回目未なら 15日後に実施（終わり） | C19: =IF(土寄①="",IF(土寄①始="土寄困難","",土寄①終+15),"①入力済") -> 2025-07-16 | D19: ①未実施の土寄②終
A20: 1230 | B20: ２回目 １回目後20日後に実施（終わり） | C20: =IF(土寄①<>"",土寄①+20,"①未実施") -> ①未実施 | D20: ①実施済みの土寄②終
A21: 1240 | B21: ２回目 １回目遅れなら、 適期12日後と①7日後の遅い方（始め） | C21: =IF(土寄①>土寄①終,MAX(土寄①始+12,土寄①+7),"遅れ処理なし") -> 遅れ処理なし | D21: ①遅れの土寄②始
A22: 1250 | B22: ２回目 １回目遅れなら、 適期20日後と①10日後の遅い方（終わり） | C22: =IF(土寄①>土寄①終,MAX(土寄①終+20,土寄①+10),"遅れ処理なし") -> 遅れ処理なし | D22: ①遅れの土寄②終
A23: 1260 | B23: ２回目 土寄せ適期始め | C23: =MAX(C17,C18,C21) -> 2025-07-06 | D23: 土寄②始 | E23: =C23 -> 2025-07-06
A24: 1270 | B24: ２回目 土寄せ適期終わり | C24: =MAX(C19,C20,C22) -> 2025-07-16 | D24: 土寄②終 | E24: =C24 -> 2025-07-16
A25: 1280 | B25: 直播後50日後までに終える | C25: =播種日+50 -> 2025-07-21 | D25: 播種50日後 | E25: =C25 -> 2025-07-21 | G25: =C26 -> 2025-07-26
A26: 1290 | B26: 最遅日 ７月２６日（開花前） | C26: =DATEVALUE(TEXT(YEAR(判断日),"####")&"/7/26") -> 2025-07-26 | D26: 土寄最遅 | E26: =C26 -> 2025-07-26 | G26: =播種50日後 -> 2025-07-21
A27: 1300 | B27: 土寄②期限 播種後50日以内、7月26日まで（開花前）に終える | C27: =MIN(土寄最遅,播種50日後,土寄②終) -> 2025-07-16 | D27: 土寄期限 | E27: =C27 -> 2025-07-16
A28: 13
A29: 降雨とトラクタ作業 | G29: =地点名 -> アメダス園部
A30: 2100 | B30: 参照するアメダス地点 | C30: =アメダス地点 -> 園部 | D30: ［入力表］の選択地点 | F30: 地点名 | G30: ="アメダス"&C30 -> アメダス園部
A31: 2110 | B31: 当日 作業できない降雨量mm | C31: =入力表!C26 -> 2 | D31: ［入力表］下の降雨量判断条件（当日）
A32: 2120 | B32: 翌日 作業できない降雨量mm | C32: =入力表!C27 -> 10 | D32: ［入力表］下の降雨量判断条件（翌日）
A33: 2130 | B33: ２日後 作業できない降雨量mm | C33: =入力表!C28 -> 30 | D33: ［入力表］下の降雨量判断条件（２日後）
A34: 2140 | B34: （土寄① 適期内の作業可能な日数計算） | C34: 土寄① | D34: 適期日数 | E34: =INDIRECT(地点名&"!O111") -> 11 | F34: 可能日数 | G34: =INDIRECT(地点名&"!P111") -> 5.3 | H34: 可能確率 | I34: =INDIRECT(地点名&"!D115") -> 0.4818181818
A35: 2150 | B35: （土寄② 適期内の作業可能な日数計算） | C35: 土寄② | D35: 適期日数 | E35: =INDIRECT(地点名&"!O112") -> 11 | F35: 可能日数 | G35: =INDIRECT(地点名&"!P112") -> 4.6 | H35: 可能確率 | I35: =INDIRECT(地点名&"!E115") -> 0.4181818182
A36: 2160 | B36: （除草剤 適期内の作業可能な日数計算） | C36: 除草剤 | D36: 適期日数 | E36: =INDIRECT(地点名&"!O113") -> 11 | F36: 可能日数 | G36: =INDIRECT(地点名&"!P113") -> 6.6 | H36: 可能確率 | I36: =INDIRECT(地点名&"!F115") -> 0.6
A37: 2170 | B37: （摘心 適期内の作業可能な日数計算） | C37: 摘心 | D37: 適期日数 | E37: =アメダス園部!O114 ->  | F37: 可能日数 | G37: =アメダス園部!P114 ->  | H37: 可能確率 | I37: =アメダス園部!G115 -> 
A38: 8
A39: 除草剤と土寄せ | C39: 播種2週間後 | D39: 入力
A40: 3100 | B40: 播種20日後草目立つかどうか判断 | C40: =播種日+14 -> 2025-06-15 | D40: 播種日2週間後
A41: 3110 | B41: 播種20日後草目立つかどうかの入力の要否 | C41: =IF(AND(判断日>=C40,入力表!$C$16=3),"播種後草入力",IF(入力表!$C$16<>3,"入力済み","判断日前")) -> 判断日前 | D41: 播種後草入力 | E41: =C41 -> 判断日前
A42: 3120 | B42: 播種20日後草目立てば土寄せ①は20～25日後(早めの実施) | C42: =IF(播種後草量=1,IF(播種日+植傷み+25>=土寄最遅+5,土寄最遅+5,土寄①始+5),土寄①終) -> 2025-07-01 | D42: 土寄①終修正 | E42: =IF(C42="",土寄①終,C42) -> 2025-07-01
A43: 3125 | B43: 早めの実施の場合、土寄①と②整合 | C43: =IF(土寄①始="土寄困難","土寄困難",IF(土寄①始>土寄①終修正,土寄①終修正,土寄①始)) -> 2025-06-21 | D43: 土寄①始修正 | E43: =C43 -> 2025-06-21
A44: 3130 | B44: 土寄せ②の入力確認 | C44: =IF(土寄②="","2回目未","") -> 2回目未 | D44: 2回目実施済みかどうか
A45: 3140 | B45: 土寄せ②の5日後（2回目未 7日後）から茎葉剤 | C45: =IF(土寄①始修正="土寄困難",土寄最遅+5,IF(土寄②="",土寄②始+7,土寄②+5)) -> 2025-07-13 | D45: 茎葉剤始期の原則
A46: 3150 | B46: 土寄せ②から10日後（2回目未 7日後）までに茎葉剤 | C46: =IF(土寄①始修正="土寄困難",土寄最遅+5,IF(土寄②="",土寄②終+7,土寄②+10)) -> 2025-07-23 | D46: 茎葉剤終期の原則
A47: 3160 | B47: 土寄せ②後の茎葉剤は7/26期限（始め） | C47: =IF(土寄①始修正="土寄困難",土寄最遅+5,MIN(C45,土寄最遅)) -> 2025-07-13 | D47: 茎葉剤始 | E47: =C47 -> 2025-07-13
A48: 3170 | B48: 土寄せ②後の茎葉剤は7/26期限（終わり） | C48: =IF(土寄①始修正="土寄困難",土寄最遅+5,MIN(C46,土寄最遅)) -> 2025-07-23 | D48: 茎葉剤終 | E48: 2025-07-23
A49: 3180 | B49: 土寄せ①後(5日)株間残草大きいかどうか判断 | C49: =IF(土寄①<>"",IF(土寄①+5<判断日,"株間草入力","判断時期前"),"土寄①未入力") -> 土寄①未入力 | E49: 土寄①未入力
A50: 3190 | B50: 土寄①未入力なら土寄②始以後株間残草大きいかどうか判断 | C50: =IF(入力表!C18<>3,"入力済み",IF(土寄①始修正="土寄困難","判断時期前",IF(土寄①="",IF(土寄②始<=判断日,"株間草入力","判断時期前"),C49))) -> 判断時期前 | D50: 株間草入力 | E50: =C50 -> 判断時期前
A51: 3200 | B51: 土寄せ①後(5日)株間残草大きければ茎葉剤土寄せ②前処理 | C51: =IF(株間草大=1,"土寄せ前",IF(株間草大=2,"草小さい",IF(株間草入力="判断時期前","判断時期前","株間草未入力"))) -> 判断時期前 | D51: 土寄前茎葉剤１ | E51: 判断時期前
A52: 3210 | B52: 草大きく茎葉剤前処理の場合は土寄せ②5日前から（始め） | C52: =IF(C51="土寄せ前",土寄②始-5,"土寄②後処理") -> 土寄②後処理 | D52: 前茎葉剤始１ | E52: 土寄②後処理
A53: 3220 | B53: 草大きく茎葉剤前処理の場合は土寄せ②5日前から（終わり） | C53: =IF(C51="土寄せ前",土寄②終-5,"土寄②後処理") -> 土寄②後処理 | D53: 前茎葉剤終１ | E53: 土寄②後処理
A54: 3230 | B54: 茎葉剤前処理の判断日（土寄②の終期７月２０日） | C54: =DATEVALUE(TEXT(YEAR(判断日),"####")&"/7/20") -> 2025-07-20 | D54: (当該年)７月２０日
A55: 3240 | B55: 土寄せ②７月２０日より遅れるなら土寄せ②前処理 | C55: =IF(OR(AND(土寄②="",土寄②終>C54),土寄②>C54),"土寄せ前","土寄せ後") -> 土寄せ後 | D55: 土寄前茎葉剤２ | E55: =C55 -> 土寄せ後
A56: 3250 | B56: 時期遅く土寄せ②前処理の場合前処理判断日の5日前（始め） | C56: =IF(C55="土寄せ前",C54-5,"土寄せ後処理") -> 土寄せ後処理 | D56: 前茎葉剤始２ | E56: 土寄せ後処理
A57: 3260 | B57: 時期遅く土寄せ②前処理の場合土寄②終の5日前（終わり） | C57: =IF(C55="土寄せ前",土寄期限-5,"土寄せ後処理") -> 土寄せ後処理 | D57: 前茎葉剤終２ | E57: 土寄せ後処理
A58: 3270 | B58: 茎葉剤処理が土寄せ②の前か後か | C58: =IF(OR(土寄前茎葉剤１="土寄せ前",土寄前茎葉剤２="土寄せ前"),"土寄せ前","土寄せ後") -> 土寄せ後 | D58: 茎葉剤時期 | E58: 土寄せ後
A59: 3280 | B59: 茎葉剤判断のうち最も早い時期（始め） | C59: =IF(茎葉剤時期="土寄せ前",MIN(前茎葉剤始１,前茎葉剤始２),茎葉剤始) -> 2025-07-13 | D59: 茎葉始 | E59: 2025-07-13
A60: 3290 | B60: 茎葉剤判断のうち最も早い時期（終わり） | C60: =IF(茎葉剤時期="土寄せ前",MIN(前茎葉剤終１,前茎葉剤終２),茎葉剤終) -> 2025-07-23 | D60: 茎葉終 | E60: 2025-07-23
A61: 3300 | B61: 茎葉剤前処理の場合、土寄②始は茎葉終の５日後に修正 | C61: =IF(茎葉剤時期="土寄せ前",茎葉始+5,土寄②始) -> 2025-07-06 | D61: 土寄②始修正 | E61: 2025-07-06
A62: 20
A63: 摘心
A64: 4100 | B64: 摘心を前提とする播種日 （５月３１日まで） | C64: =DATEVALUE(TEXT(YEAR(判断日),"####")&"/5/31") -> 2025-05-31 | D64: 摘心検討早播日 | E64: =C64 -> 2025-05-31
A65: 4110 | B65: 播種が摘心を前提とする時期かどうか | C65: =IF(土寄①始修正="土寄困難","摘心不要",IF(AND(播種日<=摘心検討早播日,摘心=""),"摘心実施を考える","入力で判断")) -> 入力で判断 | D65: 摘心検討 | E65: =C65 -> 入力で判断
A66: 4120 | B66: 主茎長で摘心を判断するのは （７月１日以降） | C66: =DATEVALUE(TEXT(YEAR(判断日),"####")&"/7/1") -> 2025-07-01 | D66: 摘心判断時期 | E66: =C66 -> 2025-07-01
A67: 4130 | B67: 摘心は播種後50日までに実施 | C67: =播種日+50 -> 2025-07-21 | D67: 播種後50日 | F67: =播種日 -> 2025-06-01
A68: 4140 | B68: 摘心は開花前に実施 ７月２８日まで | C68: =DATEVALUE(TEXT(YEAR(判断日),"####")&"/7/28") -> 2025-07-28 | D68: (当該年)７月２８日
A69: 4150 | B69: 摘心実施を判断する時期なら、開花前茎長を入力 | C69: =IF(土寄①始修正="土寄困難","摘心不要",IF(判断日>=摘心判断時期,"開花前茎長を入力",IF(摘心検討="摘心実施を考える",摘心検討,"7/1以降の主茎長で判断"))) -> 7/1以降の主茎長で判断 | D69: 開花前茎長入力 | E69: =C69 -> 7/1以降の主茎長で判断
A70: 4160 | B70: 開花前茎長の入力値が50cm超なら摘心実施 | C70: =IF(土寄①始修正="土寄困難","摘心不要",IF(開花前茎長=1,"主茎長45cmで摘心",IF(開花前茎長=2,"摘心不要",開花前茎長入力))) -> 7/1以降の主茎長で判断 | D70: 摘心実施 | E70: =C70 -> 7/1以降の主茎長で判断
A71: 4170 | B71: 摘心は土寄②の後に実施（始め） | C71: =IF(摘心実施="主茎長45cmで摘心",IF(土寄②<>"",土寄②,土寄②始修正),摘心実施) -> 7/1以降の主茎長で判断 | D71: 摘心始 | E71: =IF(摘心実施="","",C71) -> 7/1以降の主茎長で判断
A72: 4180 | B72: 摘心は土寄②の7日後までに実施（終わり） | C72: =IF(土寄②="",土寄期限+7,土寄②+7) -> 2025-07-23 | D72: 摘心終期の原則
A73: 4190 | B73: 播種後50日、7/28、土寄②7日後いずれか早い日までに終える | C73: =MIN(C72,C68,C67) -> 2025-07-21 | D73: 摘心終 | E73: =IF(摘心実施="","",C73) -> 2025-07-21
A74: 4200 | B74: 摘心始～摘心終は5日間確保 | C74: =IF(摘心実施="主茎長45cmで摘心",IF(摘心終-摘心始<5,摘心終-5,摘心始),摘心始) -> 7/1以降の主茎長で判断 | D74: 摘心始修正 | E74: =C74 -> 7/1以降の主茎長で判断
A75: 11

Sheet コメント (hidden)
A1: 黒大豆 土寄せ判断システム コメントデータ
C3: 数式 | D3: 内容（名前） | E3: コメント
B4: 判断日の設定（未入力時のガード） | C4: =IF(判断日入力="",TODAY(),判断日入力) -> 2025-06-01 | D4: 判断日
D5: 初期除草剤 | E5: =E12&E13&E14 -> 
D6: 定稙 | E6: =E17&E18 -> 
D7: 土寄せ① | E7: =E50&E52&E53&E54 -> 
D8: 土寄せ② | E8: =E34&E35&E36 -> 
D9: 茎葉除草剤 | E9: =E61&E65&E70&E71&E72&E73 -> 
D10: 摘心 | E10: =E77&E81&E83&E86&E87&E88 -> 
A11: 初期除草剤
B12: 除草剤なしの場合 | D12: 初期除草剤なし | E12: =IF(AND(播種日>0,初期除草剤="",判断日-播種日>6),"初期除草剤処理なし。雑草発生量を観察し、多ければ播種後25日以内に土寄せ。","") ->  | F12: 初期除草剤処理なし。雑草発生量を観察し、多ければ播種後25日以内に土寄せ。
D13: 適期処理 | E13: =IF(初期除草剤<>"",IF(初期除草剤-播種日<4,F13,""),"") ->  | F13: 適期内に実施。
B14: 播種後除草剤処理まで間隔が開いた場合 | D14: 初期除草剤遅れ | E14: =IF(初期除草剤-播種日>3,F14,"") ->  | F14: 播種後 除草剤処理まで間隔が開いたので、効果劣る。
A16: 定稙時期
B17: 定稙遅れの植え傷み（13日以上で2日、17日以上で3日） | C17: =IF(定稙日<播種日+13,0,IF(定稙日<播種日+17,2,3)) -> 0 | D17: 植傷み | E17: =IF(植傷み>0,F17,"") ->  | F17: 定稙遅れで植え傷みの恐れ。
E18: =IF(AND(定稙日<>"",植傷み=0),F18,"") ->  | F18: 定稙遅れなし。
A19: 土寄せ時期
A20: 1100 | B20: １回目 直播後20～30日後に実施（始め） | C20: =播種日+20 -> 2025-06-21 | D20: 土寄①始の原則
A21: 1110 | B21: １回目 直播後20～30日後に実施（終わり） | C21: =播種日+30 -> 2025-07-01 | D21: 土寄①終の原則
A22: 1115 | B22: 土寄①始原則が>7/26なら7/26(播種15日以内なら土寄困難） | C22: =IF(C20>土寄最遅,IF(土寄最遅-15<播種日,"土寄困難",土寄最遅),C20) -> 2025-06-21 | D22: 土寄①始
A23: 1117 | B23: 土寄①始原則が>=7/26なら7/31(土寄困難なら""） | C23: =IF(C20>土寄最遅,IF(土寄①始="土寄困難","",土寄最遅+5),IF(C21>土寄最遅+5,土寄最遅+5,C21)) -> 2025-07-01 | D23: 土寄①終
A24: 1200 | B24: ２回目 １回目未なら 15日後に実施（始め） | C24: =IF(土寄①="",IF(土寄①始修正="土寄困難","",土寄①始+15),"①入力済") -> 2025-07-06 | D24: ①未実施の土寄②始
A25: 1210 | B25: ２回目 １回目後なら12日後に実施（始め） | C25: =IF(土寄①<>"",土寄①+12,"①未実施") -> ①未実施 | D25: ①実施済みの土寄②始
A26: 1220 | B26: ２回目 １回目未なら 15日後に実施（終わり） | C26: =IF(土寄①="",IF(土寄①始="土寄困難","",土寄①終+15),"①入力済") -> 2025-07-16 | D26: ①未実施の土寄②終
A27: 1230 | B27: ２回目 １回目後20日後に実施（終わり） | C27: =IF(土寄①<>"",土寄①+20,"①未実施") -> ①未実施 | D27: ①実施済みの土寄②終
A28: 1240 | B28: ２回目 １回目遅れなら、 適期12日後と①7日後の遅い方（始め） | C28: =IF(土寄①>土寄①終,MAX(土寄①始+12,土寄①+7),"遅れ処理なし") -> 遅れ処理なし | D28: ①遅れの土寄②始
A29: 1250 | B29: ２回目 １回目遅れなら、 適期20日後と①10日後の遅い方（終わり） | C29: =IF(土寄①>土寄①終,MAX(土寄①終+20,土寄①+10),"遅れ処理なし") -> 遅れ処理なし | D29: ①遅れの土寄②終
A30: 1260 | B30: ２回目 土寄せ適期始め | C30: =MAX(C24,C25,C28) -> 2025-07-06 | D30: 土寄②始 | E30: =C30 -> 2025-07-06
A31: 1270 | B31: ２回目 土寄せ適期終わり | C31: =MAX(C26,C27,C29) -> 2025-07-16 | D31: 土寄②終 | E31: =C31 -> 2025-07-16
A32: 1280 | B32: 直播後50日後までに終える | C32: =播種日+50 -> 2025-07-21 | D32: 播種50日後 | E32: =C32 -> 2025-07-21 | G32: =C33 -> 2025-07-26
A33: 1290 | B33: 最遅日 ７月２６日（開花前） | C33: =DATEVALUE(TEXT(YEAR(判断日),"####")&"/7/26") -> 2025-07-26 | D33: 土寄最遅 | E33: =C33 -> 2025-07-26 | G33: =播種50日後 -> 2025-07-21
A34: 1300 | B34: 土寄②期限 播種後50日以内、7月26日まで（開花前）に終える | C34: =MIN(土寄最遅,播種50日後,土寄②終) -> 2025-07-16 | D34: 土寄期限 | E34: =IF(土寄期限<土寄②,F34,"") ->  | F34: 土寄せ②適期遅れ。
E35: =IF(AND(土寄②<>"",土寄②>=土寄②始修正,土寄②<=土寄期限),F35,"") ->  | F35: 適期内に実施。
A36: 13 | E36: =IF(土寄②>土寄最遅,F36,"") ->  | F36: 開花期に土寄せすると断根し、着莢不良を招く。
A37: 降雨とトラクタ作業 | G37: =地点名 -> アメダス園部
A38: 2100 | B38: 参照するアメダス地点 | C38: =アメダス地点 -> 園部 | D38: ［入力表］の選択地点 | F38: 地点名 | G38: ="アメダス"&C38 -> アメダス園部
A39: 2110 | B39: 当日 作業できない降雨量mm | C39: =入力表!C26 -> 2 | D39: ［入力表］下の降雨量判断条件（当日）
A40: 2120 | B40: 翌日 作業できない降雨量mm | C40: =入力表!C27 -> 10 | D40: ［入力表］下の降雨量判断条件（翌日）
A41: 2130 | B41: ２日後 作業できない降雨量mm | C41: =入力表!C28 -> 30 | D41: ［入力表］下の降雨量判断条件（２日後）
A42: 2140 | B42: （土寄① 適期内の作業可能な日数計算） | C42: 土寄① | D42: 適期日数 | E42: =INDIRECT(地点名&"!O111") -> 11 | F42: 可能日数 | G42: =INDIRECT(地点名&"!P111") -> 5.3 | H42: 可能確率 | I42: =INDIRECT(地点名&"!D115") -> 0.4818181818
A43: 2150 | B43: （土寄② 適期内の作業可能な日数計算） | C43: 土寄② | D43: 適期日数 | E43: =INDIRECT(地点名&"!O112") -> 11 | F43: 可能日数 | G43: =INDIRECT(地点名&"!P112") -> 4.6 | H43: 可能確率 | I43: =INDIRECT(地点名&"!E115") -> 0.4181818182
A44: 2160 | B44: （除草剤 適期内の作業可能な日数計算） | C44: 除草剤 | D44: 適期日数 | E44: =INDIRECT(地点名&"!O113") -> 11 | F44: 可能日数 | G44: =INDIRECT(地点名&"!P113") -> 6.6 | H44: 可能確率 | I44: =INDIRECT(地点名&"!F115") -> 0.6
A45: 2170 | B45: （摘心 適期内の作業可能な日数計算） | C45: 摘心 | D45: 適期日数 | E45: =アメダス園部!O114 ->  | F45: 可能日数 | G45: =アメダス園部!P114 ->  | H45: 可能確率 | I45: =アメダス園部!G115 -> 
A46: 8
A47: 除草剤と土寄せ | C47: 播種後20日 | D47: 入力
A48: 3100 | B48: 播種20日後草目立つかどうか判断 | C48: =播種日+20 -> 2025-06-21 | D48: 播種日20日後
A49: 3110 | B49: 播種20日後草目立つかどうかの入力の要否 | C49: =IF(AND(判断日>=C48,入力表!$C$16=""),"播種後草入力",IF(入力表!$C$16<>"","入力済み","判断日前")) -> 入力済み | D49: 播種後草入力 | E49: =C49 -> 入力済み
A50: 3120 | B50: 播種20日後草目立てば土寄せ①は20～25日後(早めの実施) | C50: =IF(播種後草量="1 草多",IF(播種日+25>=土寄最遅+5,土寄最遅+5,播種日+25),土寄①終) -> 2025-07-01 | D50: 土寄①終修正 | E50: =IF(土寄①>土寄①終修正,F50,"") ->  | F50: 土寄せ①適期遅れ、その後の雑草の残存、生育停滞の恐れあり。
A51: 3125 | B51: 早めの実施の場合、土寄①と②整合 | C51: =IF(土寄①始="土寄困難","土寄困難",IF(土寄①始>土寄①終修正,土寄①終修正,土寄①始)) -> 2025-06-21 | D51: 土寄①始修正
E52: =IF(土寄①始修正="土寄困難","",IF(AND(土寄①>=土寄①始修正,IF(播種後草量<>"",土寄①<=土寄①終修正,土寄①<=土寄①始修正+5)),F52,"")) ->  | F52: 適期内に実施。
E53: =IF(AND(土寄①<>"",播種後草量="1 草多",土寄①<=土寄①終修正,株間草大<>"2 草小"),F53,"") ->  | F53: 雑草の発生多く、今後株間の雑草が次の土寄せまでに大きくなりすぎてないか要注意。
A54: 3130 | B54: 土寄せ②の入力確認 | C54: =IF(土寄②="","2回目未","") -> 2回目未 | D54: 2回目実施済かどうか | E54: =IF(AND(土寄期限=土寄最遅,土寄②=""),F54,"") ->  | F54: 土寄せが1回のみなら、開花期(7月末)までに雑草の処理(茎葉処理剤散布等)を検討。
A55: 3140 | B55: 土寄せ②の5日後（2回目未 7日後）から茎葉剤 | C55: =IF(土寄①始修正="土寄困難",土寄最遅+5,IF(土寄②="",土寄②始+7,土寄②+5)) -> 2025-07-13 | D55: 茎葉剤始期の原則
A56: 3150 | B56: 土寄せ②から10日後（2回目未 7日後）までに茎葉剤 | C56: =IF(土寄①始修正="土寄困難",土寄最遅+5,IF(土寄②="",土寄②終+7,土寄②+10)) -> 2025-07-23 | D56: 茎葉剤終期の原則
A57: 3160 | B57: 土寄せ②後の茎葉剤は7/26期限（始め） | C57: =IF(土寄①始修正="土寄困難",土寄最遅+5,MIN(C55,土寄最遅)) -> 2025-07-13 | D57: 茎葉剤始 | E57: =C57 -> 2025-07-13
A58: 3170 | B58: 土寄せ②後の茎葉剤は7/26期限（終わり） | C58: =IF(土寄①始修正="土寄困難",土寄最遅+5,MIN(C56,土寄最遅)) -> 2025-07-23 | D58: 茎葉剤終 | E58: 2025-07-23
A59: 3180 | B59: 土寄せ①後(5日)株間残草大きいかどうか判断 | C59: =IF(土寄①<>"",IF(土寄①+5<判断日,"株間草入力","判断時期前"),"土寄①未入力") -> 土寄①未入力 | E59: 土寄①未入力
A60: 3190 | B60: 土寄①未入力なら土寄②始以後株間残草大きいかどうか判断 | C60: =IF(入力表!#REF!<>"","入力済み",IF(土寄①始修正="土寄困難","判断時期前",IF(土寄①="",IF(土寄②始<=判断日,"株間草入力","判断時期前"),C59))) ->  | D60: 株間草入力 | E60: =C60 -> 
A61: 3200 | B61: 土寄せ①後(5日)株間残草大きければ茎葉剤土寄せ②前処理 | C61: =IF(株間草大="1 草大","土寄せ前",IF(株間草大="2 草小","草小さい",IF(株間草入力="判断時期前","判断時期前","株間草未入力"))) -> 判断時期前 | D61: 土寄前茎葉剤１ | E61: =IF(C61="土寄せ前",F61,"") ->  | F61: 株間の草が大きくなりすぎると効かないので、早く処理。
A62: 3210 | B62: 草多く茎葉剤前処理の場合は土寄せ②5日前から（始め） | C62: =IF(C61="土寄せ前",土寄②始-5,"土寄②後処理") -> 土寄②後処理 | D62: 前茎葉剤始１ | E62: 土寄②後処理
A63: 3220 | B63: 草多く茎葉剤前処理の場合は土寄せ②5日前から（終わり） | C63: =IF(C61="土寄せ前",土寄②終-5,"土寄②後処理") -> 土寄②後処理 | D63: 前茎葉剤終１ | E63: 土寄②後処理
A64: 3230 | B64: 茎葉剤前処理の判断日（土寄②の終期７月２０日） | C64: =DATEVALUE(TEXT(YEAR(判断日),"####")&"/7/20") -> 2025-07-20 | D64: (当該年)７月２０日
A65: 3240 | B65: 土寄せ②７月２０日より遅れるなら土寄せ②前処理 | C65: =IF(OR(AND(土寄②="",土寄②終>C64),土寄②>C64),"土寄せ前","土寄せ後") -> 土寄せ後 | D65: 土寄前茎葉剤２ | E65: =IF(C65="土寄せ前",F65,"") ->  | F65: 2回目土寄せ後だと開花期になるので、土寄せ前に散布。
A66: 3250 | B66: 時期遅く土寄せ②前処理の場合前処理判断日の5日前（始め） | C66: =IF(C65="土寄せ前",C64-5,"土寄せ後処理") -> 土寄せ後処理 | D66: 前茎葉剤始２ | E66: =C66 -> 土寄せ後処理
A67: 3260 | B67: 時期遅く土寄せ②前処理の場合土寄②終の5日前（終わり） | C67: =IF(C65="土寄せ前",土寄期限-5,"土寄せ後処理") -> 土寄せ後処理 | D67: 前茎葉剤終２ | E67: 土寄せ後処理
A68: 3270 | B68: 茎葉剤処理が土寄せ②の前か後か | C68: =IF(OR(土寄前茎葉剤１="土寄せ前",土寄前茎葉剤２="土寄せ前"),"土寄せ前","土寄せ後") -> 土寄せ後 | D68: 茎葉剤時期 | E68: 土寄せ後
A69: 3280 | B69: 茎葉剤判断のうち最も早い時期（始め） | C69: =IF(茎葉剤時期="土寄せ前",MIN(前茎葉剤始１,前茎葉剤始２),茎葉剤始) -> 2025-07-13 | D69: 茎葉始 | E69: 2025-07-13
A70: 3290 | B70: 茎葉剤判断のうち最も早い時期（終わり） | C70: =IF(茎葉剤時期="土寄せ前",MIN(前茎葉剤終１,前茎葉剤終２),茎葉剤終) -> 2025-07-23 | D70: 茎葉終 | E70: =IF(C70<茎葉除草剤,F70,"") ->  | F70: 茎葉除草剤処理適期遅れ。
B71: 茎葉除草剤が未入力で茎葉終が7/26の時 | E71: =IF(AND(茎葉除草剤="",茎葉終=土寄最遅),F71,"") ->  | F71: 茎葉除草剤は7/26より遅れないよう処理（開花期は薬害の恐れ）。
E72: =IF(茎葉除草剤>茎葉剤終,F72,"") ->  | F72: 開花期の除草剤処理は薬害の恐れ。
E73: =IF(AND(茎葉除草剤>=茎葉始,茎葉除草剤<=茎葉終),F73,"") ->  | F73: 適期内に実施。
A74: 3300 | B74: 茎葉剤前処理の場合、土寄②始は茎葉終の５日後に修正 | C74: =IF(茎葉剤時期="土寄せ前",茎葉始+5,土寄②始) -> 2025-07-06 | D74: 土寄②始修正
A75: 20
A76: 摘心
A77: 4100 | B77: 摘心を前提とする播種日 （５月３１日まで） | C77: =DATEVALUE(TEXT(YEAR(判断日),"####")&"/5/31") -> 2025-05-31 | D77: 摘心検討早播日 | E77: =IF(AND(C77>=播種日,開花前茎長="2 短50cm",判断日>=摘心判断時期+9),F77,"") ->  | F77: 5月中の播種にもかかわらず草丈小さく生育不良。
A78: 4110 | B78: 播種が摘心を前提とする時期かどうか | C78: =IF(AND(播種日<=摘心検討早播日,摘心=""),"摘心実施を考える","入力で判断") -> 入力で判断 | D78: 摘心検討 | E78: =C78 -> 入力で判断
A79: 4120 | B79: 主茎長で摘心を判断するのは （７月１日以降） | C79: =DATEVALUE(TEXT(YEAR(判断日),"####")&"/7/1") -> 2025-07-01 | D79: 摘心判断時期 | E79: =C79 -> 2025-07-01
A80: 4130 | B80: 摘心は播種後50日までに実施 | C80: =播種日+50 -> 2025-07-21 | D80: 播種後50日
A81: 4140 | B81: 摘心は開花前に実施 ７月２８日まで | C81: =DATEVALUE(TEXT(YEAR(判断日),"####")&"/7/28") -> 2025-07-28 | D81: (当該年)７月２８日 | E81: =IF(摘心>C81,F81,"") ->  | F81: 摘心実施が開花期で、葉の切除で着莢に悪影響。
A82: 4150 | B82: 摘心実施を判断する時期なら、開花前茎長を入力 | C82: =IF(判断日>=摘心判断時期,"開花前茎長を入力",IF(摘心検討="摘心実施を考える",摘心検討,"7/1以降の主茎長で判断")) -> 7/1以降の主茎長で判断 | D82: 開花前茎長入力 | E82: =C82 -> 7/1以降の主茎長で判断
A83: 4160 | B83: 開花前茎長の入力値が50cm超なら摘心実施 | C83: =IF(開花前茎長="1 超50cm","主茎長45cmで摘心",IF(開花前茎長="2 短50cm","摘心不要",開花前茎長入力)) -> 7/1以降の主茎長で判断 | D83: 摘心実施 | E83: =IF(AND(摘心="",開花前茎長="1 超50cm"),F83,"") ->  | F83: 草丈大きいと無摘心では倒伏の恐れ有り、草姿悪い。
A84: 4170 | B84: 摘心は土寄②の後に実施（始め） | C84: =IF(摘心実施="主茎長45cmで摘心",IF(土寄②<>"",土寄②,土寄②始修正),摘心実施) -> 7/1以降の主茎長で判断 | D84: 摘心始 | E84: =IF(摘心実施="","",C84) -> 7/1以降の主茎長で判断
A85: 4180 | B85: 摘心は土寄②の7日後までに実施（終わり） | C85: =IF(土寄②="",土寄期限+7,土寄②+7) -> 2025-07-23 | D85: 摘心終期の原則
A86: 4190 | B86: 播種後50日、7/28、土寄②7日後いずれか早い日までに終える | C86: =MIN(C85,C81,C80) -> 2025-07-21 | D86: 摘心終 | E86: =IF(摘心<>"",IF(AND(摘心>=摘心始修正,摘心<=摘心終),F86,""),"") ->  | F86: 適期内に実施。
E87: =IF(摘心-播種日>50,F87,"") ->  | F87: 草姿を改善するためには、播種後50日以内に実施。
A88: 4200 | B88: 摘心始～摘心終は5日間確保 | C88: =IF(摘心実施="主茎長45cmで摘心",IF(摘心終-摘心始<5,摘心終-5,摘心始),摘心始) -> 7/1以降の主茎長で判断 | D88: 摘心始修正 | E88: =IF(AND(摘心="",摘心終<=土寄期限),F88,"") ->  | F88: 土寄せ②後実施が原則だが、草姿を改善するために、土寄せ前でも実施（播種後50日以内）。
A89: 11

Sheet アメダス園部
B1: 降雨日から見た黒大豆作業の検討 | J1: ="（"&C3&"～"&L3&"年平均）" -> （2024～2015年平均）
B2: アメダス園部データ
A3: 月 | B3: 日 | C3: 2024 | D3: 2023 | E3: 2022 | F3: 2021 | G3: 2020 | H3: 2019 | I3: 2018 | J3: 2017 | K3: 2016 | L3: 2015 | M3: 2014 | Q3: =C3 -> 2024 | R3: 2023 | S3: 2022 | T3: 2021 | U3: 2020 | V3: 2019 | W3: 2018 | X3: 2017 | Y3: 2016 | Z3: 2015 | AA3: 2014
A4: 4 | B4: 29 | C4: 16 | D4: 8.5 | E4: 50 | F4: 71.5 | G4: 0 | H4: 16 | I4: 0 | J4: 3.5 | K4: 0 | L4: 0 | M4: 54.5 | O4: 2019-04-29 | Q4: =IF(C4>=$C$108,1,"") -> 1 | R4: 1 | S4: 1 | T4: 1 | V4: 1 | X4: 1 | AA4: 1
A5: 4 | B5: 30 | C5: 11.5 | D5: 16.5 | E5: 0 | F5: 0.5 | G5: 0 | H5: 22 | I5: 0 | J5: 0 | K5: 0 | L5: 0 | M5: 16 | O5: 2019-04-30 | Q5: =IF(C5>=$C$108,1,IF(C4>=$C$109,1,"")) -> 1 | R5: 1 | S5: 1 | T5: 1 | V5: 1 | AA5: 1
A6: 5 | B6: 1 | C6: 3.5 | D6: 0.5 | E6: 21 | F6: 4 | G6: 0 | H6: 7.5 | I6: 0 | J6: 0 | K6: 0 | L6: 0 | M6: 2.5 | N6: 0 | O6: 2019-05-01 | Q6: =IF(C6>=$C$108,1,IF(C5>=$C$109,1,IF(C4>=$C$110,1,""))) -> 1 | R6: =IF(D6>=$C$108,1,IF(D5>=$C$109,1,IF(D4>=$C$110,1,""))) -> 1 | S6: =IF(E6>=$C$108,1,IF(E5>=$C$109,1,IF(E4>=$C$110,1,""))) -> 1 | T6: =IF(F6>=$C$108,1,IF(F5>=$C$109,1,IF(F4>=$C$110,1,""))) -> 1 | U6: =IF(G6>=$C$108,1,IF(G5>=$C$109,1,IF(G4>=$C$110,1,""))) ->  | V6: =IF(H6>=$C$108,1,IF(H5>=$C$109,1,IF(H4>=$C$110,1,""))) -> 1 | W6: =IF(I6>=$C$108,1,IF(I5>=$C$109,1,IF(I4>=$C$110,1,""))) ->  | X6: =IF(J6>=$C$108,1,IF(J5>=$C$109,1,IF(J4>=$C$110,1,""))) ->  | Y6: =IF(K6>=$C$108,1,IF(K5>=$C$109,1,IF(K4>=$C$110,1,""))) ->  | Z6: =IF(L6>=$C$108,1,IF(L5>=$C$109,1,IF(L4>=$C$110,1,""))) ->  | AA6: =IF(M6>=$C$108,1,IF(M5>=$C$109,1,IF(M4>=$C$110,1,""))) -> 1
A7: 5 | B7: 2 | C7: 0 | D7: 0 | E7: 0.5 | F7: 3.5 | G7: 0 | H7: 0 | I7: 7.5 | J7: 0 | K7: 0 | L7: 0 | M7: 0 | N7: 1 | O7: 2019-05-02 | S7: 1 | T7: 1 | W7: 1
A8: 5 | B8: 3 | C8: 0 | D8: 0 | E8: 0 | F8: 0 | G8: 1 | H8: 0 | I8: 1.5 | J8: 0 | K8: 6.5 | L8: 2 | M8: 0 | N8: 2 | O8: 2019-05-03 | Y8: 1 | Z8: 1
A9: 5 | B9: 4 | C9: 0 | D9: 0 | E9: 0 | F9: 0 | G9: 2.5 | H9: 0 | I9: 1.5 | J9: 0 | K9: 1 | L9: 3.5 | M9: 0 | N9: 3 | O9: 2019-05-04 | U9: 1 | Z9: 1
A10: 5 | B10: 5 | C10: 0 | D10: 0 | E10: 0 | F10: 16 | G10: 0 | H10: 0 | I10: 0 | J10: 0 | K10: 0 | L10: 0 | M10: 0.5 | N10: 4 | O10: 2019-05-05 | T10: 1
A11: 5 | B11: 6 | C11: 5.5 | D11: 1.5 | E11: 0 | F11: 0 | G11: 0 | H11: 7 | I11: 10.5 | J11: 0 | K11: 6 | L11: 0 | M11: 0 | N11: 5 | O11: 2019-05-06 | Q11: 1 | T11: 1 | V11: 1 | W11: 1 | Y11: 1
A12: 5 | B12: 7 | C12: 17 | D12: 87 | E12: 0 | F12: 1.5 | G12: 0 | H12: 0 | I12: 31 | J12: 0 | K12: 0 | L12: 1 | M12: 0 | N12: 6 | O12: 2019-05-07 | Q12: 1 | R12: 1 | W12: 1
A13: 5 | B13: 8 | C13: 0 | D13: 19.5 | E13: 0 | F13: 0 | G13: 0 | H13: 0 | I13: 10.5 | J13: 0 | K13: 0 | L13: 1 | M13: 0 | N13: 7 | O13: 2019-05-08 | Q13: 1 | R13: 1 | W13: 1
A14: 5 | B14: 9 | C14: 0 | D14: 0 | E14: 0 | F14: 0 | G14: 2.5 | H14: 0 | I14: 5 | J14: 5 | K14: 14.5 | L14: 0 | M14: 0 | N14: 8 | O14: 2019-05-09 | R14: 1 | U14: 1 | W14: 1 | X14: 1 | Y14: 1
A15: 5 | B15: 10 | C15: 0 | D15: 0 | E15: 0 | F15: 0 | G15: 4.5 | H15: 0 | I15: 0 | J15: 2 | K15: 3.5 | L15: 0 | M15: 0 | N15: 9 | O15: 2019-05-10 | U15: 1 | X15: 1 | Y15: 1
A16: 5 | B16: 11 | C16: 0 | D16: 0 | E16: 0.5 | F16: 0 | G16: 0 | H16: 0 | I16: 0 | J16: 0 | K16: 24 | L16: 0 | M16: 0 | N16: 10 | O16: 2019-05-11 | Y16: 1
A17: 5 | B17: 12 | C17: 7.5 | D17: 0 | E17: 9.5 | F17: 2.5 | G17: 0 | H17: 0 | I17: 0 | J17: 1.5 | K17: 0 | L17: 50.5 | M17: 7.5 | N17: 11 | O17: 2019-05-12 | Q17: 1 | S17: 1 | T17: 1 | Y17: 1 | Z17: 1 | AA17: 1
A18: 5 | B18: 13 | C18: 21.5 | D18: 9 | E18: 11 | F18: 5 | G18: 0 | H18: 0 | I18: 47.5 | J18: 24.5 | K18: 0 | L18: 0 | M18: 3 | N18: 12 | O18: 2019-05-13 | Q18: 1 | R18: 1 | S18: 1 | T18: 1 | W18: 1 | X18: 1 | Z18: 1 | AA18: 1
A19: 5 | B19: 14 | C19: 0 | D19: 9.5 | E19: 10.5 | F19: 0 | G19: 0 | H19: 0 | I19: 0 | J19: 0 | K19: 0 | L19: 1 | M19: 0 | N19: 13 | O19: 2019-05-14 | Q19: 1 | R19: 1 | S19: 1 | W19: 1 | X19: 1 | Z19: 1
A20: 5 | B20: 15 | C20: 0 | D20: 0 | E20: 0 | F20: 0.5 | G20: 5 | H20: 0 | I20: 0 | J20: 0 | K20: 0 | L20: 0 | M20: 2 | N20: 14 | O20: 2019-05-15 | S20: 1 | U20: 1 | W20: 1 | AA20: 1
A21: 5 | B21: 16 | C21: 0 | D21: 0 | E21: 0 | F21: 4.5 | G21: 33 | H21: 0 | I21: 0 | J21: 0 | K21: 72.5 | L21: 34.5 | M21: 0 | N21: 15 | O21: 2019-05-16 | T21: 1 | U21: 1 | Y21: 1 | Z21: 1
A22: 5 | B22: 17 | C22: 0 | D22: 0 | E22: 0 | F22: 14 | G22: 0 | H22: 0 | I22: 0 | J22: 0 | K22: 1 | L22: 0 | M22: 0 | N22: 16 | O22: 2019-05-17 | T22: 1 | U22: 1 | Y22: 1 | Z22: 1
A23: 5 | B23: 18 | C23: 0 | D23: 0 | E23: 0 | F23: 3 | G23: 23 | H23: 0 | I23: 15 | J23: 0 | K23: 0 | L23: 11 | M23: 0 | N23: 17 | O23: 2019-05-18 | T23: 1 | U23: 1 | W23: 1 | Y23: 1 | Z23: 1
A24: 5 | B24: 19 | C24: 3.5 | D24: 39 | E24: 0 | F24: 1 | G24: 1 | H24: 0 | I24: 2.5 | J24: 0 | K24: 0 | L24: 6.5 | M24: 0 | N24: 18 | O24: 2019-05-19 | Q24: 1 | R24: 1 | U24: 1 | W24: 1 | Z24: 1
A25: 5 | B25: 20 | C25: 1 | D25: 0.5 | E25: 0 | F25: 36.5 | G25: 0 | H25: 9 | I25: 0 | J25: 0 | K25: 0 | L25: 2 | M25: 18.5 | N25: 19 | O25: 2019-05-20 | R25: 1 | T25: 1 | V25: 1 | Z25: 1 | AA25: 1
A26: 5 | B26: 21 | C26: 0 | D26: 0 | E26: 0 | F26: 27.5 | G26: 0 | H26: 30.5 | I26: 0 | J26: 0 | K26: 0 | L26: 0 | M26: 47.5 | N26: 20 | O26: 2019-05-21 | R26: 1 | T26: 1 | V26: 1 | AA26: 1
A27: 5 | B27: 22 | C27: 0 | D27: 2 | E27: 5 | F27: 1 | G27: 0 | H27: 0 | I27: 0 | J27: 0 | K27: 0 | L27: 0 | M27: 0 | N27: 21 | O27: 2019-05-22 | R27: 1 | S27: 1 | T27: 1 | V27: 1 | AA27: 1
A28: 5 | B28: 23 | C28: 0 | D28: 4 | E28: 0 | F28: 0 | G28: 0 | H28: 1 | I28: 7.5 | J28: 0 | K28: 0 | L28: 0 | M28: 0 | N28: 22 | O28: 2019-05-23 | R28: 1 | V28: 1 | W28: 1 | AA28: 1
A29: 5 | B29: 24 | C29: 0 | D29: 1 | E29: 0 | F29: 2.5 | G29: 0 | H29: 0 | I29: 0.5 | J29: 3.5 | K29: 0 | L29: 0 | M29: 0 | N29: 23 | O29: 2019-05-24 | T29: 1 | X29: 1
A30: 5 | B30: 25 | C30: 0 | D30: 1.5 | E30: 0 | F30: 0 | G30: 0 | H30: 0 | I30: 0 | J30: 18.5 | K30: 0 | L30: 0 | M30: 0 | N30: 24 | O30: 2019-05-25 | X30: 1
A31: 5 | B31: 26 | C31: 0 | D31: 0 | E31: 4 | F31: 0 | G31: 18.5 | H31: 0 | I31: 0 | J31: 0 | K31: 0.5 | L31: 0 | M31: 5.5 | N31: 25 | O31: 2019-05-26 | S31: 1 | U31: 1 | X31: 1 | AA31: 1
A32: 5 | B32: 27 | C32: 16.5 | D32: 0 | E32: 5 | F32: 35 | G32: 0 | H32: 0 | I32: 0 | J32: 0 | K32: 2.5 | L32: 0 | M32: 0 | N32: 26 | O32: 2019-05-27 | Q32: 1 | S32: 1 | T32: 1 | U32: 1 | Y32: 1
A33: 5 | B33: 28 | C33: 134.5 | D33: 0 | E33: 0 | F33: 0 | G33: 0 | H33: 32.5 | I33: 0 | J33: 0 | K33: 0 | L33: 0 | M33: 0 | N33: 27 | O33: 2019-05-28 | Q33: 1 | T33: 1 | V33: 1
A34: 5 | B34: 29 | C34: 0.5 | D34: 38.5 | E34: 0 | F34: 0 | G34: 0 | H34: 0 | I34: 0 | J34: 0 | K34: 8 | L34: 0 | M34: 0 | N34: 28 | O34: 2019-05-29 | Q34: 1 | R34: 1 | T34: 1 | V34: 1 | Y34: 1
A35: 5 | B35: 30 | C35: 0 | D35: 6.5 | E35: 1.5 | F35: 0 | G35: 0 | H35: 0 | I35: 13 | J35: 0 | K35: 7 | L35: 0 | M35: 0 | N35: 29 | O35: 2019-05-30 | Q35: 1 | R35: 1 | V35: 1 | W35: 1 | Y35: 1
A36: 5 | B36: 31 | C36: 2.5 | D36: 0 | E36: 2 | F36: 0 | G36: 2 | H36: 0 | I36: 21.5 | J36: 1.5 | K36: 0 | L36: 0 | M36: 0 | N36: 30 | O36: 2019-05-31 | Q36: 1 | R36: 1 | S36: 1 | U36: 1 | W36: 1
A37: 6 | B37: 1 | C37: 0.5 | D37: 9.5 | E37: 0 | F37: 0 | G37: 0 | H37: 0 | I37: 0 | J37: 21.5 | K37: 0 | L37: 0 | M37: 0 | N37: 31 | O37: 2019-06-01 | R37: 1 | W37: 1 | X37: 1
A38: 6 | B38: 2 | C38: 0 | D38: 85 | E38: 0 | F38: 0 | G38: 0 | H38: 0 | I38: 0 | J38: 0 | K38: 0 | L38: 0 | M38: 0 | N38: 32 | O38: 2019-06-02 | Q38: =IF(C38>=$C$108,1,IF(C37>=$C$109,1,IF(C36>=$C$110,1,""))) ->  | R38: =IF(D38>=$C$108,1,IF(D37>=$C$109,1,IF(D36>=$C$110,1,""))) -> 1 | S38: =IF(E38>=$C$108,1,IF(E37>=$C$109,1,IF(E36>=$C$110,1,""))) ->  | T38: =IF(F38>=$C$108,1,IF(F37>=$C$109,1,IF(F36>=$C$110,1,""))) ->  | U38: =IF(G38>=$C$108,1,IF(G37>=$C$109,1,IF(G36>=$C$110,1,""))) ->  | V38: =IF(H38>=$C$108,1,IF(H37>=$C$109,1,IF(H36>=$C$110,1,""))) ->  | W38: =IF(I38>=$C$108,1,IF(I37>=$C$109,1,IF(I36>=$C$110,1,""))) ->  | X38: =IF(J38>=$C$108,1,IF(J37>=$C$109,1,IF(J36>=$C$110,1,""))) -> 1 | Y38: =IF(K38>=$C$108,1,IF(K37>=$C$109,1,IF(K36>=$C$110,1,""))) ->  | Z38: =IF(L38>=$C$108,1,IF(L37>=$C$109,1,IF(L36>=$C$110,1,""))) ->  | AA38: =IF(M38>=$C$108,1,IF(M37>=$C$109,1,IF(M36>=$C$110,1,""))) -> 
A39: 6 | B39: 3 | C39: 0 | D39: 0 | E39: 0 | F39: 0.5 | G39: 0 | H39: 0 | I39: 0 | J39: 0 | K39: 0 | L39: 40.5 | M39: 0 | N39: 33 | O39: 2019-06-03 | R39: 1 | Z39: 1
A40: 6 | B40: 4 | C40: 0 | D40: 0 | E40: 0 | F40: 36.5 | G40: 0 | H40: 0 | I40: 0 | J40: 0 | K40: 4.5 | L40: 0 | M40: 0.5 | N40: 34 | O40: 2019-06-04 | R40: 1 | T40: 1 | Y40: 1 | Z40: 1
A41: 6 | B41: 5 | C41: 0 | D41: 0 | E41: 7.5 | F41: 0 | G41: 0 | H41: 0 | I41: 3 | J41: 0 | K41: 13 | L41: 23 | M41: 2 | N41: 35 | O41: 2019-06-05 | S41: 1 | T41: 1 | W41: 1 | Y41: 1 | Z41: 1 | AA41: 1
A42: 6 | B42: 6 | C42: 0 | D42: 2 | E42: 33.5 | F42: 0 | G42: 0 | H42: 0 | I42: 47 | J42: 0 | K42: 0 | L42: 1 | M42: 1.5 | N42: 36 | O42: 2019-06-06 | R42: 1 | S42: 1 | T42: 1 | W42: 1 | Y42: 1 | Z42: 1
A43: 6 | B43: 7 | C43: 0 | D43: 0 | E43: 2.5 | F43: 0 | G43: 0 | H43: 25 | I43: 6 | J43: 22 | K43: 5 | L43: 0 | M43: 5.5 | N43: 37 | O43: 2019-06-07 | S43: 1 | V43: 1 | W43: 1 | X43: 1 | Y43: 1 | AA43: 1
A44: 6 | B44: 8 | C44: 1 | D44: 10.5 | E44: 0 | F44: 0 | G44: 0 | H44: 0 | I44: 10 | J44: 0.5 | K44: 0 | L44: 3 | M44: 2 | N44: 38 | O44: 2019-06-08 | R44: 1 | S44: 1 | V44: 1 | W44: 1 | X44: 1 | Z44: 1 | AA44: 1
A45: 6 | B45: 9 | C45: 10 | D45: 9 | E45: 0 | F45: 0 | G45: 0 | H45: 0 | I45: 1 | J45: 0 | K45: 1 | L45: 12.5 | M45: 0.5 | N45: 39 | O45: 2019-06-09 | Q45: 1 | R45: 1 | W45: 1 | Z45: 1
A46: 6 | B46: 10 | C46: 0 | D46: 0 | E46: 0 | F46: 0 | G46: 7.5 | H46: 0 | I46: 9 | J46: 0 | K46: 0 | L46: 0 | M46: 0.5 | N46: 40 | O46: 2019-06-10 | Q46: 1 | U46: 1 | W46: 1 | Z46: 1
A47: 6 | B47: 11 | C47: 0 | D47: 9 | E47: 1.5 | F47: 0 | G47: 18 | H47: 0 | I47: 11 | J47: 0 | K47: 0 | L47: 3.5 | M47: 2.5 | N47: 41 | O47: 2019-06-11 | R47: 1 | U47: 1 | W47: 1 | Z47: 1 | AA47: 1
A48: 6 | B48: 12 | C48: 0 | D48: 2.5 | E48: 0 | F48: 0 | G48: 17 | H48: 0 | I48: 2 | J48: 0 | K48: 24 | L48: 1 | M48: 13 | N48: 42 | O48: 2019-06-12 | R48: 1 | U48: 1 | W48: 1 | Y48: 1 | AA48: 1
A49: 6 | B49: 13 | C49: 0 | D49: 0 | E49: 0 | F49: 13.5 | G49: 59.5 | H49: 0 | I49: 0 | J49: 0 | K49: 28 | L49: 0 | M49: 0 | N49: 43 | O49: 2019-06-13 | T49: 1 | U49: 1 | Y49: 1 | AA49: 1
A50: 6 | B50: 14 | C50: 0 | D50: 8 | E50: 16 | F50: 6 | G50: 15 | H50: 0 | I50: 0 | J50: 0 | K50: 0 | L50: 0 | M50: 0 | N50: 44 | O50: 2019-06-14 | R50: 1 | S50: 1 | T50: 1 | U50: 1 | Y50: 1
A51: 6 | B51: 15 | C51: 0 | D51: 8 | E51: 2.5 | F51: 18.5 | G51: 0 | H51: 27.5 | I51: 5 | J51: 0 | K51: 0 | L51: 0 | M51: 0 | N51: 45 | O51: 2019-06-15 | R51: 1 | S51: 1 | T51: 1 | U51: 1 | V51: 1 | W51: 1
A52: 6 | B52: 16 | C52: 13 | D52: 0 | E52: 0 | F52: 12 | G52: 0 | H52: 3.5 | I52: 0 | J52: 0 | K52: 18.5 | L52: 3 | M52: 0 | N52: 46 | O52: 2019-06-16 | Q52: 1 | T52: 1 | V52: 1 | Y52: 1 | Z52: 1
A53: 6 | B53: 17 | C53: 4 | D53: 0 | E53: 0 | F53: 0 | G53: 0 | H53: 0 | I53: 0 | J53: 0 | K53: 1 | L53: 12.5 | M53: 0 | N53: 47 | O53: 2019-06-17 | Q53: 1 | T53: 1 | Y53: 1 | Z53: 1
A54: 6 | B54: 18 | C54: 40 | D54: 0 | E54: 0 | F54: 4 | G54: 23 | H54: 0 | I54: 0 | J54: 0 | K54: 0 | L54: 6 | M54: 0.5 | N54: 48 | O54: 2019-06-18 | Q54: 1 | T54: 1 | U54: 1 | Z54: 1
A55: 6 | B55: 19 | C55: 0 | D55: 0 | E55: 0 | F55: 14 | G55: 55 | H55: 0 | I55: 2.5 | J55: 0 | K55: 10 | L55: 12 | M55: 0 | N55: 49 | O55: 2019-06-19 | Q55: 1 | T55: 1 | U55: 1 | W55: 1 | Y55: 1 | Z55: 1
A56: 6 | B56: 20 | C56: 0 | D56: 0 | E56: 0 | F56: 0 | G56: 0 | H56: 0 | I56: 38.5 | J56: 0.5 | K56: 3 | L56: 1 | M56: 0 | N56: 50 | O56: 2019-06-20 | Q56: 1 | T56: 1 | U56: 1 | W56: 1 | Y56: 1 | Z56: 1
A57: 6 | B57: 21 | C57: 13 | D57: 0 | E57: 20 | F57: 0 | G57: 0 | H57: 0 | I57: 0 | J57: 49.5 | K57: 29 | L57: 12 | M57: 0 | N57: 51 | O57: 2019-06-21 | Q57: 1 | S57: 1 | U57: 1 | W57: 1 | X57: 1 | Y57: 1 | Z57: 1
A58: 6 | B58: 22 | C58: 14.5 | D58: 31.5 | E58: 9.5 | F58: 0 | G58: 0 | H58: 0 | I58: 0 | J58: 0 | K58: 14.5 | L58: 0 | M58: 5 | N58: 52 | O58: 2019-06-22 | Q58: 1 | R58: 1 | S58: 1 | W58: 1 | X58: 1 | Y58: 1 | Z58: 1 | AA58: 1
A59: 6 | B59: 23 | C59: 17 | D59: 2.5 | E59: 0 | F59: 0 | G59: 0 | H59: 0 | I59: 10 | J59: 0 | K59: 18 | L59: 0.5 | M59: 0.5 | N59: 53 | O59: 2019-06-23 | Q59: 1 | R59: 1 | W59: 1 | X59: 1 | Y59: 1
A60: 6 | B60: 24 | C60: 0 | D60: 0 | E60: 0 | F60: 12 | G60: 0 | H60: 0 | I60: 0 | J60: 3 | K60: 12 | L60: 22.5 | M60: 0 | N60: 54 | O60: 2019-06-24 | Q60: 1 | R60: 1 | T60: 1 | W60: 1 | X60: 1 | Y60: 1 | Z60: 1
A61: 6 | B61: 25 | C61: 0 | D61: 0 | E61: 5.5 | F61: 0 | G61: 3.5 | H61: 0 | I61: 0 | J61: 6 | K61: 23 | L61: 0 | M61: 0 | N61: 55 | O61: 2019-06-25 | S61: 1 | T61: 1 | U61: 1 | X61: 1 | Y61: 1 | Z61: 1
A62: 6 | B62: 26 | C62: 0 | D62: 18 | E62: 0 | F62: 0 | G62: 3.5 | H62: 0.5 | I62: 0 | J62: 0 | K62: 0 | L62: 25 | M62: 7.5 | N62: 56 | O62: 2019-06-26 | R62: 1 | U62: 1 | Y62: 1 | Z62: 1 | AA62: 1
A63: 6 | B63: 27 | C63: 5 | D63: 0.5 | E63: 0 | F63: 0 | G63: 0 | H63: 14 | I63: 0 | J63: 0.5 | K63: 24 | L63: 0 | M63: 0 | N63: 57 | O63: 2019-06-27 | Q63: 1 | R63: 1 | V63: 1 | Y63: 1 | Z63: 1
A64: 6 | B64: 28 | C64: 67 | D64: 6 | E64: 0 | F64: 0 | G64: 17.5 | H64: 0.5 | I64: 12 | J64: 5.5 | K64: 9 | L64: 1 | M64: 15 | N64: 58 | O64: 2019-06-28 | Q64: 1 | R64: 1 | U64: 1 | V64: 1 | W64: 1 | X64: 1 | Y64: 1 | AA64: 1
A65: 6 | B65: 29 | C65: 2.5 | D65: 6 | E65: 0 | F65: 1.5 | G65: 0 | H65: 2 | I65: 47 | J65: 1 | K65: 14 | L65: 0 | M65: 21 | N65: 59 | O65: 2019-06-29 | Q65: 1 | R65: 1 | U65: 1 | V65: 1 | W65: 1 | Y65: 1 | AA65: 1
A66: 6 | B66: 30 | C66: 6.5 | D66: 10.5 | E66: 0 | F66: 2.5 | G66: 47 | H66: 26.5 | I66: 4 | J66: 44 | K66: 2.5 | L66: 14.5 | M66: 0 | N66: 60 | O66: 2019-06-30 | Q66: 1 | R66: 1 | T66: 1 | U66: 1 | V66: 1 | W66: 1 | X66: 1 | Y66: 1 | Z66: 1 | AA66: 1
A67: 7 | B67: 1 | C67: 34 | D67: 8.5 | E67: 0 | F67: 13 | G67: 3.5 | H67: 4.5 | I67: 0 | J67: 5.5 | K67: 0 | L67: 18 | M67: 0 | N67: 61 | O67: 2019-07-01 | Q67: =IF(C67>=$C$108,1,IF(C66>=$C$109,1,IF(C65>=$C$110,1,""))) -> 1
A68: 7 | B68: 2 | C68: 6.5 | D68: 0 | E68: 0 | F68: 3 | G68: 0 | H68: 1 | I68: 0 | J68: 40 | K68: 0 | L68: 0 | M68: 0 | N68: 62 | O68: 2019-07-02 | Q68: 1
A69: 7 | B69: 3 | C69: 0 | D69: 0 | E69: 86.5 | F69: 0.5 | G69: 38 | H69: 4.5 | I69: 0 | J69: 0 | K69: 7 | L69: 0 | M69: 13 | N69: 63 | O69: 2019-07-03 | Q69: 1 | R69: =IF(D69>=$C$108,1,IF(D68>=$C$109,1,IF(D67>=$C$110,1,""))) ->  | S69: =IF(E69>=$C$108,1,IF(E68>=$C$109,1,IF(E67>=$C$110,1,""))) -> 1 | T69: =IF(F69>=$C$108,1,IF(F68>=$C$109,1,IF(F67>=$C$110,1,""))) ->  | U69: =IF(G69>=$C$108,1,IF(G68>=$C$109,1,IF(G67>=$C$110,1,""))) -> 1 | V69: =IF(H69>=$C$108,1,IF(H68>=$C$109,1,IF(H67>=$C$110,1,""))) -> 1 | W69: =IF(I69>=$C$108,1,IF(I68>=$C$109,1,IF(I67>=$C$110,1,""))) ->  | X69: =IF(J69>=$C$108,1,IF(J68>=$C$109,1,IF(J67>=$C$110,1,""))) -> 1 | Y69: =IF(K69>=$C$108,1,IF(K68>=$C$109,1,IF(K67>=$C$110,1,""))) -> 1 | Z69: =IF(L69>=$C$108,1,IF(L68>=$C$109,1,IF(L67>=$C$110,1,""))) ->  | AA69: =IF(M69>=$C$108,1,IF(M68>=$C$109,1,IF(M67>=$C$110,1,""))) -> 1
A70: 7 | B70: 4 | C70: 7.5 | D70: 0 | E70: 6 | F70: 1 | G70: 13 | H70: 4.5 | I70: 23.5 | J70: 30.5 | K70: 0 | L70: 13 | M70: 9.5 | N70: 64 | O70: 2019-07-04 | Q70: 1 | S70: 1 | U70: 1 | V70: 1 | W70: 1 | X70: 1 | Z70: 1 | AA70: 1
A71: 7 | B71: 5 | C71: 0 | D71: 10.5 | E71: 1.5 | F71: 0 | G71: 0 | H71: 0 | I71: 175 | J71: 16.5 | K71: 0 | L71: 0 | M71: 8.5 | N71: 65 | O71: 2019-07-05 | R71: 1 | S71: 1 | U71: 1 | W71: 1 | X71: 1 | Z71: 1 | AA71: 1
A72: 7 | B72: 6 | C72: 22.5 | D72: 0 | E72: 0 | F72: 0 | G72: 31 | H72: 0 | I72: 91.5 | J72: 0 | K72: 0 | L72: 0.5 | M72: 25 | N72: 66 | O72: 2019-07-06 | Q72: 1 | R72: 1 | U72: 1 | W72: 1 | X72: 1 | AA72: 1
A73: 7 | B73: 7 | C73: 0 | D73: 0.5 | E73: 0 | F73: 76 | G73: 10.5 | H73: 0 | I73: 70 | J73: 0.5 | K73: 0 | L73: 11.5 | M73: 1.5 | N73: 67 | O73: 2019-07-07 | Q73: 1 | T73: 1 | U73: 1 | W73: 1 | Z73: 1 | AA73: 1
A74: 7 | B74: 8 | C74: 0 | D74: 2.5 | E74: 1 | F74: 17.5 | G74: 61 | H74: 0 | I74: 0 | J74: 0 | K74: 3 | L74: 1.5 | M74: 0 | N74: 68 | O74: 2019-07-08 | R74: 1 | T74: 1 | U74: 1 | W74: 1 | Y74: 1 | Z74: 1
A75: 7 | B75: 9 | C75: 15.5 | D75: 13 | E75: 33 | F75: 6.5 | G75: 2.5 | H75: 0 | I75: 0 | J75: 28 | K75: 18 | L75: 5 | M75: 0 | N75: 69 | O75: 2019-07-09 | Q75: 1 | R75: 1 | S75: 1 | T75: 1 | U75: 1 | W75: 1 | X75: 1 | Y75: 1 | Z75: 1
A76: 7 | B76: 10 | C76: 1.5 | D76: 1 | E76: 7.5 | F76: 1 | G76: 75.5 | H76: 0 | I76: 0 | J76: 0.5 | K76: 0 | L76: 0 | M76: 14.5 | N76: 70 | O76: 2019-07-10 | Q76: 1 | R76: 1 | S76: 1 | U76: 1 | X76: 1 | Y76: 1 | AA76: 1
A77: 7 | B77: 11 | C77: 13.5 | D77: 0 | E77: 0 | F77: 7.5 | G77: 10.5 | H77: 19.5 | I77: 0 | J77: 0 | K77: 0 | L77: 0 | M77: 12.5 | N77: 71 | O77: 2019-07-11 | Q77: 1 | S77: 1 | T77: 1 | U77: 1 | V77: 1 | AA77: 1
A78: 7 | B78: 12 | C78: 20 | D78: 36 | E78: 40 | F78: 2.5 | G78: 1 | H78: 2 | I78: 0 | J78: 0 | K78: 5 | L78: 0 | M78: 0 | N78: 72 | O78: 2019-07-12 | Q78: 1 | R78: 1 | S78: 1 | T78: 1 | U78: 1 | V78: 1 | Y78: 1 | AA78: 1
A79: 7 | B79: 13 | C79: 0 | D79: 30 | E79: 1.5 | F79: 47 | G79: 25 | H79: 11 | I79: 0 | J79: 0 | K79: 16 | L79: 0 | M79: 7 | N79: 73 | O79: 2019-07-13 | Q79: 1 | R79: 1 | S79: 1 | T79: 1 | U79: 1 | V79: 1 | Y79: 1 | AA79: 1
A80: 7 | B80: 14 | C80: 11 | D80: 0 | E80: 13.5 | F80: 0 | G80: 26.5 | H80: 20.5 | I80: 0 | J80: 0 | K80: 11 | L80: 0 | M80: 0.5 | N80: 74 | O80: 2019-07-14 | Q80: 1 | R80: 1 | S80: 1 | T80: 1 | U80: 1 | V80: 1 | Y80: 1
A81: 7 | B81: 15 | C81: 25.5 | D81: 0 | E81: 3 | F81: 5.5 | G81: 0 | H81: 2 | I81: 0 | J81: 0 | K81: 0 | L81: 0 | M81: 0 | N81: 75 | O81: 2019-07-15 | Q81: 1 | R81: 1 | S81: 1 | T81: 1 | U81: 1 | V81: 1 | Y81: 1
A82: 7 | B82: 16 | C82: 9.5 | D82: 0.5 | E82: 0.5 | F82: 3 | G82: 0 | H82: 1 | I82: 0 | J82: 15 | K82: 0 | L82: 22.5 | M82: 0 | N82: 76 | O82: 2019-07-16 | Q82: 1 | T82: 1 | X82: 1 | Z82: 1
A83: 7 | B83: 17 | C83: 3.5 | D83: 0 | E83: 2.5 | F83: 0 | G83: 1.5 | H83: 0 | I83: 0 | J83: 19 | K83: 1.5 | L83: 135 | M83: 0 | N83: 77 | O83: 2019-07-17 | Q83: 1 | S83: 1 | X83: 1 | Z83: 1
A84: 7 | B84: 18 | C84: 0 | D84: 0 | E84: 0 | F84: 0 | G84: 4 | H84: 13 | I84: 0 | J84: 28 | K84: 0 | L84: 13 | M84: 5.5 | N84: 78 | O84: 2019-07-18 | U84: 1 | V84: 1 | X84: 1 | Z84: 1 | AA84: 1
A85: 7 | B85: 19 | C85: 0 | D85: 1 | E85: 43.5 | F85: 0 | G85: 0 | H85: 20.5 | I85: 0 | J85: 0 | K85: 0 | L85: 2 | M85: 4 | N85: 79 | O85: 2019-07-19 | S85: 1 | V85: 1 | X85: 1 | Z85: 1 | AA85: 1
A86: 7 | B86: 20 | C86: 0 | D86: 0 | E86: 0 | F86: 0 | G86: 0 | H86: 0.5 | I86: 0 | J86: 0 | K86: 0 | L86: 0 | M86: 0 | N86: 80 | O86: 2019-07-20 | S86: 1 | V86: 1
A87: 7 | B87: 21 | C87: 0 | D87: 0 | E87: 4 | F87: 0 | G87: 36 | H87: 0 | I87: 0 | J87: 0 | K87: 0 | L87: 0 | M87: 0 | N87: 81 | O87: 2019-07-21 | S87: 1 | U87: 1
A88: 7 | B88: 22 | C88: 6.5 | D88: 0 | E88: 18 | F88: 0 | G88: 1 | H88: 21.5 | I88: 0 | J88: 0 | K88: 0 | L88: 16.5 | M88: 0 | N88: 82 | O88: 2019-07-22 | Q88: 1 | S88: 1 | U88: 1 | V88: 1 | Z88: 1
A89: 7 | B89: 23 | C89: 0 | D89: 0 | E89: 3.5 | F89: 0 | G89: 0 | H89: 3.5 | I89: 0 | J89: 0 | K89: 0 | L89: 18 | M89: 0 | N89: 83 | O89: 2019-07-23 | S89: 1 | U89: 1 | V89: 1 | Z89: 1
A90: 7 | B90: 24 | C90: 12.5 | D90: 0 | E90: 0 | F90: 0 | G90: 29.5 | H90: 0 | I90: 0 | J90: 0 | K90: 0 | L90: 0 | M90: 0 | N90: 84 | O90: 2019-07-24 | Q90: 1 | U90: 1 | Z90: 1
A91: 7 | B91: 25 | C91: 0 | D91: 0 | E91: 0 | F91: 0 | G91: 33.5 | H91: 2.5 | I91: 0 | J91: 2.5 | K91: 0 | L91: 0 | M91: 0 | N91: 85 | O91: 2019-07-25 | Q91: 1 | U91: 1 | V91: 1 | X91: 1
A92: 7 | B92: 26 | C92: 0 | D92: 0 | E92: 0 | F92: 0 | G92: 4 | H92: 0.5 | I92: 0 | J92: 1 | K92: 19 | L92: 0 | M92: 0 | N92: 86 | O92: 2019-07-26 | U92: 1 | Y92: 1
A93: 7 | B93: 27 | C93: 0 | D93: 0 | E93: 9 | F93: 0 | G93: 2 | H93: 10.5 | I93: 0.5 | J93: 3.5 | K93: 0 | L93: 0 | M93: 13.5 | N93: 87 | O93: 2019-07-27 | S93: 1 | U93: 1 | V93: 1 | X93: 1 | Y93: 1 | AA93: 1
A94: 7 | B94: 28 | C94: 0 | D94: 0 | E94: 0 | F94: 0 | G94: 0.5 | H94: 0 | I94: 0 | J94: 0 | K94: 0 | L94: 40.5 | M94: 0 | N94: 88 | O94: 2019-07-28 | V94: 1 | Z94: 1 | AA94: 1
A95: 7 | B95: 29 | C95: 0 | D95: 0 | E95: 0 | F95: 0 | G95: 2 | H95: 0 | I95: 21.5 | J95: 0 | K95: 0 | L95: 10 | M95: 0 | N95: 89 | O95: 2019-07-29 | U95: 1 | W95: 1 | Z95: 1
A96: 7 | B96: 30 | C96: 0 | D96: 0 | E96: 0 | F96: 0 | G96: 5 | H96: 0 | I96: 0 | J96: 8.5 | K96: 0 | L96: 0 | M96: 0 | N96: 90 | O96: 2019-07-30 | U96: 1 | W96: 1 | X96: 1 | Z96: 1
A97: 7 | B97: 31 | C97: 0 | D97: 0 | E97: 0 | F97: 0 | G97: 0 | H97: 0 | I97: 0 | J97: 8.5 | K97: 0 | L97: 0 | M97: 0 | N97: 91 | O97: 2019-07-31 | X97: 1
A98: 8 | B98: 1 | C98: 0 | D98: 0 | E98: 0 | F98: 0.5 | G98: 0 | H98: 0 | I98: 0 | J98: 0 | K98: 0 | L98: 0 | M98: 0 | N98: 92 | O98: 2019-08-01
A99: 8 | B99: 2 | C99: 0 | D99: 0 | E99: 0 | F99: 0 | G99: 0 | H99: 0 | I99: 0 | J99: 0 | K99: 0 | L99: 0 | M99: 0 | N99: 93 | O99: 2019-08-02
A100: 8 | B100: 3 | C100: 0 | D100: 0 | E100: 5.5 | F100: 28 | G100: 0 | H100: 0 | I100: 0 | J100: 0 | K100: 0 | L100: 0 | M100: 3 | N100: 94 | O100: 2019-08-03 | S100: 1 | T100: 1 | AA100: 1
A101: 8 | B101: 4 | C101: 0 | D101: 0 | E101: 15.5 | F101: 0 | G101: 0 | H101: 0 | I101: 0 | J101: 0 | K101: 0 | L101: 0 | M101: 6.5 | N101: 95 | O101: 2019-08-04 | S101: 1 | T101: 1 | AA101: 1
A102: 8 | B102: 5 | C102: 0 | D102: 0 | E102: 0 | F102: 0 | G102: 0 | H102: 0 | I102: 0 | J102: 0 | K102: 0 | L102: 0 | M102: 0 | N102: 96 | O102: 2019-08-05 | S102: 1
A103: 8 | B103: 6 | C103: 0 | D103: 0 | E103: 0 | F103: 0 | G103: 0 | H103: 1.5 | I103: 0 | J103: 0 | K103: 0 | L103: 0 | M103: 49 | N103: 97 | O103: 2019-08-06 | AA103: 1
B105: 土寄せ作業可能か どうかの判断条件 | E105: 判断日 | F105: =判断日 -> 2025-06-01 | I105: 判断年 | J105: =YEAR(判断日) -> 2025 | P105: 可能日の | Q105: 1 | R105: 2 | S105: 3 | T105: 4 | U105: 5 | V105: 6 | W105: 7 | X105: 8 | Y105: 9 | Z105: 10 | AA105: 11
F106: 適期始 | G106: 適期終 | J106: 5/1から数えて | P106: 10年平均 | Q106: 作業可能日 | R106: 作業可能日 | S106: 作業可能日 | T106: 作業可能日 | U106: 作業可能日 | V106: 作業可能日 | W106: 作業可能日 | X106: 作業可能日 | Y106: 作業可能日 | Z106: 作業可能日 | AA106: 作業可能日 | AB106: 近5年平均 | AC106: 近3年平均 | AD106: 最多日数 | AE106: 最少日数
B107: 作業できない降雨量mm | E107: 土寄① | F107: =土寄①始修正 -> 2025-06-21 | G107: =土寄①終修正 -> 2025-07-01 | I107: 土寄①適期始は | J107: =$F$107-DATEVALUE(TEXT(判断年,"####")&"/5/1") -> 51 | K107: 日後 | O107: 5月 | P107: =AVERAGE(Q107:Z107) -> 19.5 | Q107: =31-SUM(Q$6:Q$36) -> 18 | R107: =31-SUM(R$6:R$36) -> 17 | S107: =31-SUM(S$6:S$36) -> 21 | T107: 15 | U107: 20 | V107: 22 | W107: 18 | X107: 24 | Y107: 19 | Z107: 21 | AA107: 22 | AB107: =AVERAGE(Q107:U107) -> 18.2 | AC107: =AVERAGE(Q107:S107) -> 18.66666667 | AD107: =MAX(Q107:Z107) -> 24 | AE107: =MIN(Q107:Z107) -> 15
B108: 当日 | C108: =入力表!C26 -> 2 | D108: mm | E108: 土寄② | F108: =土寄②始修正 -> 2025-07-06 | G108: =土寄②終 -> 2025-07-16 | I108: 土寄①適期終は | J108: =$G$107-DATEVALUE(TEXT($J$105,"####")&"/5/1") -> 61 | K108: 日後 | O108: 6月 | P108: 14.9 | Q108: =30-SUM(Q$37:Q$66) -> 15 | R108: =30-SUM(R$37:R$66) -> 11 | S108: =30-SUM(S$37:S$66) -> 21 | T108: 16 | U108: 15 | V108: 22 | W108: 11 | X108: 19 | Y108: 9 | Z108: 10 | AA108: 19 | AB108: =AVERAGE(Q108:U108) -> 15.6 | AC108: =AVERAGE(Q108:S108) -> 15.66666667 | AD108: =MAX(Q108:Z108) -> 22 | AE108: =MIN(Q108:Z108) -> 9
B109: 翌日 | C109: =入力表!C27 -> 10 | D109: mm | E109: 除草剤 | F109: =茎葉始 -> 2025-07-13 | G109: =茎葉終 -> 2025-07-23 | I109: 土寄②適期始は | J109: =$F$108-DATEVALUE(TEXT($J$105,"####")&"/5/1") -> 66 | K109: 日後 | O109: 7月 | P109: 17.2 | Q109: =31-SUM(Q$67:Q$97) -> 13 | R109: =31-SUM(R$67:R$97) -> 22 | S109: =31-SUM(S$67:S$97) -> 14 | T109: 22 | U109: 8 | V109: 16 | W109: 23 | X109: 17 | Y109: 21 | Z109: 16 | AA109: 18 | AB109: 15.8 | AC109: 16.33333333 | AD109: 23 | AE109: 8
B110: ２日後 | C110: =入力表!C28 -> 30 | D110: mm | E110: 摘心 | F110: =摘心始 -> 7/1以降の主茎長で判断 | G110: =摘心終 -> 2025-07-21 | I110: 土寄②適期終は | J110: =$G$108-DATEVALUE(TEXT($J$105,"####")&"/5/1") -> 76 | K110: 日後 | O110: 6/25-7/24 | P110: 15.5 | Q110: =30-SUM(Q$61:Q$90) -> 9 | R110: =31-SUM(R$61:R$90) -> 17 | S110: =31-SUM(S$61:S$90) -> 14 | T110: 20 | U110: 8 | V110: 15 | W110: 22 | X110: 18 | Y110: 17 | Z110: 15 | AA110: 16 | AB110: 13.6 | AC110: 13.33333333 | AD110: 22 | AE110: 8
C111: ↑ | I111: 除草剤適期始行 | J111: =$F$109-DATEVALUE(TEXT($J$105,"####")&"/5/1") -> 73 | K111: 日後 | N111: 土寄せ①適期日数 | O111: =G107-F107+1 -> 11 | P111: 5.3 | Q111: =$O111-SUM(OFFSET(表の5月1日位置,$J$107,Q$105,$J$108-$J$107+1,1)) -> 11 | R111: =$O111-SUM(OFFSET(表の5月1日位置,$J$107,R105,$J$108-$J$107+1,1)) -> 2 | S111: 3 | T111: 8 | U111: 8 | V111: 5 | W111: 7 | X111: 4 | Y111: 4 | Z111: 1 | AA111: 4 | AB111: 6.4 | AC111: 5.333333333 | AD111: 11 | AE111: 1
C112: 入力された条件 | I112: 除草剤適期終行 | J112: =$G$109-DATEVALUE(TEXT($J$105,"####")&"/5/1") -> 83 | K112: 日後 | N112: 土寄せ②適期日数 | O112: =G108-F108+1 -> 11 | P112: 4.6 | Q112: =$O112-SUM(OFFSET(表の5月1日位置,$J$109,Q$105,$J$110-$J$109+1,1)) -> 11 | R112: 1 | S112: 3 | T112: 4 | U112: 2 | V112: 1 | W112: 6 | X112: 7 | Y112: 7 | Z112: 4 | AA112: 7 | AB112: 4.2 | AC112: 5 | AD112: 11 | AE112: 1
I113: 摘心適期始行 | J113: =$F$110-DATEVALUE(TEXT($J$105,"####")&"/5/1") ->  | K113: 日後 | N113: 除草剤適期日数 | O113: =G109-F109+1 -> 11 | P113: 6.6 | Q113: =$O113-COUNTIF(OFFSET(表の5月1日位置,$J$111,-13+Q$105,$J$112-$J$111+1,1),">=1") -> 6 | R113: 9 | S113: 3 | T113: 8 | U113: 5 | V113: 3 | W113: 11 | X113: 8 | Y113: 8 | Z113: 5 | AA113: 8 | AB113: 6.2 | AC113: 6 | AD113: 11 | AE113: 3
D114: 土寄① | E114: 土寄② | F114: 除草剤 | G114: 摘心 | I114: 摘心適期終行 | J114: =$G$110-DATEVALUE(TEXT($J$105,"####")&"/5/1") -> 81 | K114: 日後 | N114: 摘心適期日数 | O114: =G110-F110+1 ->  | Q114: =$O114-COUNTIF(OFFSET(表の5月1日位置,$J$113,-13+Q$105,$J$114-$J$113+1,1),">=1") -> 
A115: 適期作業の確率 | D115: =P111/O111 -> 0.4818181818 | E115: =P112/O112 -> 0.4181818182 | F115: =P113/O113 -> 0.6 | G115: =P114/O114 ->  | O115: 7月の1mm以上降雨日数 | P115: =AVERAGE(R115:AA115) -> 12.4 | Q115: =COUNTIF(C67:C97,">=1") -> 14 | R115: 8 | S115: 16 | T115: 12 | U115: 22 | V115: 16 | W115: 5 | X115: 13 | Y115: 8 | Z115: 13 | AA115: 11 | AB115: =AVERAGE(R115:V115) -> 14.8 | AC115: =AVERAGE(R115:T115) -> 12 | AD115: =MAX(R115:AA115) -> 22 | AE115: =MIN(R115:AA115) -> 5

Sheet アメダス美山
B1: 降雨日から見た黒大豆作業の検討 | J1: ="（"&C3&"～"&L3&"年平均）" -> （2022～2013年平均）
B2: アメダス美山データ
A3: 月 | B3: 日 | C3: 2022 | D3: 2021 | E3: 2020 | F3: 2019 | G3: 2018 | H3: 2017 | I3: 2016 | J3: 2015 | K3: 2014 | L3: 2013 | M3: 2012 | Q3: =C3 -> 2022 | R3: 2021 | S3: 2020 | T3: 2019 | U3: 2018 | V3: 2017 | W3: 2016 | X3: 2015 | Y3: 2014 | Z3: 2013 | AA3: 2012
A4: 4 | B4: 29 | C4: 53 | D4: 66.5 | E4: 0 | F4: 18 | G4: 0 | H4: 6.5 | I4: 0.5 | J4: 0 | K4: 37 | L4: 0 | M4: 0 | O4: 2019-04-29 | Q4: =IF(C4>=$C$108,1,"") -> 1 | R4: 1 | T4: 1 | V4: 1 | Y4: 1
A5: 4 | B5: 30 | C5: 0.5 | D5: 0.5 | E5: 0 | F5: 17 | G5: 0 | H5: 0 | I5: 0 | J5: 0 | K5: 7.5 | L5: 5.5 | M5: 0 | O5: 2019-04-30 | Q5: =IF(C5>=$C$108,1,IF(C4>=$C$109,1,"")) -> 1 | R5: 1 | T5: 1 | Y5: 1 | Z5: 1
A6: 5 | B6: 1 | C6: 25.5 | D6: 5 | E6: 0 | F6: 10 | G6: 0 | H6: 0 | I6: 0 | J6: 0 | K6: 0 | L6: 3 | M6: 0 | N6: 0 | O6: 2019-05-01 | Q6: =IF(C6>=$C$108,1,IF(C5>=$C$109,1,IF(C4>=$C$110,1,""))) -> 1 | R6: 1 | T6: 1 | Y6: 1 | Z6: 1
A7: 5 | B7: 2 | C7: 0 | D7: 10 | E7: 0 | F7: 0 | G7: 5 | H7: 0 | I7: 0 | J7: 0 | K7: 0 | L7: 3.5 | M7: 17 | N7: 1 | O7: 2019-05-02 | Q7: 1 | R7: 1 | T7: 1 | U7: 1 | Z7: 1 | AA7: 1
A8: 5 | B8: 3 | C8: 0 | D8: 0 | E8: 0.5 | F8: 0 | G8: 2.5 | H8: 0 | I8: 4 | J8: 0 | K8: 0 | L8: 0 | M8: 1 | N8: 2 | O8: 2019-05-03 | R8: 1 | U8: 1 | W8: 1 | AA8: 1
A9: 5 | B9: 4 | C9: 0 | D9: 0 | E9: 1 | F9: 0 | G9: 0.5 | H9: 0 | I9: 4 | J9: 6 | K9: 0 | L9: 2 | M9: 3.5 | N9: 3 | O9: 2019-05-04 | W9: 1 | X9: 1 | Z9: 1 | AA9: 1
A10: 5 | B10: 5 | C10: 0 | D10: 11 | E10: 0 | F10: 0 | G10: 0 | H10: 0 | I10: 0 | J10: 0 | K10: 0 | L10: 0 | M10: 0 | N10: 4 | O10: 2019-05-05 | R10: 1
A11: 5 | B11: 6 | C11: 0 | D11: 0 | E11: 3.5 | F11: 21 | G11: 16.5 | H11: 2 | I11: 14 | J11: 0 | K11: 0 | L11: 0 | M11: 5 | N11: 5 | O11: 2019-05-06 | R11: 1 | S11: 1 | T11: 1 | U11: 1 | V11: 1 | W11: 1 | AA11: 1
A12: 5 | B12: 7 | C12: 0 | D12: 0.5 | E12: 0 | F12: 0 | G12: 43 | H12: 0 | I12: 0 | J12: 1 | K12: 0 | L12: 0 | M12: 5.5 | N12: 6 | O12: 2019-05-07 | T12: 1 | U12: 1 | W12: 1 | AA12: 1
A13: 5 | B13: 8 | C13: 0 | D13: 0 | E13: 0 | F13: 0 | G13: 11 | H13: 0 | I13: 0 | J13: 1 | K13: 1 | L13: 0 | M13: 0 | N13: 7 | O13: 2019-05-08 | U13: 1
A14: 5 | B14: 9 | C14: 0 | D14: 0.5 | E14: 4.5 | F14: 0 | G14: 8.5 | H14: 4.5 | I14: 11 | J14: 0 | K14: 3.5 | L14: 0 | M14: 0 | N14: 8 | O14: 2019-05-09 | S14: 1 | U14: 1 | V14: 1 | W14: 1 | Y14: 1
A15: 5 | B15: 10 | C15: 0 | D15: 0 | E15: 5 | F15: 0 | G15: 0 | H15: 5 | I15: 1.5 | J15: 0 | K15: 0 | L15: 6.5 | M15: 0 | N15: 9 | O15: 2019-05-10 | S15: 1 | V15: 1 | W15: 1 | Z15: 1
A16: 5 | B16: 11 | C16: 0 | D16: 0 | E16: 0 | F16: 0 | G16: 0 | H16: 0 | I16: 33.5 | J16: 0 | K16: 0 | L16: 12.5 | M16: 0 | N16: 10 | O16: 2019-05-11 | W16: 1 | Z16: 1
A17: 5 | B17: 12 | C17: 7.5 | D17: 1.5 | E17: 0 | F17: 0 | G17: 0 | H17: 0.5 | I17: 0 | J17: 49 | K17: 9 | L17: 0 | M17: 1.5 | N17: 11 | O17: 2019-05-12 | Q17: 1 | W17: 1 | X17: 1 | Y17: 1 | Z17: 1
A18: 5 | B18: 13 | C18: 13.5 | D18: 0 | E18: 0 | F18: 0 | G18: 51 | H18: 27 | I18: 0 | J18: 0 | K18: 1.5 | L18: 0 | M18: 0 | N18: 12 | O18: 2019-05-13 | Q18: 1 | U18: 1 | V18: 1 | W18: 1 | X18: 1
A19: 5 | B19: 14 | C19: 15 | D19: 0 | E19: 0 | F19: 0.5 | G19: 0.5 | H19: 0 | I19: 0 | J19: 0 | K19: 0 | L19: 0 | M19: 0.5 | N19: 13 | O19: 2019-05-14 | Q19: 1 | U19: 1 | V19: 1 | X19: 1
A20: 5 | B20: 15 | C20: 0 | D20: 0 | E20: 2 | F20: 0 | G20: 0 | H20: 0 | I20: 0 | J20: 0 | K20: 6.5 | L20: 0 | M20: 7.5 | N20: 14 | O20: 2019-05-15 | Q20: 1 | S20: 1 | U20: 1 | Y20: 1 | AA20: 1
A21: 5 | B21: 16 | C21: 0 | D21: 7 | E21: 51 | F21: 0 | G21: 0 | H21: 0 | I21: 60.5 | J21: 34 | K21: 0 | L21: 0 | M21: 0 | N21: 15 | O21: 2019-05-16 | R21: 1 | S21: 1 | W21: 1 | X21: 1
A22: 5 | B22: 17 | C22: 0 | D22: 34 | E22: 0 | F22: 0 | G22: 0 | H22: 0 | I22: 2.5 | J22: 0 | K22: 0 | L22: 0 | M22: 0 | N22: 16 | O22: 2019-05-17 | R22: 1 | S22: 1 | W22: 1 | X22: 1
A23: 5 | B23: 18 | C23: 0 | D23: 1.5 | E23: 17 | F23: 0 | G23: 13.5 | H23: 0 | I23: 0 | J23: 8 | K23: 0 | L23: 0 | M23: 0 | N23: 17 | O23: 2019-05-18 | R23: 1 | S23: 1 | U23: 1 | W23: 1 | X23: 1
A24: 5 | B24: 19 | C24: 0 | D24: 1 | E24: 1 | F24: 0 | G24: 2.5 | H24: 0 | I24: 0 | J24: 6 | K24: 0 | L24: 10.5 | M24: 0 | N24: 18 | O24: 2019-05-19 | R24: 1 | S24: 1 | U24: 1 | X24: 1 | Z24: 1
A25: 5 | B25: 20 | C25: 0 | D25: 40.5 | E25: 0 | F25: 4 | G25: 0 | H25: 0 | I25: 0 | J25: 1.5 | K25: 8 | L25: 1.5 | M25: 0 | N25: 19 | O25: 2019-05-20 | R25: 1 | T25: 1 | Y25: 1 | Z25: 1
A26: 5 | B26: 21 | C26: 0.5 | D26: 28 | E26: 0 | F26: 28 | G26: 0 | H26: 0 | I26: 0 | J26: 0.5 | K26: 37.5 | L26: 0 | M26: 0 | N26: 20 | O26: 2019-05-21 | R26: 1 | T26: 1 | Y26: 1
A27: 5 | B27: 22 | C27: 2 | D27: 0 | E27: 0 | F27: 0 | G27: 0 | H27: 0 | I27: 0 | J27: 0 | K27: 0 | L27: 0 | M27: 16 | N27: 21 | O27: 2019-05-22 | Q27: 1 | R27: 1 | T27: 1 | Y27: 1 | AA27: 1
A28: 5 | B28: 23 | C28: 0 | D28: 0 | E28: 0 | F28: 0 | G28: 5.5 | H28: 0 | I28: 0 | J28: 0 | K28: 0.5 | L28: 0 | M28: 0 | N28: 22 | O28: 2019-05-23 | U28: 1 | Y28: 1 | AA28: 1
A29: 5 | B29: 24 | C29: 0 | D29: 6 | E29: 0 | F29: 0 | G29: 0 | H29: 2.5 | I29: 0 | J29: 0 | K29: 0 | L29: 0 | M29: 0 | N29: 23 | O29: 2019-05-24 | R29: 1 | S29: =IF(E29>=$C$108,1,IF(E28>=$C$109,1,IF(E27>=$C$110,1,""))) ->  | V29: 1
A30: 5 | B30: 25 | C30: 0 | D30: 0 | E30: 0 | F30: 0 | G30: 0 | H30: 12 | I30: 0 | J30: 0 | K30: 0 | L30: 0 | M30: 2 | N30: 24 | O30: 2019-05-25 | Q30: =IF(C30>=$C$108,1,IF(C29>=$C$109,1,IF(C28>=$C$110,1,""))) ->  | V30: 1 | AA30: 1
A31: 5 | B31: 26 | C31: 3.5 | D31: 0 | E31: 11 | F31: 0 | G31: 0 | H31: 0 | I31: 1.5 | J31: 0 | K31: 7.5 | L31: 0 | M31: 0 | N31: 25 | O31: 2019-05-26 | Q31: 1 | S31: 1 | V31: 1 | Y31: 1
A32: 5 | B32: 27 | C32: 7 | D32: 28 | E32: 0 | F32: 0 | G32: 0 | H32: 0 | I32: 3 | J32: 0 | K32: 0 | L32: 0 | M32: 0 | N32: 26 | O32: 2019-05-27 | Q32: 1 | R32: 1 | S32: 1 | W32: 1
A33: 5 | B33: 28 | C33: 0 | D33: 0 | E33: 0 | F33: 40.5 | G33: 0 | H33: 0 | I33: 0 | J33: 0 | K33: 0 | L33: 13.5 | M33: 2 | N33: 27 | O33: 2019-05-28 | R33: 1 | T33: 1 | Z33: 1 | AA33: 1
A34: 5 | B34: 29 | C34: 0 | D34: 0 | E34: 0 | F34: 0 | G34: 0 | H34: 0 | I34: 12.5 | J34: 0 | K34: 0 | L34: 9.5 | M34: 4.5 | N34: 28 | O34: 2019-05-29 | T34: 1 | W34: 1 | Z34: 1 | AA34: 1
A35: 5 | B35: 30 | C35: 1.5 | D35: 0 | E35: 0 | F35: 0 | G35: 15.5 | H35: 0 | I35: 10 | J35: 0 | K35: 0 | L35: 7 | M35: 0 | N35: 29 | O35: 2019-05-30 | T35: 1 | U35: 1 | W35: 1 | Z35: 1
A36: 5 | B36: 31 | C36: 4.5 | D36: 0 | E36: 2 | F36: 5.5 | G36: 15 | H36: 2 | I36: 0 | J36: 0 | K36: 0 | L36: 0 | M36: 0 | N36: 30 | O36: 2019-05-31 | Q36: 1 | S36: 1 | T36: 1 | U36: 1 | V36: 1 | W36: 1
A37: 6 | B37: 1 | C37: 0 | D37: 0 | E37: 0 | F37: 0 | G37: 0 | H37: 19 | I37: 0 | J37: 0 | K37: 0 | L37: 0 | M37: 0 | N37: 31 | O37: 2019-06-01 | U37: 1 | V37: 1
A38: 6 | B38: 2 | C38: 0 | D38: 0 | E38: 0 | F38: 0 | G38: 0 | H38: 0 | I38: 0 | J38: 0 | K38: 0 | L38: 0.5 | M38: 0 | N38: 32 | O38: 2019-06-02 | V38: 1
A39: 6 | B39: 3 | C39: 0 | D39: 0 | E39: 0 | F39: 0 | G39: 0 | H39: 0 | I39: 0 | J39: 39 | K39: 0 | L39: 0 | M39: 0 | N39: 33 | O39: 2019-06-03 | X39: 1
A40: 6 | B40: 4 | C40: 0 | D40: 32.5 | E40: 0 | F40: 0 | G40: 0 | H40: 0 | I40: 4 | J40: 0 | K40: 0 | L40: 0 | M40: 0 | N40: 34 | O40: 2019-06-04 | R40: 1 | W40: 1 | X40: 1
A41: 6 | B41: 5 | C41: 6.5 | D41: 0 | E41: 0 | F41: 0 | G41: 0.5 | H41: 0 | I41: 6.5 | J41: 25.5 | K41: 5 | L41: 0 | M41: 0 | N41: 35 | O41: 2019-06-05 | Q41: 1 | R41: 1 | W41: 1 | X41: 1 | Y41: 1
A42: 6 | B42: 6 | C42: 36.5 | D42: 0 | E42: 0 | F42: 0 | G42: 29 | H42: 0 | I42: 0 | J42: 1.5 | K42: 0 | L42: 21.5 | M42: 0 | N42: 36 | O42: 2019-06-06 | Q42: 1 | R42: 1 | U42: 1 | X42: 1 | Z42: 1
A43: 6 | B43: 7 | C43: 3 | D43: 0 | E43: 0 | F43: 22 | G43: 0 | H43: 20 | I43: 9 | J43: 0 | K43: 5 | L43: 0 | M43: 0 | N43: 37 | O43: 2019-06-07 | Q43: 1 | T43: 1 | U43: 1 | V43: 1 | W43: 1 | Y43: 1 | Z43: 1
A44: 6 | B44: 8 | C44: 0 | D44: 0 | E44: 0 | F44: 2.5 | G44: 8 | H44: 0 | I44: 0 | J44: 4 | K44: 1.5 | L44: 0 | M44: 30.5 | N44: 38 | O44: 2019-06-08 | Q44: 1 | T44: 1 | U44: 1 | V44: 1 | X44: 1 | AA44: 1
A45: 6 | B45: 9 | C45: 0 | D45: 0 | E45: 0 | F45: 0 | G45: 3 | H45: 0 | I45: 0.5 | J45: 10 | K45: 1 | L45: 0 | M45: 3.5 | N45: 39 | O45: 2019-06-09 | U45: 1 | X45: 1 | AA45: 1
A46: 6 | B46: 10 | C46: 2.5 | D46: 0 | E46: 0 | F46: 4 | G46: 10.5 | H46: 0 | I46: 0 | J46: 0 | K46: 8.5 | L46: 0 | M46: 0 | N46: 40 | O46: 2019-06-10 | Q46: 1 | T46: 1 | U46: 1 | X46: 1 | Y46: 1 | AA46: 1
A47: 6 | B47: 11 | C47: 2 | D47: 0 | E47: 23.5 | F47: 0 | G47: 12 | H47: 0 | I47: 0 | J47: 6.5 | K47: 2 | L47: 0 | M47: 0 | N47: 41 | O47: 2019-06-11 | Q47: 1 | S47: 1 | U47: 1 | X47: 1 | Y47: 1
A48: 6 | B48: 12 | C48: 0 | D48: 0 | E48: 55.5 | F48: 0 | G48: 2 | H48: 0 | I48: 15 | J48: 4 | K48: 31.5 | L48: 0 | M48: 0 | N48: 42 | O48: 2019-06-12 | S48: 1 | U48: 1 | W48: 1 | X48: 1 | Y48: 1
A49: 6 | B49: 13 | C49: 0 | D49: 11 | E49: 64 | F49: 0 | G49: 1 | H49: 0 | I49: 25.5 | J49: 0 | K49: 0.5 | L49: 0 | M49: 0 | N49: 43 | O49: 2019-06-13 | R49: 1 | S49: 1 | W49: 1 | Y49: 1
A50: 6 | B50: 14 | C50: 9.5 | D50: 12.5 | E50: 31 | F50: 0 | G50: 0 | H50: 0 | I50: 0 | J50: 0 | K50: 0 | L50: 0 | M50: 0 | N50: 44 | O50: 2019-06-14 | Q50: 1 | R50: 1 | S50: 1 | W50: 1 | Y50: 1
A51: 6 | B51: 15 | C51: 2.5 | D51: 8 | E51: 1 | F51: 19.5 | G51: 2 | H51: 0 | I51: 0 | J51: 0 | K51: 0 | L51: 5.5 | M51: 1 | N51: 45 | O51: 2019-06-15 | Q51: 1 | R51: 1 | S51: 1 | T51: 1 | U51: 1 | Z51: 1
A52: 6 | B52: 16 | C52: 0 | D52: 9 | E52: 0 | F52: 6.5 | G52: 0 | H52: 0 | I52: 17.5 | J52: 0 | K52: 0 | L52: 0 | M52: 31.5 | N52: 46 | O52: 2019-06-16 | R52: 1 | S52: 1 | T52: 1 | W52: 1 | AA52: 1
A53: 6 | B53: 17 | C53: 0 | D53: 0 | E53: 0 | F53: 0 | G53: 0 | H53: 0 | I53: 3 | J53: 5.5 | K53: 0 | L53: 0 | M53: 21 | N53: 47 | O53: 2019-06-17 | W53: 1 | X53: 1 | AA53: 1
A54: 6 | B54: 18 | C54: 0 | D54: 4 | E54: 16.5 | F54: 0 | G54: 0.5 | H54: 0 | I54: 0 | J54: 3 | K54: 0 | L54: 0 | M54: 0 | N54: 48 | O54: 2019-06-18 | R54: 1 | S54: 1 | X54: 1 | AA54: 1
A55: 6 | B55: 19 | C55: 0 | D55: 18 | E55: 51.5 | F55: 0 | G55: 3 | H55: 0 | I55: 6 | J55: 10 | K55: 0 | L55: 58.5 | M55: 54 | N55: 49 | O55: 2019-06-19 | R55: 1 | S55: 1 | U55: 1 | W55: 1 | X55: 1 | Z55: 1 | AA55: 1
A56: 6 | B56: 20 | C56: 1 | D56: 0 | E56: 1 | F56: 0 | G56: 39.5 | H56: 1 | I56: 2 | J56: 0 | K56: 14 | L56: 19.5 | M56: 2 | N56: 50 | O56: 2019-06-20 | R56: 1 | S56: 1 | U56: 1 | W56: 1 | X56: 1 | Y56: 1 | Z56: 1 | AA56: 1
A57: 6 | B57: 21 | C57: 6 | D57: 0 | E57: 0 | F57: 2.5 | G57: 0 | H57: 34.5 | I57: 17.5 | J57: 12 | K57: 0 | L57: 9 | M57: 20 | N57: 51 | O57: 2019-06-21 | Q57: 1 | S57: 1 | T57: 1 | U57: 1 | V57: =IF(H57>=$C$108,1,IF(H56>=$C$109,1,IF(H55>=$C$110,1,""))) -> 1 | W57: 1 | X57: 1 | Y57: 1 | Z57: 1 | AA57: 1
A58: 6 | B58: 22 | C58: 1 | D58: 0 | E58: 0 | F58: 0 | G58: 0 | H58: 0 | I58: 15 | J58: 0 | K58: 5 | L58: 0 | M58: 23.5 | N58: 52 | O58: 2019-06-22 | U58: 1 | V58: 1 | W58: 1 | X58: 1 | Y58: 1 | AA58: 1
A59: 6 | B59: 23 | C59: 0 | D59: 0 | E59: 0 | F59: 0 | G59: 5.5 | H59: 0 | I59: 13 | J59: 0.5 | K59: 0 | L59: 0 | M59: 0 | N59: 53 | O59: 2019-06-23 | U59: 1 | V59: 1 | W59: 1 | AA59: 1
A60: 6 | B60: 24 | C60: 9.5 | D60: 2.5 | E60: 0 | F60: 0 | G60: 0 | H60: 1 | I60: 8 | J60: 0 | K60: 0 | L60: 2.5 | M60: 0 | N60: 54 | O60: 2019-06-24 | Q60: 1 | R60: 1 | W60: 1 | Z60: 1
A61: 6 | B61: 25 | C61: 0 | D61: 0 | E61: 2.5 | F61: 0 | G61: 0 | H61: 11 | I61: 19.5 | J61: 0 | K61: 0 | L61: 0 | M61: 0.5 | N61: 55 | O61: 2019-06-25 | S61: 1 | V61: 1 | W61: 1
A62: 6 | B62: 26 | C62: 0 | D62: 0 | E62: 1 | F62: 0 | G62: 0 | H62: 0 | I62: 0 | J62: 31.5 | K62: 0 | L62: 49 | M62: 0 | N62: 56 | O62: 2019-06-26 | Q62: =IF(C62>=$C$108,1,IF(C61>=$C$109,1,IF(C60>=$C$110,1,""))) ->  | V62: 1 | W62: 1 | X62: 1 | Z62: 1
A63: 6 | B63: 27 | C63: 2 | D63: 0 | E63: 0 | F63: 8.5 | G63: 0 | H63: 0.5 | I63: 18.5 | J63: 1.5 | K63: 0 | L63: 0.5 | M63: 0 | N63: 57 | O63: 2019-06-27 | Q63: 1 | T63: 1 | W63: 1 | X63: 1 | Z63: 1
A64: 6 | B64: 28 | C64: 0 | D64: 0 | E64: 86 | F64: 0 | G64: 17.5 | H64: 4.5 | I64: 9 | J64: 5.5 | K64: 15.5 | L64: 0 | M64: 0 | N64: 58 | O64: 2019-06-28 | S64: 1 | U64: 1 | V64: 1 | W64: 1 | X64: 1 | Y64: 1 | Z64: 1
A65: 6 | B65: 29 | C65: 0 | D65: 2 | E65: 0 | F65: 12 | G65: 55 | H65: 5 | I65: 4.5 | J65: 0 | K65: 0.5 | L65: 0 | M65: 0 | N65: 59 | O65: 2019-06-29 | R65: 1 | S65: 1 | T65: 1 | U65: 1 | V65: 1 | W65: 1 | Y65: 1
A66: 6 | B66: 30 | C66: 0 | D66: 2.5 | E66: 29 | F66: 21.5 | G66: 5.5 | H66: 35 | I66: 0 | J66: 14 | K66: 0 | L66: 0 | M66: 4.5 | N66: 60 | O66: 2019-06-30 | R66: 1 | S66: 1 | T66: 1 | U66: 1 | V66: 1 | X66: 1 | AA66: 1
A67: 7 | B67: 1 | C67: 0 | D67: 11 | E67: 1 | F67: 3.5 | G67: 0 | H67: 28 | I67: 0 | J67: 21 | K67: 0 | L67: 0 | M67: 57 | N67: 61 | O67: 2019-07-01
A68: 7 | B68: 2 | C68: 0 | D68: 5 | E68: 0 | F68: 1.5 | G68: 0 | H68: 8.5 | I68: 0 | J68: 0 | K68: 0 | L68: 0 | M68: 0 | N68: 62 | O68: 2019-07-02
A69: 7 | B69: 3 | C69: 121.5 | D69: 1.5 | E69: 31 | F69: 6.5 | G69: 0 | H69: 0 | I69: 15 | J69: 0 | K69: 15 | L69: 17 | M69: 36.5 | N69: 63 | O69: 2019-07-03 | Q69: 1 | S69: 1 | T69: 1 | W69: 1 | Y69: 1 | Z69: 1 | AA69: 1
A70: 7 | B70: 4 | C70: 4.5 | D70: 0.5 | E70: 21.5 | F70: 3.5 | G70: 19 | H70: 47 | I70: 7 | J70: 17 | K70: 8.5 | L70: 26 | M70: 0 | N70: 64 | O70: 2019-07-04 | Q70: 1 | S70: 1 | T70: 1 | U70: 1 | V70: 1 | W70: 1 | X70: 1 | Y70: 1 | Z70: 1 | AA70: 1
A71: 7 | B71: 5 | C71: 6 | D71: 4.5 | E71: 0 | F71: 0 | G71: 154 | H71: 11 | I71: 0 | J71: 0 | K71: 1 | L71: 18 | M71: 7.5 | N71: 65 | O71: 2019-07-05 | Q71: 1 | R71: 1 | S71: 1 | U71: 1 | V71: 1 | X71: 1 | Z71: 1 | AA71: 1
A72: 7 | B72: 6 | C72: 0 | D72: 1 | E72: 54 | F72: 0 | G72: 85 | H72: 0 | I72: 4 | J72: 0 | K72: 29.5 | L72: 0.5 | M72: 49.5 | N72: 66 | O72: 2019-07-06 | S72: 1 | U72: 1 | V72: 1 | W72: 1 | Y72: 1 | Z72: 1 | AA72: 1
A73: 7 | B73: 7 | C73: 0 | D73: 67 | E73: 40.5 | F73: 0 | G73: 109 | H73: 0 | I73: 0 | J73: 14 | K73: 5 | L73: 0 | M73: 20.5 | N73: 67 | O73: 2019-07-07 | R73: 1 | S73: 1 | U73: 1 | X73: 1 | Y73: 1 | AA73: 1
A74: 7 | B74: 8 | C74: 0 | D74: 41.5 | E74: 53 | F74: 0 | G74: 1 | H74: 34.5 | I74: 2.5 | J74: 1 | K74: 0 | L74: 0 | M74: 0.5 | N74: 68 | O74: 2019-07-08 | R74: 1 | S74: 1 | U74: 1 | V74: 1 | W74: 1 | X74: 1 | AA74: 1
A75: 7 | B75: 9 | C75: 13 | D75: 8.5 | E75: 2.5 | F75: 0.5 | G75: 0 | H75: 11.5 | I75: 21 | J75: 54 | K75: 0 | L75: 0 | M75: 0 | N75: 69 | O75: 2019-07-09 | Q75: 1 | R75: 1 | S75: 1 | U75: 1 | V75: 1 | W75: 1 | X75: 1
A76: 7 | B76: 10 | C76: 0.5 | D76: 1.5 | E76: 49.5 | F76: 0 | G76: 0 | H76: 5.5 | I76: 0 | J76: 0 | K76: 7.5 | L76: 0 | M76: 0 | N76: 70 | O76: 2019-07-10 | Q76: 1 | R76: 1 | S76: 1 | V76: 1 | W76: 1 | X76: 1 | Y76: 1
A77: 7 | B77: 11 | C77: 0.5 | D77: 4 | E77: 11 | F77: 12.5 | G77: 0 | H77: 0 | I77: 0 | J77: 0 | K77: 1.5 | L77: 0 | M77: 0 | N77: 71 | O77: 2019-07-11 | R77: 1 | S77: 1 | T77: 1 | X77: 1
A78: 7 | B78: 12 | C78: 36.5 | D78: 0 | E78: 1 | F78: 1 | G78: 0 | H78: 0 | I78: 2.5 | J78: 0 | K78: 0 | L78: 0 | M78: 34.5 | N78: 72 | O78: 2019-07-12 | Q78: 1 | S78: 1 | T78: 1 | W78: 1 | AA78: 1
A79: 7 | B79: 13 | C79: 1.5 | D79: 15.5 | E79: 31 | F79: 12 | H79: 0 | I79: 58 | J79: 0 | K79: 14.5 | L79: 22.5 | M79: 2.5 | N79: 73 | O79: 2019-07-13 | Q79: 1 | R79: 1 | S79: 1 | T79: 1 | W79: 1 | Y79: 1 | Z79: 1 | AA79: 1
A80: 7 | B80: 14 | C80: 4.5 | D80: 12 | E80: 24.5 | F80: 16 | H80: 0 | I80: 33 | J80: 0 | K80: 2 | L80: 2 | M80: 0 | N80: 74 | O80: 2019-07-14 | Q80: 1 | R80: 1 | S80: 1 | T80: 1 | W80: 1 | Y80: 1 | Z80: 1 | AA80: 1
A81: 7 | B81: 15 | C81: 11.5 | D81: 10.5 | E81: 0.5 | F81: 2 | G81: 0 | H81: 0 | I81: 1 | J81: 0 | K81: 0 | L81: 7 | M81: 1 | N81: 75 | O81: 2019-07-15 | Q81: 1 | R81: 1 | S81: 1 | T81: 1 | W81: 1 | Z81: 1
A82: 7 | B82: 16 | C82: 0 | D82: 9.5 | E82: 0 | F82: 0 | G82: 0 | H82: 3.5 | I82: 0 | J82: 14 | K82: 0 | L82: 0 | M82: 0 | N82: 76 | O82: 2019-07-16 | Q82: 1 | R82: 1 | V82: 1 | W82: 1 | X82: 1
A83: 7 | B83: 17 | C83: 4 | D83: 0 | E83: 0.5 | F83: 0 | G83: 0 | H83: 15 | I83: 6 | J83: 136 | K83: 0 | L83: 0 | M83: 0 | N83: 77 | O83: 2019-07-17 | Q83: 1 | V83: 1 | W83: 1 | X83: 1
A84: 7 | B84: 18 | C84: 0 | D84: 0 | E84: 4 | F84: 22.5 | G84: 0 | H84: 2 | I84: 0 | J84: 24 | K84: 12 | L84: 2.5 | M84: 0 | N84: 78 | O84: 2019-07-18 | S84: 1 | T84: 1 | V84: 1 | X84: 1 | Y84: 1 | Z84: 1
A85: 7 | B85: 19 | C85: 51.5 | D85: 0 | E85: 0.5 | F85: 14.5 | G85: 0 | H85: 0.5 | I85: 0 | J85: 2 | K85: 5 | L85: 0 | M85: 0 | N85: 79 | O85: 2019-07-19 | Q85: 1 | T85: 1 | X85: 1 | Y85: 1
A86: 7 | B86: 20 | C86: 0 | D86: 0 | E86: 0 | F86: 2 | G86: 0 | H86: 0 | I86: 0 | J86: 0 | K86: 0 | L86: 0 | M86: 15 | N86: 80 | O86: 2019-07-20 | Q86: 1 | T86: 1 | AA86: 1
A87: 7 | B87: 21 | C87: 1 | D87: 0 | E87: 67 | F87: 0 | G87: 0 | H87: 0 | I87: 0 | J87: 0 | K87: 0 | L87: 0 | M87: 4.5 | N87: 81 | O87: 2019-07-21 | Q87: 1 | S87: 1 | AA87: 1
A88: 7 | B88: 22 | C88: 10.5 | D88: 1.5 | E88: 1 | F88: 15.5 | G88: 0 | H88: 0 | I88: 0 | J88: 13.5 | K88: 0 | L88: 0 | M88: 14 | N88: 82 | O88: 2019-07-22 | Q88: 1 | S88: 1 | T88: 1 | X88: 1 | AA88: 1
A89: 7 | B89: 23 | C89: 0.5 | D89: 0 | E89: 1 | F89: 4.5 | G89: 0 | H89: 0 | I89: 0 | J89: 26.5 | K89: 0 | L89: 0 | M89: 0.5 | N89: 83 | O89: 2019-07-23 | Q89: 1 | S89: 1 | T89: 1 | X89: 1 | Y89: =IF(K89>=$C$108,1,IF(K88>=$C$109,1,IF(K87>=$C$110,1,""))) ->  | AA89: 1
A90: 7 | B90: 24 | C90: 0 | D90: 0 | E90: 22.5 | F90: 0 | G90: 0 | H90: 7.5 | I90: 0 | J90: 0 | K90: 0 | L90: 7.5 | M90: 0 | N90: 84 | O90: 2019-07-24 | Q90: =IF(C90>=$C$108,1,IF(C89>=$C$109,1,IF(C88>=$C$110,1,""))) ->  | S90: 1 | V90: 1 | X90: 1 | Z90: 1
A91: 7 | B91: 25 | C91: 0 | D91: 0 | E91: 28.5 | F91: 3 | G91: 0 | H91: 11 | I91: 0 | J91: 0 | K91: 0 | L91: 0 | M91: 0 | N91: 85 | O91: 2019-07-25 | S91: 1 | T91: 1 | V91: 1
A92: 7 | B92: 26 | C92: 0 | D92: 0 | E92: 3 | F92: 0 | G92: 0 | H92: 4.5 | I92: 32.5 | J92: 0 | K92: 0 | L92: 0 | M92: 0 | N92: 86 | O92: 2019-07-26 | S92: 1 | V92: 1 | W92: 1
A93: 7 | B93: 27 | C93: 15.5 | D93: 0 | E93: 2 | F93: 3 | G93: 0 | H93: 0 | I93: 0 | J93: 13.5 | K93: 5 | L93: 4 | M93: 0 | N93: 87 | O93: 2019-07-27 | Q93: 1 | S93: 1 | T93: 1 | W93: 1 | X93: 1 | Y93: 1 | Z93: 1
A94: 7 | B94: 28 | C94: 0 | D94: 0 | E94: 1 | F94: 0 | G94: 0 | H94: 16.5 | I94: 0 | J94: 23.5 | K94: 0.5 | L94: 2 | M94: 0 | N94: 88 | O94: 2019-07-28 | Q94: 1 | V94: 1 | W94: 1 | X94: 1 | Z94: 1
A95: 7 | B95: 29 | C95: 0 | D95: 0 | E95: 14.5 | F95: 0 | G95: 31.5 | H95: 0 | I95: 0 | J95: 0 | K95: 0 | L95: 15 | M95: 0 | N95: 89 | O95: 2019-07-29 | S95: 1 | U95: 1 | V95: 1 | X95: 1 | Z95: 1
A96: 7 | B96: 30 | C96: 0 | D96: 0 | E96: 3.5 | F96: 0 | G96: 0 | H96: 3 | I96: 0 | J96: 1.5 | K96: 0 | L96: 0.5 | M96: 0 | N96: 90 | O96: 2019-07-30 | S96: 1 | U96: 1 | V96: 1 | Z96: 1
A97: 7 | B97: 31 | C97: 0 | D97: 0 | E97: 0 | F97: 1 | G97: 0 | H97: 0 | I97: 0 | J97: 0 | K97: 3.5 | L97: 0 | M97: 0 | N97: 91 | O97: 2019-07-31 | U97: 1 | Y97: 1
A98: 8 | B98: 1 | C98: 0 | D98: 0 | E98: 0 | F98: 0 | G98: 0 | H98: 0 | I98: 0 | J98: 0 | K98: 0 | L98: 21.5 | M98: 0 | N98: 92 | O98: 2019-08-01 | Z98: 1
A99: 8 | B99: 2 | C99: 0 | D99: 0 | E99: 3.5 | F99: 2 | G99: 0 | H99: 0 | I99: 0 | J99: 0 | K99: 0 | L99: 0.5 | M99: 0 | N99: 93 | O99: 2019-08-02 | S99: 1 | T99: 1 | Z99: 1
A100: 8 | B100: 3 | C100: 0 | D100: 24.5 | E100: 0 | F100: 0 | G100: 0 | H100: 0 | I100: 0 | J100: 0 | K100: 2.5 | L100: 0 | M100: 0 | N100: 94 | O100: 2019-08-03 | R100: 1 | Y100: 1
A101: 8 | B101: 4 | C101: 7 | D101: 0 | E101: 0 | F101: 0 | G101: 0 | H101: 0 | I101: 0 | J101: 0 | K101: 6 | L101: 15.5 | M101: 0 | N101: 95 | O101: 2019-08-04 | Q101: 1 | R101: 1 | Y101: 1 | Z101: 1
A102: 8 | B102: 5 | C102: 3 | D102: 0 | E102: 0 | F102: 0 | G102: 0 | H102: 0 | I102: 0 | J102: 0 | K102: 0.5 | L102: 4.5 | M102: 0.5 | N102: 96 | O102: 2019-08-05 | Q102: 1 | Z102: 1
A103: 8 | B103: 6 | C103: 0 | D103: 0 | E103: 0 | F103: 0 | G103: 0 | H103: 0.5 | I103: 0 | J103: 0 | K103: 49 | L103: 0.5 | M103: 0.5 | N103: 97 | O103: 2019-08-06 | Y103: 1
B105: 土寄せ作業可能か どうかの判断条件 | E105: 判断日 | F105: =判断日 -> 2025-06-01 | I105: 判断年 | J105: =YEAR(判断日) -> 2025 | P105: 可能日の | Q105: 1 | R105: 2 | S105: 3 | T105: 4 | U105: 5 | V105: 6 | W105: 7 | X105: 8 | Y105: 9 | Z105: 10 | AA105: 11
F106: 適期始 | G106: 適期終 | J106: 5/1から数えて | P106: 10年平均 | Q106: 作業可能日 | R106: 作業可能日 | S106: 作業可能日 | T106: 作業可能日 | U106: 作業可能日 | V106: 作業可能日 | W106: 作業可能日 | X106: 作業可能日 | Y106: 作業可能日 | Z106: 作業可能日 | AA106: 作業可能日 | AB106: 近5年平均 | AC106: 近3年平均 | AD106: 最多日数 | AE106: 最少日数
B107: 作業できない降雨量mm | E107: 土寄① | F107: =土寄①始修正 -> 2025-06-21 | G107: =土寄①終修正 -> 2025-07-01 | I107: 土寄①適期始は | J107: =$F$107-DATEVALUE(TEXT(判断年,"####")&"/5/1") -> 51 | K107: 日後 | O107: 5月 | P107: =AVERAGE(Q107:Z107) -> 19.6 | Q107: =31-SUM(Q$6:Q$36) -> 21 | R107: =31-SUM(R$6:R$36) -> 16 | S107: =31-SUM(S$6:S$36) -> 20 | T107: 20 | U107: 17 | V107: 22 | W107: 15 | X107: 23 | Y107: 22 | Z107: 20 | AA107: 20 | AB107: =AVERAGE(Q107:U107) -> 18.8 | AC107: =AVERAGE(Q107:S107) -> 19 | AD107: =MAX(Q107:Z107) -> 23 | AE107: =MIN(Q107:Z107) -> 15
B108: 当日 | C108: =入力表!C26 -> 2 | D108: mm | E108: 土寄② | F108: =土寄②始修正 -> 2025-07-06 | G108: =土寄②終 -> 2025-07-16 | I108: 土寄①適期終は | J108: =$G$107-DATEVALUE(TEXT($J$105,"####")&"/5/1") -> 61 | K108: 日後 | O108: 6月 | P108: 16.4 | Q108: =30-SUM(Q$37:Q$66) -> 19 | R108: =30-SUM(R$37:R$66) -> 17 | S108: =30-SUM(S$37:S$66) -> 16 | T108: 21 | U108: 13 | V108: 18 | W108: 11 | X108: 11 | Y108: 18 | Z108: 20 | AA108: 18 | AB108: =AVERAGE(Q108:U108) -> 17.2 | AC108: =AVERAGE(Q108:S108) -> 17.33333333 | AD108: =MAX(Q108:Z108) -> 21 | AE108: =MIN(Q108:Z108) -> 11
B109: 翌日 | C109: =入力表!C27 -> 10 | D109: mm | E109: 除草剤 | F109: =茎葉始 -> 2025-07-13 | G109: =茎葉終 -> 2025-07-23 | I109: 土寄②適期始は | J109: =$F$108-DATEVALUE(TEXT($J$105,"####")&"/5/1") -> 66 | K109: 日後 | O109: 7月 | P109: 16.5 | Q109: =31-SUM(Q$67:Q$97) -> 13 | R109: =31-SUM(R$67:R$97) -> 21 | S109: =31-SUM(S$67:S$97) -> 8 | T109: 17 | U109: 22 | V109: 16 | W109: 16 | X109: 14 | Y109: 20 | Z109: 18 | AA109: 18 | AB109: 16.2 | AC109: 14 | AD109: 22 | AE109: 8
B110: ２日後 | C110: =入力表!C28 -> 30 | D110: mm | E110: 摘心 | F110: =摘心始 -> 7/1以降の主茎長で判断 | G110: =摘心終 -> 2025-07-21 | I110: 土寄②適期終は | J110: =$G$108-DATEVALUE(TEXT($J$105,"####")&"/5/1") -> 76 | K110: 日後 | O110: 6/25-7/24 | P110: 16.1 | Q110: =30-SUM(Q$61:Q$90) -> 13 | R110: =31-SUM(R$61:R$90) -> 19 | S110: =31-SUM(S$61:S$90) -> 9 | T110: 16 | U110: 22 | V110: 16 | W110: 14 | X110: 13 | Y110: 20 | Z110: 19 | AA110: 17 | AB110: 15.8 | AC110: 13.66666667 | AD110: 22 | AE110: 9
C111: ↑ | I111: 除草剤適期始行 | J111: =$F$109-DATEVALUE(TEXT($J$105,"####")&"/5/1") -> 73 | K111: 日後 | N111: 土寄せ①適期日数 | O111: =G107-F107+1 -> 11 | P111: 6.2 | Q111: =$O111-SUM(OFFSET(表の5月1日位置,$J$107,Q$105,$J$108-$J$107+1,1)) -> 11 | R111: =$O111-SUM(OFFSET(表の5月1日位置,$J$107,R105,$J$108-$J$107+1,1)) -> 8 | S111: 8 | T111: 6 | U111: 7 | V111: 5 | W111: 3 | X111: 2 | Y111: 5 | Z111: 7 | AA111: 6 | AB111: 8 | AC111: 9 | AD111: 11 | AE111: 2
C112: 入力された条件 | I112: 除草剤適期終行 | J112: =$G$109-DATEVALUE(TEXT($J$105,"####")&"/5/1") -> 83 | K112: 日後 | N112: 土寄せ②適期日数 | O112: =G108-F108+1 -> 11 | P112: 5 | Q112: =$O112-SUM(OFFSET(表の5月1日位置,$J$109,Q$105,$J$110-$J$109+1,1)) -> 11 | R112: 4 | S112: 2 | T112: 1 | U112: 6 | V112: 7 | W112: 6 | X112: 2 | Y112: 5 | Z112: 6 | AA112: 7 | AB112: 4.8 | AC112: 5.666666667 | AD112: 11 | AE112: 1
I113: 摘心適期始行 | J113: =$F$110-DATEVALUE(TEXT($J$105,"####")&"/5/1") ->  | K113: 日後 | N113: 除草剤適期日数 | O113: =G109-F109+1 -> 11 | P113: 6.3 | Q113: =$O113-COUNTIF(OFFSET(表の5月1日位置,$J$111,-13+Q$105,$J$112-$J$111+1,1),">=1") -> 4 | R113: 6 | S113: 5 | T113: 3 | U113: 11 | V113: 8 | W113: 7 | X113: 5 | Y113: 7 | Z113: 7 | AA113: 6 | AB113: 5.8 | AC113: 5 | AD113: 11 | AE113: 3
D114: 土寄① | E114: 土寄② | F114: 除草剤 | G114: 摘心 | I114: 摘心適期終行 | J114: =$G$110-DATEVALUE(TEXT($J$105,"####")&"/5/1") -> 81 | K114: 日後 | N114: 摘心適期日数 | O114: =G110-F110+1 ->  | Q114: =$O114-COUNTIF(OFFSET(表の5月1日位置,$J$113,-13+Q$105,$J$114-$J$113+1,1),">=1") -> 
A115: 適期作業の確率 | D115: =P111/O111 -> 0.5636363636 | E115: =P112/O112 -> 0.4545454545 | F115: =P113/O113 -> 0.5727272727 | G115: =P114/O114 ->  | O115: 7月の1mm以上降雨日数 | P115: =AVERAGE(R115:AA115) -> 13.6 | Q115: =COUNTIF(C67:C97,">=1") -> 13 | R115: 15 | S115: 23 | T115: 17 | U115: 6 | V115: 15 | W115: 11 | X115: 14 | Y115: 13 | Z115: 11 | AA115: 11 | AB115: =AVERAGE(R115:V115) -> 15.2 | AC115: =AVERAGE(R115:T115) -> 18.33333333 | AD115: =MAX(R115:AA115) -> 23 | AE115: =MIN(R115:AA115) -> 6

Sheet アメダス須知
B1: 降雨日から見た黒大豆作業の検討 | J1: ="（"&C3&"～"&L3&"年平均）" -> （2022～2013年平均）
B2: アメダス須知データ
A3: 月 | B3: 日 | C3: 2022 | D3: 2021 | E3: 2020 | F3: 2019 | G3: 2018 | H3: 2017 | I3: 2016 | J3: 2015 | K3: 2014 | L3: 2013 | M3: 2012 | Q3: =C3 -> 2022 | R3: 2021 | S3: 2020 | T3: 2019 | U3: 2018 | V3: 2017 | W3: 2016 | X3: 2015 | Y3: 2014 | Z3: 2013 | AA3: 2012
A4: 4 | B4: 29 | C4: 53 | D4: 68.5 | E4: 0 | F4: 18 | G4: 0 | H4: 2.5 | I4: 0 | J4: 0 | K4: 42 | L4: 0 | M4: 0 | O4: 2019-04-29 | Q4: =IF(C4>=$C$108,1,"") -> 1 | R4: 1 | T4: 1 | V4: 1 | Y4: 1
A5: 4 | B5: 30 | C5: 0 | D5: 0.5 | E5: 0 | F5: 17.5 | G5: 0 | H5: 0 | I5: 0 | J5: 0 | K5: 8 | L5: 4.5 | M5: 0 | O5: 2019-04-30 | Q5: =IF(C5>=$C$108,1,IF(C4>=$C$109,1,"")) -> 1 | R5: 1 | T5: 1 | Y5: 1 | Z5: 1
A6: 5 | B6: 1 | C6: 18.5 | D6: 1.5 | E6: 0 | F6: 9.5 | G6: 0 | H6: 0 | I6: 0 | J6: 0 | K6: 1 | L6: 0.5 | M6: 0 | N6: 0 | O6: 2019-05-01 | Q6: =IF(C6>=$C$108,1,IF(C5>=$C$109,1,IF(C4>=$C$110,1,""))) -> 1 | R6: 1 | T6: 1 | Y6: 1
A7: 5 | B7: 2 | C7: 0.5 | D7: 4 | E7: 0 | F7: 0 | G7: 5 | H7: 0 | I7: 0 | J7: 0 | K7: 0 | L7: 0 | M7: 22.5 | N7: 1 | O7: 2019-05-02 | Q7: 1 | R7: 1 | U7: 1 | AA7: 1
A8: 5 | B8: 3 | C8: 0 | D8: 0 | E8: 2 | F8: 0 | G8: 2.5 | H8: 0 | I8: 4 | J8: 0.5 | K8: 0 | L8: 0 | M8: 4 | N8: 2 | O8: 2019-05-03 | S8: 1 | U8: 1 | W8: 1 | AA8: 1
A9: 5 | B9: 4 | C9: 0 | D9: 0 | E9: 0.5 | F9: 0 | G9: 0 | H9: 0 | I9: 0.5 | J9: 2.5 | K9: 0 | L9: 0 | M9: 3 | N9: 3 | O9: 2019-05-04 | X9: 1 | AA9: 1
A10: 5 | B10: 5 | C10: 0 | D10: 9.5 | E10: 0 | F10: 0 | G10: 0 | H10: 0 | I10: 0 | J10: 0 | K10: 0 | L10: 0 | M10: 0 | N10: 4 | O10: 2019-05-05 | R10: 1
A11: 5 | B11: 6 | C11: 0 | D11: 0 | E11: 3.5 | F11: 11.5 | G11: 14 | H11: 1 | I11: 8.5 | J11: 0 | K11: 0 | L11: 0 | M11: 1 | N11: 5 | O11: 2019-05-06 | S11: 1 | T11: 1 | U11: 1 | W11: 1
A12: 5 | B12: 7 | C12: 0 | D12: 1 | E12: 0 | F12: 0 | G12: 43 | H12: 0 | I12: 0 | J12: 0.5 | K12: 0 | L12: 0 | M12: 0 | N12: 6 | O12: 2019-05-07 | T12: 1 | U12: 1
A13: 5 | B13: 8 | C13: 0 | D13: 0 | E13: 0 | F13: 0 | G13: 9.5 | H13: 0 | I13: 0 | J13: 0.5 | K13: 0 | L13: 0 | M13: 0 | N13: 7 | O13: 2019-05-08 | U13: 1
A14: 5 | B14: 9 | C14: 0 | D14: 0 | E14: 4 | F14: 0 | G14: 6.5 | H14: 4 | I14: 12 | J14: 0 | K14: 0 | L14: 0 | M14: 0 | N14: 8 | O14: 2019-05-09 | S14: 1 | U14: 1 | V14: 1 | W14: 1
A15: 5 | B15: 10 | C15: 0 | D15: 0 | E15: 6 | F15: 0 | G15: 0 | H15: 4.5 | I15: 1.5 | J15: 0 | K15: 0 | L15: 4.5 | M15: 0 | N15: 9 | O15: 2019-05-10 | S15: 1 | V15: 1 | W15: 1 | Z15: 1
A16: 5 | B16: 11 | C16: 1.5 | D16: 0 | E16: 0 | F16: 0 | G16: 0 | H16: 0 | I16: 18 | J16: 0 | K16: 0 | L16: 7 | M16: 0 | N16: 10 | O16: 2019-05-11 | W16: 1 | Z16: 1
A17: 5 | B17: 12 | C17: 9.5 | D17: 1.5 | E17: 0 | F17: 0 | G17: 0 | H17: 0.5 | I17: 0 | J17: 38 | K17: 5.5 | L17: 0 | M17: 0.5 | N17: 11 | O17: 2019-05-12 | Q17: 1 | W17: 1 | X17: 1 | Y17: 1
A18: 5 | B18: 13 | C18: 14 | D18: 1.5 | E18: 0 | F18: 0 | G18: 52 | H18: 21 | I18: 0 | J18: 0 | K18: 1.5 | L18: 0 | M18: 0 | N18: 12 | O18: 2019-05-13 | Q18: 1 | U18: 1 | V18: 1 | X18: 1
A19: 5 | B19: 14 | C19: 16 | D19: 0 | E19: 0 | F19: 23.5 | G19: 0 | H19: 0 | I19: 0 | J19: 0 | K19: 0 | L19: 0 | M19: 0 | N19: 13 | O19: 2019-05-14 | Q19: 1 | T19: 1 | U19: 1 | V19: 1 | X19: 1
A20: 5 | B20: 15 | C20: 0 | D20: 0 | E20: 3.5 | F20: 0 | G20: 0 | H20: 0 | I20: 0 | J20: 0 | K20: 6 | L20: 0 | M20: 4.5 | N20: 14 | O20: 2019-05-15 | Q20: 1 | S20: 1 | T20: 1 | U20: 1 | Y20: 1 | AA20: 1
A21: 5 | B21: 16 | C21: 0 | D21: 5.5 | E21: 47.5 | F21: 0 | G21: 0 | H21: 0 | I21: 67.5 | J21: 49.5 | K21: 0 | L21: 0 | M21: 0 | N21: 15 | O21: 2019-05-16 | R21: 1 | S21: 1 | W21: 1 | X21: 1
A22: 5 | B22: 17 | C22: 0 | D22: 22 | E22: 0 | F22: 0 | G22: 0 | H22: 0 | I22: 3.5 | J22: 0 | K22: 0 | L22: 0 | M22: 0 | N22: 16 | O22: 2019-05-17 | R22: 1 | S22: 1 | W22: 1 | X22: 1
A23: 5 | B23: 18 | C23: 0 | D23: 1.5 | E23: 19 | F23: 0 | G23: 31 | H23: 0 | I23: 0 | J23: 8 | K23: 0 | L23: 0 | M23: 0 | N23: 17 | O23: 2019-05-18 | R23: 1 | S23: 1 | U23: 1 | W23: 1 | X23: 1
A24: 5 | B24: 19 | C24: 0 | D24: 0.5 | E24: 1.5 | F24: 0 | G24: 3.5 | H24: 0 | I24: 0 | J24: 4 | K24: 0 | L24: 7 | M24: 0 | N24: 18 | O24: 2019-05-19 | S24: 1 | U24: 1 | X24: 1 | Z24: 1
A25: 5 | B25: 20 | C25: 0 | D25: 36 | E25: 0 | F25: 10.5 | G25: 0 | H25: 0 | I25: 0 | J25: 2.5 | K25: 12 | L25: 1.5 | M25: 0 | N25: 19 | O25: 2019-05-20 | R25: 1 | T25: 1 | U25: 1 | X25: 1 | Y25: 1
A26: 5 | B26: 21 | C26: 0.5 | D26: 25 | E26: 0 | F26: 29.5 | G26: 0 | H26: 0 | I26: 0 | J26: 0 | K26: 37.5 | L26: 0 | M26: 0 | N26: 20 | O26: 2019-05-21 | R26: 1 | T26: 1 | Y26: 1
A27: 5 | B27: 22 | C27: 2.5 | D27: 0 | E27: 0 | F27: 0 | G27: 0 | H27: 0 | I27: 0 | J27: 0 | K27: 0 | L27: 0 | M27: 0 | N27: 21 | O27: 2019-05-22 | Q27: 1 | R27: 1 | T27: 1 | Y27: 1
A28: 5 | B28: 23 | C28: 0 | D28: 0 | E28: 0 | F28: 0 | G28: 5 | H28: 0 | I28: 0 | J28: 0 | K28: 0 | L28: 0 | M28: 0 | N28: 22 | O28: 2019-05-23 | U28: 1 | Y28: 1
A29: 5 | B29: 24 | C29: 0 | D29: 2 | E29: 0 | F29: 0 | G29: 0 | H29: 2 | I29: 0 | J29: 0 | K29: 0 | L29: 0 | M29: 0 | N29: 23 | O29: 2019-05-24 | R29: 1 | S29: =IF(E29>=$C$108,1,IF(E28>=$C$109,1,IF(E27>=$C$110,1,""))) ->  | V29: 1
A30: 5 | B30: 25 | C30: 0 | D30: 0 | E30: 0 | F30: 0 | G30: 0 | H30: 18.5 | I30: 0 | J30: 0 | K30: 0 | L30: 0 | M30: 1 | N30: 24 | O30: 2019-05-25 | Q30: =IF(C30>=$C$108,1,IF(C29>=$C$109,1,IF(C28>=$C$110,1,""))) ->  | V30: 1
A31: 5 | B31: 26 | C31: 2.5 | D31: 0 | E31: 14.5 | F31: 0 | G31: 0 | H31: 0 | I31: 0.5 | J31: 0 | K31: 4 | L31: 0 | M31: 0 | N31: 25 | O31: 2019-05-26 | Q31: 1 | S31: 1 | V31: 1 | Y31: 1
A32: 5 | B32: 27 | C32: 10 | D32: 30 | E32: 0 | F32: 0 | G32: 0 | H32: 0 | I32: 3.5 | J32: 0 | K32: 0 | L32: 0 | M32: 0 | N32: 26 | O32: 2019-05-27 | Q32: 1 | R32: 1 | S32: 1 | W32: 1
A33: 5 | B33: 28 | C33: 0 | D33: 0 | E33: 0 | F33: 40 | G33: 0 | H33: 0 | I33: 0 | J33: 0 | K33: 0 | L33: 6 | M33: 0 | N33: 27 | O33: 2019-05-28 | Q33: 1 | R33: 1 | T33: 1 | Z33: 1
A34: 5 | B34: 29 | C34: 0 | D34: 0 | E34: 0 | F34: 0 | G34: 0 | H34: 0 | I34: 12 | J34: 0 | K34: 0 | L34: 5 | M34: 12.5 | N34: 28 | O34: 2019-05-29 | R34: 1 | T34: 1 | W34: 1 | Z34: 1 | AA34: 1
A35: 5 | B35: 30 | C35: 2 | D35: 0 | E35: 0 | F35: 0 | G35: 12.5 | H35: 0 | I35: 7.5 | J35: 0 | K35: 0 | L35: 4 | M35: 0 | N35: 29 | O35: 2019-05-30 | Q35: 1 | T35: 1 | U35: 1 | W35: 1 | Z35: 1 | AA35: 1
A36: 5 | B36: 31 | C36: 3 | D36: 0 | E36: 1.5 | F36: 0.5 | G36: 8.5 | H36: 2 | I36: 0 | J36: 0 | K36: 0 | L36: 0 | M36: 0 | N36: 30 | O36: 2019-05-31 | Q36: 1 | U36: 1 | V36: 1
A37: 6 | B37: 1 | C37: 0 | D37: 0 | E37: 1 | F37: 0 | G37: 0 | H37: 20 | I37: 0 | J37: 0 | K37: 0 | L37: 0 | M37: 0 | N37: 31 | O37: 2019-06-01 | V37: 1
A38: 6 | B38: 2 | C38: 0 | D38: 0 | E38: 0 | F38: 0 | G38: 0 | H38: 0 | I38: 0 | J38: 0 | K38: 0 | L38: 0 | M38: 0 | N38: 32 | O38: 2019-06-02 | V38: 1
A39: 6 | B39: 3 | C39: 0 | D39: 0.5 | E39: 0 | F39: 0 | G39: 0 | H39: 0 | I39: 0 | J39: 36.5 | K39: 0 | L39: 0 | M39: 0 | N39: 33 | O39: 2019-06-03 | X39: 1
A40: 6 | B40: 4 | C40: 0 | D40: 31.5 | E40: 0 | F40: 0 | G40: 0 | H40: 0 | I40: 4 | J40: 0 | K40: 0 | L40: 0 | M40: 0 | N40: 34 | O40: 2019-06-04 | R40: 1 | W40: 1 | X40: 1
A41: 6 | B41: 5 | C41: 6.5 | D41: 0 | E41: 0 | F41: 0 | G41: 1 | H41: 0 | I41: 9 | J41: 22.5 | K41: 2 | L41: 0 | M41: 0 | N41: 35 | O41: 2019-06-05 | Q41: 1 | R41: 1 | W41: 1 | X41: 1 | Y41: 1
A42: 6 | B42: 6 | C42: 38 | D42: 0 | E42: 0 | F42: 0 | G42: 36.5 | H42: 0 | I42: 0 | J42: 1 | K42: 0.5 | L42: 0 | M42: 0 | N42: 36 | O42: 2019-06-06 | Q42: 1 | R42: 1 | U42: 1 | X42: 1
A43: 6 | B43: 7 | C43: 2.5 | D43: 0 | E43: 0 | F43: 25 | G43: 2 | H43: 23 | I43: 8 | J43: 0 | K43: 2.5 | L43: 0 | M43: 0 | N43: 37 | O43: 2019-06-07 | Q43: 1 | T43: 1 | U43: 1 | V43: 1 | W43: 1 | Y43: 1
A44: 6 | B44: 8 | C44: 0 | D44: 0 | E44: 0 | F44: 1.5 | G44: 8.5 | H44: 0 | I44: 0 | J44: 3.5 | K44: 7 | L44: 0 | M44: 38.5 | N44: 38 | O44: 2019-06-08 | Q44: 1 | T44: 1 | U44: 1 | V44: 1 | X44: 1 | Y44: 1 | AA44: 1
A45: 6 | B45: 9 | C45: 0 | D45: 0 | E45: 0 | F45: 0 | G45: 5.5 | H45: 0 | I45: 1.5 | J45: 7.5 | K45: 25 | L45: 0 | M45: 5.5 | N45: 39 | O45: 2019-06-09 | U45: 1 | X45: 1 | Y45: 1 | AA45: 1
A46: 6 | B46: 10 | C46: 0 | D46: 0 | E46: 4.5 | F46: 0.5 | G46: 7 | H46: 0 | I46: 0 | J46: 0 | K46: 0.5 | L46: 0 | M46: 0 | N46: 40 | O46: 2019-06-10 | S46: 1 | U46: 1 | Y46: 1 | AA46: 1
A47: 6 | B47: 11 | C47: 1.5 | D47: 0 | E47: 22.5 | F47: 0 | G47: 13.5 | H47: 0 | I47: 0 | J47: 7 | K47: 3 | L47: 0 | M47: 0 | N47: 41 | O47: 2019-06-11 | S47: 1 | U47: 1 | X47: 1 | Y47: 1
A48: 6 | B48: 12 | C48: 0 | D48: 0 | E48: 28 | F48: 0 | G48: 3 | H48: 0 | I48: 20.5 | J48: 0.5 | K48: 27 | L48: 0 | M48: 0.5 | N48: 42 | O48: 2019-06-12 | S48: 1 | U48: 1 | W48: 1 | Y48: 1
A49: 6 | B49: 13 | C49: 0 | D49: 14 | E49: 66 | F49: 0 | G49: 0 | H49: 0 | I49: 26.5 | J49: 0 | K49: 0 | L49: 0 | M49: 0 | N49: 43 | O49: 2019-06-13 | R49: 1 | S49: 1 | W49: 1 | Y49: 1
A50: 6 | B50: 14 | C50: 16.5 | D50: 11 | E50: 19 | F50: 0 | G50: 0 | H50: 0 | I50: 0 | J50: 0 | K50: 0 | L50: 0 | M50: 0 | N50: 44 | O50: 2019-06-14 | Q50: 1 | R50: 1 | S50: 1 | W50: 1
A51: 6 | B51: 15 | C51: 3 | D51: 51 | E51: 0 | F51: 38 | G51: 2.5 | H51: 0 | I51: 0 | J51: 0 | K51: 0 | L51: 7 | M51: 1.5 | N51: 45 | O51: 2019-06-15 | Q51: 1 | R51: 1 | S51: 1 | T51: 1 | U51: 1 | Z51: 1
A52: 6 | B52: 16 | C52: 0.5 | D52: 14.5 | E52: 0 | F52: 4 | G52: 0 | H52: 0 | I52: 16.5 | J52: 0.5 | K52: 0 | L52: 0 | M52: 32.5 | N52: 46 | O52: 2019-06-16 | R52: 1 | T52: 1 | W52: 1 | AA52: 1
A53: 6 | B53: 17 | C53: 0 | D53: 0 | E53: 0 | F53: 0 | G53: 0 | H53: 0 | I53: 1.5 | J53: 8.5 | K53: 0 | L53: 0 | M53: 18.5 | N53: 47 | O53: 2019-06-17 | R53: 1 | T53: 1 | W53: 1 | X53: 1 | AA53: 1
A54: 6 | B54: 18 | C54: 0 | D54: 7 | E54: 19.5 | F54: 0 | G54: 0 | H54: 0 | I54: 0 | J54: 6 | K54: 0 | L54: 0 | M54: 0 | N54: 48 | O54: 2019-06-18 | R54: 1 | S54: 1 | X54: 1 | AA54: 1
A55: 6 | B55: 19 | C55: 0 | D55: 13.5 | E55: 44 | F55: 0 | G55: 2.5 | H55: 0 | I55: 6.5 | J55: 8.5 | K55: 0 | L55: 48.5 | M55: 62 | N55: 49 | O55: 2019-06-19 | R55: 1 | S55: 1 | U55: 1 | W55: 1 | X55: 1 | Z55: 1 | AA55: 1
A56: 6 | B56: 20 | C56: 0 | D56: 0 | E56: 0.5 | F56: 0 | G56: 33 | H56: 0.5 | I56: 0 | J56: 0 | K56: 0 | L56: 24.5 | M56: 0.5 | N56: 50 | O56: 2019-06-20 | R56: 1 | S56: 1 | U56: 1 | Z56: 1 | AA56: 1
A57: 6 | B57: 21 | C57: 11.5 | D57: 0 | E57: 0 | F57: 1 | G57: 0.5 | H57: 35 | I57: 26.5 | J57: 8 | K57: 0 | L57: 11.5 | M57: 26 | N57: 51 | O57: 2019-06-21 | Q57: 1 | S57: 1 | U57: 1 | V57: =IF(H57>=$C$108,1,IF(H56>=$C$109,1,IF(H55>=$C$110,1,""))) -> 1 | W57: 1 | X57: 1 | Z57: 1 | AA57: 1
A58: 6 | B58: 22 | C58: 2.5 | D58: 0 | E58: 0 | F58: 0 | G58: 0 | H58: 0 | I58: 25.5 | J58: 0 | K58: 4.5 | L58: 0 | M58: 25 | N58: 52 | O58: 2019-06-22 | Q58: 1 | U58: 1 | V58: 1 | W58: 1 | Y58: 1 | Z58: 1 | AA58: 1
A59: 6 | B59: 23 | C59: 0 | D59: 0 | E59: 0 | F59: 0 | G59: 7 | H59: 0 | I59: 13.5 | J59: 31 | K59: 0 | L59: 10.5 | M59: 0 | N59: 53 | O59: 2019-06-23 | U59: 1 | V59: 1 | W59: 1 | X59: 1 | Z59: 1 | AA59: 1
A60: 6 | B60: 24 | C60: 0.5 | D60: 3 | E60: 0 | F60: 0 | G60: 0 | H60: 2 | I60: 9 | J60: 7.5 | K60: 0 | L60: 2.5 | M60: 0.5 | N60: 54 | O60: 2019-06-24 | R60: 1 | V60: 1 | W60: 1 | X60: 1 | Z60: 1
A61: 6 | B61: 25 | C61: 0 | D61: 0 | E61: 3.5 | F61: 0 | G61: 0 | H61: 13 | I61: 27.5 | J61: 0 | K61: 0 | L61: 0 | M61: 4 | N61: 55 | O61: 2019-06-25 | S61: 1 | V61: 1 | W61: 1 | X61: 1 | AA61: 1
A62: 6 | B62: 26 | C62: 0 | D62: 2 | E62: 5.5 | F62: 0 | G62: 0 | H62: 0 | I62: 0 | J62: 22 | K62: 13 | L62: 48.5 | M62: 0 | N62: 56 | O62: 2019-06-26 | Q62: =IF(C62>=$C$108,1,IF(C61>=$C$109,1,IF(C60>=$C$110,1,""))) ->  | R62: 1 | S62: 1 | V62: 1 | W62: 1 | X62: 1 | Y62: 1 | Z62: 1
A63: 6 | B63: 27 | C63: 0 | D63: 0.5 | E63: 4.5 | F63: 9.5 | G63: 0 | H63: 0 | I63: 16.5 | J63: 0 | K63: 0 | L63: 0 | M63: 0 | N63: 57 | O63: 2019-06-27 | S63: 1 | T63: 1 | W63: 1 | X63: 1 | Y63: 1 | Z63: 1
A64: 6 | B64: 28 | C64: 0 | D64: 0 | E64: 50 | F64: 0.5 | G64: 18.5 | H64: 5 | I64: 9 | J64: 0.5 | K64: 22 | L64: 0 | M64: 0 | N64: 58 | O64: 2019-06-28 | S64: 1 | U64: 1 | V64: 1 | W64: 1 | Y64: 1 | Z64: 1
A65: 6 | B65: 29 | C65: 0 | D65: 1.5 | E65: 0 | F65: 8.5 | G65: 58.5 | H65: 3 | I65: 6 | J65: 0 | K65: 5.5 | L65: 0 | M65: 0 | N65: 59 | O65: 2019-06-29 | S65: 1 | T65: 1 | U65: 1 | V65: 1 | W65: 1 | Y65: 1
A66: 6 | B66: 30 | C66: 0 | D66: 2.5 | E66: 17.5 | F66: 11.5 | G66: 3.5 | H66: 33.5 | I66: 0.5 | J66: 14 | K66: 0 | L66: 0 | M66: 5.5 | N66: 60 | O66: 2019-06-30 | R66: 1 | S66: 1 | T66: 1 | U66: 1 | V66: 1 | X66: 1 | AA66: 1
A67: 7 | B67: 1 | C67: 0 | D67: 9 | E67: 0.5 | F67: 4.5 | G67: 0 | H67: 8.5 | I67: 0 | J67: 10.5 | K67: 0 | L67: 0 | M67: 28.5 | N67: 61 | O67: 2019-07-01
A68: 7 | B68: 2 | C68: 0 | D68: 3.5 | E68: 0 | F68: 2 | G68: 0 | H68: 40 | I68: 0 | J68: 0 | K68: 0 | L68: 0 | M68: 0 | N68: 62 | O68: 2019-07-02
A69: 7 | B69: 3 | C69: 161.5 | D69: 0.5 | E69: 27.5 | F69: 5 | G69: 0 | H69: 0 | I69: 16 | J69: 0 | K69: 13.5 | L69: 16 | M69: 45.5 | N69: 63 | O69: 2019-07-03 | Q69: 1 | S69: 1 | T69: 1 | V69: 1 | W69: 1 | Y69: 1 | Z69: 1 | AA69: 1
A70: 7 | B70: 4 | C70: 5.5 | D70: 1 | E70: 7 | F70: 2 | G70: 22 | H70: 38.5 | I70: 2.5 | J70: 10.5 | K70: 18 | L70: 36.5 | M70: 0 | N70: 64 | O70: 2019-07-04 | Q70: 1 | S70: 1 | T70: 1 | U70: 1 | V70: 1 | W70: 1 | X70: 1 | Y70: 1 | Z70: 1 | AA70: 1
A71: 7 | B71: 5 | C71: 3.5 | D71: 1 | E71: 0 | F71: 0 | G71: 107 | H71: 13.5 | I71: 0 | J71: 0 | K71: 10 | L71: 10.5 | M71: 8.5 | N71: 65 | O71: 2019-07-05 | Q71: 1 | U71: 1 | V71: 1 | X71: 1 | Y71: 1 | Z71: 1 | AA71: 1
A72: 7 | B72: 6 | C72: 0 | D72: 0 | E72: 34 | F72: 0 | G72: 93 | H72: 0 | I72: 0 | J72: 0.5 | K72: 31 | L72: 2.5 | M72: 46 | N72: 66 | O72: 2019-07-06 | S72: 1 | U72: 1 | V72: 1 | Y72: 1 | Z72: 1 | AA72: 1
A73: 7 | B73: 7 | C73: 0 | D73: 81.5 | E73: 21.5 | F73: 0 | G73: 144.5 | H73: 0 | I73: 0 | J73: 12.5 | K73: 3.5 | L73: 0 | M73: 13.5 | N73: 67 | O73: 2019-07-07 | R73: 1 | S73: 1 | U73: 1 | X73: 1 | Y73: 1 | AA73: 1
A74: 7 | B74: 8 | C74: 23.5 | D74: 52.5 | E74: 36 | F74: 0 | G74: 0 | H74: 0 | I74: 3.5 | J74: 3 | K74: 0.5 | L74: 0 | M74: 0 | N74: 68 | O74: 2019-07-08 | Q74: 1 | R74: 1 | S74: 1 | U74: 1 | W74: 1 | X74: 1 | Y74: 1 | AA74: 1
A75: 7 | B75: 9 | C75: 43.5 | D75: 10 | E75: 4 | F75: 1 | G75: 0 | H75: 5.5 | I75: 15 | J75: 5.5 | K75: 0 | L75: 0 | M75: 0 | N75: 69 | O75: 2019-07-09 | Q75: 1 | R75: 1 | S75: 1 | U75: 1 | V75: 1 | W75: 1 | X75: 1
A76: 7 | B76: 10 | C76: 0 | D76: 1.5 | E76: 22.5 | F76: 0 | G76: 0 | H76: 0 | I76: 0 | J76: 0 | K76: 6 | L76: 0 | M76: 0 | N76: 70 | O76: 2019-07-10 | Q76: 1 | R76: 1 | S76: 1 | W76: 1 | Y76: 1
A77: 7 | B77: 11 | C77: 0.5 | D77: 12 | E77: 4 | F77: 16 | G77: 0 | H77: 0 | I77: 0 | J77: 0 | K77: 0 | L77: 0 | M77: 0 | N77: 71 | O77: 2019-07-11 | Q77: 1 | R77: 1 | S77: 1 | T77: 1
A78: 7 | B78: 12 | C78: 67.5 | D78: 0 | E78: 1 | F78: 8.5 | G78: 0 | H78: 0 | I78: 7 | J78: 0 | K78: 0 | L78: 0 | M78: 16.5 | N78: 72 | O78: 2019-07-12 | Q78: 1 | R78: 1 | T78: 1 | W78: 1 | AA78: 1
A79: 7 | B79: 13 | C79: 1 | D79: 0 | E79: 25.5 | F79: 11.5 | G79: 0 | H79: 0 | I79: 19.5 | J79: 0 | K79: 10 | L79: 7 | M79: 3 | N79: 73 | O79: 2019-07-13 | Q79: 1 | S79: 1 | T79: 1 | W79: 1 | Y79: 1 | Z79: 1 | AA79: 1
A80: 7 | B80: 14 | C80: 8.5 | D80: 0.5 | E80: 23 | F80: 18.5 | G80: 0 | H80: 0 | I80: 5 | J80: 0 | K80: 1.5 | L80: 8 | M80: 1 | N80: 74 | O80: 2019-07-14 | Q80: 1 | S80: 1 | T80: 1 | W80: 1 | Y80: 1 | Z80: 1
A81: 7 | B81: 15 | C81: 24 | D81: 16.5 | E81: 0 | F81: 0.5 | G81: 0 | H81: 0 | I81: 0.5 | J81: 0 | K81: 0 | L81: 1.5 | M81: 1 | N81: 75 | O81: 2019-07-15 | Q81: 1 | R81: 1 | S81: 1 | T81: 1
A82: 7 | B82: 16 | C82: 0 | D82: 3 | E82: 0 | F82: 3 | G82: 0 | H82: 22 | I82: 0 | J82: 18 | K82: 0 | L82: 0 | M82: 0 | N82: 76 | O82: 2019-07-16 | Q82: 1 | R82: 1 | T82: 1 | V82: 1 | X82: 1
A83: 7 | B83: 17 | C83: 10 | D83: 0 | E83: 1.5 | F83: 0 | G83: 0 | H83: 2 | I83: 1.5 | J83: 101.5 | K83: 0 | L83: 0 | M83: 0 | N83: 77 | O83: 2019-07-17 | Q83: 1 | V83: 1 | X83: 1
A84: 7 | B84: 18 | C84: 0 | D84: 0 | E84: 1.5 | F84: 15 | G84: 0 | H84: 30 | I84: 0 | J84: 6.5 | K84: 3.5 | L84: 0.5 | M84: 0 | N84: 78 | O84: 2019-07-18 | Q84: 1 | T84: 1 | V84: 1 | X84: 1 | Y84: 1
A85: 7 | B85: 19 | C85: 46 | D85: 0.5 | E85: 0 | F85: 18.5 | G85: 0 | H85: 0 | I85: 0 | J85: 1 | K85: 3.5 | L85: 0 | M85: 0 | N85: 79 | O85: 2019-07-19 | Q85: 1 | T85: 1 | V85: 1 | X85: 1 | Y85: 1
A86: 7 | B86: 20 | C86: 0 | D86: 36.5 | E86: 0 | F86: 0.5 | G86: 0 | H86: 0 | I86: 0 | J86: 0 | K86: 0 | L86: 0 | M86: 8 | N86: 80 | O86: 2019-07-20 | Q86: 1 | R86: 1 | T86: 1 | V86: 1 | AA86: 1
A87: 7 | B87: 21 | C87: 17.5 | D87: 0 | E87: 26 | F87: 0 | G87: 0 | H87: 0 | I87: 0 | J87: 0 | K87: 0 | L87: 0 | M87: 0.5 | N87: 81 | O87: 2019-07-21 | Q87: 1 | R87: 1 | S87: 1
A88: 7 | B88: 22 | C88: 4 | D88: 0 | E88: 2 | F88: 27.5 | G88: 0 | H88: 0 | I88: 0 | J88: 6.5 | K88: 0 | L88: 6 | M88: 28.5 | N88: 82 | O88: 2019-07-22 | Q88: 1 | R88: 1 | S88: 1 | T88: 1 | X88: 1 | Z88: 1 | AA88: 1
A89: 7 | B89: 23 | C89: 2.5 | D89: 0 | E89: 0 | F89: 20.5 | G89: 0 | H89: 0 | I89: 0 | J89: 23.5 | K89: 0 | L89: 0 | M89: 0 | N89: 83 | O89: 2019-07-23 | Q89: 1 | T89: 1 | X89: 1 | Y89: =IF(K89>=$C$108,1,IF(K88>=$C$109,1,IF(K87>=$C$110,1,""))) ->  | AA89: 1
A90: 7 | B90: 24 | C90: 0 | D90: 0 | E90: 20.5 | F90: 16.5 | G90: 0 | H90: 2 | I90: 0 | J90: 0 | K90: 0 | L90: 3 | M90: 0 | N90: 84 | O90: 2019-07-24 | Q90: =IF(C90>=$C$108,1,IF(C89>=$C$109,1,IF(C88>=$C$110,1,""))) ->  | S90: 1 | T90: 1 | V90: 1 | X90: 1 | Z90: 1
A91: 7 | B91: 25 | C91: 0 | D91: 0 | E91: 25 | F91: 0 | G91: 0 | H91: 7.5 | I91: 0 | J91: 0 | K91: 0 | L91: 0 | M91: 0 | N91: 85 | O91: 2019-07-25 | S91: 1 | T91: 1 | V91: 1
A92: 7 | B92: 26 | C92: 0 | D92: 0 | E92: 3 | F92: 0.5 | G92: 0 | H92: 0.5 | I92: 17.5 | J92: 0 | K92: 0 | L92: 0 | M92: 0 | N92: 86 | O92: 2019-07-26 | S92: 1 | W92: 1
A93: 7 | B93: 27 | C93: 64.5 | D93: 0 | E93: 1 | F93: 4 | G93: 0 | H93: 0 | I93: 0 | J93: 8 | K93: 9 | L93: 0 | M93: 0 | N93: 87 | O93: 2019-07-27 | Q93: 1 | T93: 1 | W93: 1 | X93: 1 | Y93: 1
A94: 7 | B94: 28 | C94: 0 | D94: 0 | E94: 2.5 | F94: 0 | G94: 0 | H94: 2 | I94: 0 | J94: 20 | K94: 0 | L94: 2 | M94: 0 | N94: 88 | O94: 2019-07-28 | Q94: 1 | S94: 1 | V94: 1 | X94: 1 | Z94: 1
A95: 7 | B95: 29 | C95: 0 | D95: 0 | E95: 2.5 | F95: 0 | G95: 17 | H95: 0 | I95: 0 | J95: 4.5 | K95: 0 | L95: 15.5 | M95: 0 | N95: 89 | O95: 2019-07-29 | Q95: 1 | S95: 1 | U95: 1 | X95: 1 | Z95: 1
A96: 7 | B96: 30 | C96: 0 | D96: 0 | E96: 32.5 | F96: 0 | G96: 0 | H96: 19.5 | I96: 0 | J96: 0 | K96: 0 | L96: 20.5 | M96: 0 | N96: 90 | O96: 2019-07-30 | S96: 1 | U96: 1 | V96: 1 | Z96: 1
A97: 7 | B97: 31 | C97: 0 | D97: 0 | E97: 0 | F97: 0 | G97: 0 | H97: 2.5 | I97: 0 | J97: 0 | K97: 0 | L97: 3.5 | M97: 0 | N97: 91 | O97: 2019-07-31 | S97: 1 | V97: 1 | Z97: 1
A98: 8 | B98: 1 | C98: 0 | D98: 0 | E98: 0 | F98: 0 | G98: 0 | H98: 0 | I98: 0 | J98: 0 | K98: 0 | L98: 28.5 | M98: 0 | N98: 92 | O98: 2019-08-01 | S98: 1 | Z98: 1
A99: 8 | B99: 2 | C99: 0 | D99: 0 | E99: 0 | F99: 9 | G99: 0 | H99: 0 | I99: 0 | J99: 0 | K99: 0 | L99: 0 | M99: 0 | N99: 93 | O99: 2019-08-02 | T99: 1 | Z99: 1
A100: 8 | B100: 3 | C100: 1.5 | D100: 27 | E100: 0 | F100: 0 | G100: 0 | H100: 0 | I100: 0 | J100: 0 | K100: 3 | L100: 0 | M100: 0 | N100: 94 | O100: 2019-08-03 | R100: 1 | Y100: 1
A101: 8 | B101: 4 | C101: 24.5 | D101: 0 | E101: 0 | F101: 0 | G101: 0 | H101: 0 | I101: 0 | J101: 0 | K101: 4.5 | L101: 0 | M101: 0 | N101: 95 | O101: 2019-08-04 | Q101: 1 | R101: 1 | Y101: 1
A102: 8 | B102: 5 | C102: 0 | D102: 0 | E102: 0 | F102: 0 | G102: 0 | H102: 0 | I102: 0 | J102: 0 | K102: 0 | L102: 19.5 | M102: 0 | N102: 96 | O102: 2019-08-05 | Q102: 1 | Z102: 1
A103: 8 | B103: 6 | C103: 0 | D103: 0 | E103: 0 | F103: 4 | G103: 0 | H103: 22 | I103: 19 | J103: 0 | K103: 8 | L103: 0 | M103: 0 | N103: 97 | O103: 2019-08-06 | T103: 1 | V103: 1 | W103: 1 | Y103: 1 | Z103: 1
B105: 土寄せ作業可能か どうかの判断条件 | E105: 判断日 | F105: =判断日 -> 2025-06-01 | I105: 判断年 | J105: =IF(YEAR(判断日)<>1900,YEAR(判断日),YEAR(TODAY())) -> 2025 | P105: 可能日の | Q105: 1 | R105: 2 | S105: 3 | T105: 4 | U105: 5 | V105: 6 | W105: 7 | X105: 8 | Y105: 9 | Z105: 10 | AA105: 11
F106: 適期始 | G106: 適期終 | J106: 5/1から数えて | P106: 10年平均 | Q106: 作業可能日 | R106: 作業可能日 | S106: 作業可能日 | T106: 作業可能日 | U106: 作業可能日 | V106: 作業可能日 | W106: 作業可能日 | X106: 作業可能日 | Y106: 作業可能日 | Z106: 作業可能日 | AA106: 作業可能日 | AB106: 近5年平均 | AC106: 近3年平均 | AD106: 最多日数 | AE106: 最少日数
B107: 作業できない降雨量mm | E107: 土寄① | F107: =土寄①始修正 -> 2025-06-21 | G107: =土寄①終修正 -> 2025-07-01 | I107: 土寄①適期始は | J107: =$F$107-DATEVALUE(TEXT(判断年,"####")&"/5/1") -> 51 | K107: 日後 | O107: 5月 | P107: =AVERAGE(Q107:Z107) -> 20.5 | Q107: =31-SUM(Q$6:Q$36) -> 19 | R107: =31-SUM(R$6:R$36) -> 18 | S107: =31-SUM(S$6:S$36) -> 20 | T107: 20 | U107: 16 | V107: 23 | W107: 19 | X107: 22 | Y107: 23 | Z107: 25 | AA107: 25 | AB107: =AVERAGE(Q107:U107) -> 18.6 | AC107: =AVERAGE(Q107:S107) -> 19 | AD107: =MAX(Q107:Z107) -> 25 | AE107: =MIN(Q107:Z107) -> 16
B108: 当日 | C108: =入力表!C26 -> 2 | D108: mm | E108: 土寄② | F108: =土寄②始修正 -> 2025-07-06 | G108: =土寄②終 -> 2025-07-16 | I108: 土寄①適期終は | J108: =$G$107-DATEVALUE(TEXT($J$105,"####")&"/5/1") -> 61 | K108: 日後 | O108: 6月 | P108: 16.7 | Q108: =30-SUM(Q$37:Q$66) -> 22 | R108: =30-SUM(R$37:R$66) -> 16 | S108: =30-SUM(S$37:S$66) -> 14 | T108: 22 | U108: 14 | V108: 17 | W108: 12 | X108: 13 | Y108: 17 | Z108: 20 | AA108: 17 | AB108: =AVERAGE(Q108:U108) -> 17.6 | AC108: =AVERAGE(Q108:S108) -> 17.33333333 | AD108: =MAX(Q108:Z108) -> 22 | AE108: =MIN(Q108:Z108) -> 12
B109: 翌日 | C109: =入力表!C27 -> 10 | D109: mm | E109: 除草剤 | F109: =茎葉始 -> 2025-07-13 | G109: =茎葉終 -> 2025-07-23 | I109: 土寄②適期始は | J109: =$F$108-DATEVALUE(TEXT($J$105,"####")&"/5/1") -> 66 | K109: 日後 | O109: 7月 | P109: 16.9 | Q109: =31-SUM(Q$67:Q$97) -> 9 | R109: =31-SUM(R$67:R$97) -> 20 | S109: =31-SUM(S$67:S$97) -> 11 | T109: 15 | U109: 23 | V109: 16 | W109: 21 | X109: 16 | Y109: 19 | Z109: 19 | AA109: 20 | AB109: 15.6 | AC109: 13.33333333 | AD109: 23 | AE109: 9
B110: ２日後 | C110: =入力表!C28 -> 30 | D110: mm | E110: 摘心 | F110: =摘心始 -> 7/1以降の主茎長で判断 | G110: =摘心終 -> 2025-07-21 | I110: 土寄②適期終は | J110: =$G$108-DATEVALUE(TEXT($J$105,"####")&"/5/1") -> 76 | K110: 日後 | O110: 6/25-7/24 | P110: 16 | Q110: =30-SUM(Q$61:Q$90) -> 11 | R110: =31-SUM(R$61:R$90) -> 18 | S110: =31-SUM(S$61:S$90) -> 11 | T110: 14 | U110: 22 | V110: 15 | W110: 18 | X110: 15 | Y110: 16 | Z110: 20 | AA110: 18 | AB110: 15.2 | AC110: 13.33333333 | AD110: 22 | AE110: 11
C111: ↑ | I111: 除草剤適期始行 | J111: =$F$109-DATEVALUE(TEXT($J$105,"####")&"/5/1") -> 73 | K111: 日後 | N111: 土寄せ①適期日数 | O111: =G107-F107+1 -> 11 | P111: 5.9 | Q111: =$O111-SUM(OFFSET(表の5月1日位置,$J$107,Q$105,$J$108-$J$107+1,1)) -> 11 | R111: =$O111-SUM(OFFSET(表の5月1日位置,$J$107,R105,$J$108-$J$107+1,1)) -> 9 | S111: 8 | T111: 4 | U111: 8 | V111: 5 | W111: 2 | X111: 2 | Y111: 4 | Z111: 6 | AA111: 4 | AB111: 8 | AC111: 9.333333333 | AD111: 11 | AE111: 2
C112: 入力された条件 | I112: 除草剤適期終行 | J112: =$G$109-DATEVALUE(TEXT($J$105,"####")&"/5/1") -> 83 | K112: 日後 | N112: 土寄せ②適期日数 | O112: =G108-F108+1 -> 11 | P112: 5.5 | Q112: =$O112-SUM(OFFSET(表の5月1日位置,$J$109,Q$105,$J$110-$J$109+1,1)) -> 11 | R112: 2 | S112: 3 | T112: 2 | U112: 5 | V112: 7 | W112: 8 | X112: 5 | Y112: 7 | Z112: 5 | AA112: 8 | AB112: 4.6 | AC112: 5.333333333 | AD112: 11 | AE112: 2
I113: 摘心適期始行 | J113: =$F$110-DATEVALUE(TEXT($J$105,"####")&"/5/1") ->  | K113: 日後 | N113: 除草剤適期日数 | O113: =G109-F109+1 -> 11 | P113: 6.6 | Q113: =$O113-COUNTIF(OFFSET(表の5月1日位置,$J$111,-13+Q$105,$J$112-$J$111+1,1),">=1") -> 3 | R113: 8 | S113: 5 | T113: 4 | U113: 11 | V113: 8 | W113: 8 | X113: 5 | Y113: 7 | Z113: 7 | AA113: 6 | AB113: 6.2 | AC113: 5.333333333 | AD113: 11 | AE113: 3
D114: 土寄① | E114: 土寄② | F114: 除草剤 | G114: 摘心 | I114: 摘心適期終行 | J114: =$G$110-DATEVALUE(TEXT($J$105,"####")&"/5/1") -> 81 | K114: 日後 | N114: 摘心適期日数 | O114: =G110-F110+1 ->  | Q114: =$O114-COUNTIF(OFFSET(表の5月1日位置,$J$113,-13+Q$105,$J$114-$J$113+1,1),">=1") -> 
A115: 適期作業の確率 | D115: =P111/O111 -> 0.5363636364 | E115: =P112/O112 -> 0.5 | F115: =P113/O113 -> 0.6 | G115: =P114/O114 ->  | O115: 7月の1mm以上降雨日数 | P115: =AVERAGE(R115:AA115) -> 12.6 | Q115: =COUNTIF(C67:C97,">=1") -> 15 | R115: 12 | S115: 22 | T115: 16 | U115: 5 | V115: 13 | W115: 9 | X115: 14 | Y115: 11 | Z115: 13 | AA115: 11 | AB115: =AVERAGE(R115:V115) -> 13.6 | AC115: =AVERAGE(R115:T115) -> 16.66666667 | AD115: =MAX(R115:AA115) -> 22 | AE115: =MIN(R115:AA115) -> 5
O125: 2019-02-28 | Q125: 2020-02-28 | R125: 43524 | S125: 43889
O126: 2019-03-01 | Q126: 2020-02-29 | R126: 43525 | S126: 43890
N127: 作表日付 | O127: 2019-03-02 | Q127: 2020-03-01 | R127: 43526 | S127: 43891
N128: 判断日 | Q128: 2019-05-01 | R128: 43586 | T128: 5/1の行 | U128: =ROW(表の5月1日位置) -> 6
N129: 判断年 | Q129: 2020-07-03 | R129: 44015
N130: 判断年5/1算出 | R130: 43952
N131: 5/1から土寄①適期始の行 | Q131: =DATEVALUE(TEXT(P127,"####")&"/5/1") | R131: =DATEVALUE(TEXT($J$105,"####")&"/5/1") -> 45778
N132: 5/1から土寄①適期終の行 | Q132: =$M$106-$Q$128 | R132: =$F$107-$R$131 -> 51
N133: 適期始～適期終の不可日 | Q133: =$N$106-$Q$128 | R133: =$G$107-$R$131 -> 61
R134: =SUM(OFFSET($O$6,$R$132,4,58-53+1,1)) -> 3
N136: 土寄①適期始の行
N137: 土寄①適期終の行 | Q137: =ROW(表の5月1日位置)+($M$106-$Q$128) | R137: =ROW(表の5月1日位置)+($F$107-$R$131) -> 57 | S137: セル位置 | T137: =ADDRESS(R137,17) -> $Q$57 | U137: =6+($F$107-$R$131) -> 57 | V137: =T137 -> $Q$57
N138: 土寄①適期内の不可日数 | Q138: =ROW(表の5月1日位置)+($M$107-$Q$128) | R138: =ROW(表の5月1日位置)+($G$107-$R$131) -> 67 | T138: =ADDRESS(R138,17) -> $Q$67
N139: 土寄①適期終の行 | R139: =SUM(T137:T138) -> 0
O141: 上の枠内不要

Sheet アメダス本庄
B1: 降雨日から見た黒大豆作業の検討 | J1: ="（"&C3&"～"&L3&"年平均）" -> （2022～2013年平均）
B2: アメダス本庄データ
A3: 月 | B3: 日 | C3: 2022 | D3: 2021 | E3: 2020 | F3: 2019 | G3: 2018 | H3: 2017 | I3: 2016 | J3: 2015 | K3: 2014 | L3: 2013 | M3: 2012 | Q3: =C3 -> 2022 | R3: 2021 | S3: 2020 | T3: 2019 | U3: 2018 | V3: 2017 | W3: 2016 | X3: 2015 | Y3: 2014 | Z3: 2013 | AA3: 2012
A4: 4 | B4: 29 | C4: 52.5 | D4: 63.5 | E4: 0 | F4: 15.5 | G4: 0 | H4: 1.5 | I4: 0 | J4: 0 | K4: 42.5 | L4: 0 | M4: 0 | O4: 2019-04-29 | Q4: =IF(C4>=$C$108,1,"") -> 1 | R4: 1 | T4: 1 | Y4: 1
A5: 4 | B5: 30 | C5: 0.5 | D5: 0.5 | E5: 0 | F5: 13.5 | G5: 0 | H5: 0 | I5: 0 | J5: 0 | K5: 6 | L5: 5.5 | M5: 0 | O5: 2019-04-30 | Q5: =IF(C5>=$C$108,1,IF(C4>=$C$109,1,"")) -> 1 | R5: 1 | T5: 1 | Y5: 1 | Z5: 1
A6: 5 | B6: 1 | C6: 16.5 | D6: 4 | E6: 0 | F6: 9 | G6: 0 | H6: 0 | I6: 0 | J6: 0 | K6: 0 | L6: 2.5 | M6: 0 | N6: 0 | O6: 2019-05-01 | Q6: =IF(C6>=$C$108,1,IF(C5>=$C$109,1,IF(C4>=$C$110,1,""))) -> 1 | R6: 1 | T6: 1 | Y6: 1 | Z6: 1
A7: 5 | B7: 2 | C7: 1.5 | D7: 9 | E7: 0 | F7: 0 | G7: 4.5 | H7: 0 | I7: 0 | J7: 0 | K7: 0 | L7: 0.5 | M7: 25 | N7: 1 | O7: 2019-05-02 | Q7: 1 | R7: 1 | U7: 1 | AA7: 1
A8: 5 | B8: 3 | C8: 0 | D8: 0 | E8: 2.5 | F8: 0 | G8: 1 | H8: 0 | I8: 3.5 | J8: 0 | K8: 0 | L8: 0 | M8: 2.5 | N8: 2 | O8: 2019-05-03 | S8: 1 | W8: 1 | AA8: 1
A9: 5 | B9: 4 | C9: 0 | D9: 0 | E9: 0.5 | F9: 0 | G9: 0.5 | H9: 0 | I9: 1 | J9: 2.5 | K9: 0 | L9: 2.5 | M9: 6.5 | N9: 3 | O9: 2019-05-04 | X9: 1 | Z9: 1 | AA9: 1
A10: 5 | B10: 5 | C10: 0 | D10: 6.5 | E10: 0 | F10: 0 | G10: 0 | H10: 0 | I10: 0 | J10: 0 | K10: 0 | L10: 0 | M10: 2 | N10: 4 | O10: 2019-05-05 | R10: 1 | AA10: 1
A11: 5 | B11: 6 | C11: 0 | D11: 0 | E11: 3.5 | F11: 8 | G11: 19 | H11: 1.5 | I11: 12 | J11: 0 | K11: 0 | L11: 0 | M11: 6 | N11: 5 | O11: 2019-05-06 | S11: 1 | T11: 1 | U11: 1 | W11: 1 | AA11: 1
A12: 5 | B12: 7 | C12: 0 | D12: 0 | E12: 0 | F12: 0 | G12: 48.5 | H12: 0 | I12: 0 | J12: 1 | K12: 0 | L12: 0 | M12: 1 | N12: 6 | O12: 2019-05-07 | U12: 1 | W12: 1
A13: 5 | B13: 8 | C13: 0 | D13: 0 | E13: 0 | F13: 0 | G13: 9 | H13: 0 | I13: 0 | J13: 0 | K13: 0.5 | L13: 0 | M13: 0 | N13: 7 | O13: 2019-05-08 | U13: 1
A14: 5 | B14: 9 | C14: 0 | D14: 0.5 | E14: 4.5 | F14: 0 | G14: 7.5 | H14: 5 | I14: 10.5 | J14: 0 | K14: 3.5 | L14: 0 | M14: 0 | N14: 8 | O14: 2019-05-09 | S14: 1 | U14: 1 | V14: 1 | W14: 1 | Y14: 1
A15: 5 | B15: 10 | C15: 0 | D15: 0 | E15: 3 | F15: 0 | G15: 0 | H15: 3 | I15: 1 | J15: 0 | K15: 0 | L15: 7.5 | M15: 0 | N15: 9 | O15: 2019-05-10 | S15: 1 | V15: 1 | W15: 1 | Z15: 1
A16: 5 | B16: 11 | C16: 1.5 | D16: 0 | E16: 0 | F16: 0 | G16: 0 | H16: 0 | I16: 25 | J16: 0 | K16: 0 | L16: 8 | M16: 1.5 | N16: 10 | O16: 2019-05-11 | W16: 1 | Z16: 1
A17: 5 | B17: 12 | C17: 5 | D17: 0.5 | E17: 0 | F17: 0 | G17: 0 | H17: 1 | I17: 0 | J17: 41 | K17: 5.5 | L17: 0 | M17: 1 | N17: 11 | O17: 2019-05-12 | Q17: 1 | W17: 1 | X17: 1 | Y17: 1
A18: 5 | B18: 13 | C18: 15 | D18: 0 | E18: 0 | F18: 0 | G18: 43 | H18: 15 | I18: 0 | J18: 0 | K18: 1 | L18: 0 | M18: 0 | N18: 12 | O18: 2019-05-13 | Q18: 1 | U18: 1 | V18: 1 | X18: 1
A19: 5 | B19: 14 | C19: 14 | D19: 0 | E19: 0 | F19: 2.5 | G19: 0 | H19: 0 | I19: 0 | J19: 0 | K19: 0 | L19: 0 | M19: 0 | N19: 13 | O19: 2019-05-14 | Q19: 1 | T19: 1 | U19: 1 | V19: 1 | X19: 1
A20: 5 | B20: 15 | C20: 0 | D20: 0 | E20: 2.5 | F20: 0 | G20: 0 | H20: 0 | I20: 0 | J20: 0 | K20: 7 | L20: 0 | M20: 6 | N20: 14 | O20: 2019-05-15 | Q20: 1 | S20: 1 | U20: 1 | Y20: 1 | AA20: 1
A21: 5 | B21: 16 | C21: 0 | D21: 6 | E21: 43 | F21: 0 | G21: 0 | H21: 0 | I21: 75.5 | J21: 22 | K21: 0 | L21: 0 | M21: 0 | N21: 15 | O21: 2019-05-16 | R21: 1 | S21: 1 | W21: 1 | X21: 1
A22: 5 | B22: 17 | C22: 0 | D22: 31 | E22: 0 | F22: 0 | G22: 0 | H22: 0 | I22: 1.5 | J22: 0 | K22: 0 | L22: 0 | M22: 1.5 | N22: 16 | O22: 2019-05-17 | R22: 1 | S22: 1 | W22: 1 | X22: 1
A23: 5 | B23: 18 | C23: 0 | D23: 1 | E23: 20.5 | F23: 0 | G23: 19.5 | H23: 0 | I23: 0 | J23: 6 | K23: 0 | L23: 0 | M23: 0 | N23: 17 | O23: 2019-05-18 | R23: 1 | S23: 1 | U23: 1 | W23: 1 | X23: 1
A24: 5 | B24: 19 | C24: 0 | D24: 1 | E24: 1 | F24: 0 | G24: 1.5 | H24: 0 | I24: 0 | J24: 6 | K24: 0 | L24: 8.5 | M24: 0 | N24: 18 | O24: 2019-05-19 | R24: 1 | S24: 1 | U24: 1 | X24: 1 | Z24: 1
A25: 5 | B25: 20 | C25: 0 | D25: 20 | E25: 0 | F25: 11.5 | G25: 0 | H25: 0 | I25: 0 | J25: 1.5 | K25: 8.5 | L25: 0.5 | M25: 0 | N25: 19 | O25: 2019-05-20 | R25: 1 | T25: 1 | Y25: 1
A26: 5 | B26: 21 | C26: 0 | D26: 25 | E26: 0 | F26: 28 | G26: 0 | H26: 0 | I26: 0 | J26: 0 | K26: 37 | L26: 0 | M26: 0 | N26: 20 | O26: 2019-05-21 | R26: 1 | T26: 1 | Y26: 1
A27: 5 | B27: 22 | C27: 0.5 | D27: 0 | E27: 0 | F27: 0 | G27: 0 | H27: 0 | I27: 0 | J27: 0 | K27: 0 | L27: 0 | M27: 0.5 | N27: 21 | O27: 2019-05-22 | R27: 1 | T27: 1 | Y27: 1
A28: 5 | B28: 23 | C28: 0 | D28: 0 | E28: 0 | F28: 0 | G28: 7 | H28: 0 | I28: 0 | J28: 0 | K28: 0 | L28: 0 | M28: 0 | N28: 22 | O28: 2019-05-23 | U28: 1 | Y28: 1
A29: 5 | B29: 24 | C29: 0 | D29: 5 | E29: 0 | F29: 0 | G29: 0 | H29: 1.5 | I29: 0 | J29: 0 | K29: 0 | L29: 0 | M29: 0 | N29: 23 | O29: 2019-05-24 | R29: 1 | S29: =IF(E29>=$C$108,1,IF(E28>=$C$109,1,IF(E27>=$C$110,1,""))) -> 
A30: 5 | B30: 25 | C30: 0 | D30: 0 | E30: 0.5 | F30: 0 | G30: 0 | H30: 14 | I30: 0 | J30: 0 | K30: 0 | L30: 0 | M30: 3 | N30: 24 | O30: 2019-05-25 | Q30: =IF(C30>=$C$108,1,IF(C29>=$C$109,1,IF(C28>=$C$110,1,""))) ->  | V30: 1 | AA30: 1
A31: 5 | B31: 26 | C31: 3.5 | D31: 0 | E31: 7 | F31: 0 | G31: 0 | H31: 0 | I31: 0.5 | J31: 0 | K31: 4.5 | L31: 0 | M31: 0 | N31: 25 | O31: 2019-05-26 | Q31: 1 | S31: 1 | V31: 1 | Y31: 1
A32: 5 | B32: 27 | C32: 8.5 | D32: 23 | E32: 0 | F32: 0 | G32: 0 | H32: 0 | I32: 2.5 | J32: 0 | K32: 0 | L32: 0 | M32: 0 | N32: 26 | O32: 2019-05-27 | Q32: 1 | R32: 1 | W32: 1
A33: 5 | B33: 28 | C33: 0 | D33: 0 | E33: 0 | F33: 45 | G33: 0 | H33: 0 | I33: 0.5 | J33: 0 | K33: 0 | L33: 13.5 | M33: 0 | N33: 27 | O33: 2019-05-28 | R33: 1 | T33: 1 | Z33: 1
A34: 5 | B34: 29 | C34: 0 | D34: 0 | E34: 0 | F34: 0 | G34: 0 | H34: 0 | I34: 15 | J34: 0 | K34: 0 | L34: 8 | M34: 8 | N34: 28 | O34: 2019-05-29 | T34: 1 | W34: 1 | Z34: 1 | AA34: 1
A35: 5 | B35: 30 | C35: 0 | D35: 0 | E35: 0 | F35: 0 | G35: 11.5 | H35: 0 | I35: 9 | J35: 0 | K35: 0 | L35: 2.5 | M35: 0.5 | N35: 29 | O35: 2019-05-30 | T35: 1 | U35: 1 | W35: 1 | Z35: 1
A36: 5 | B36: 31 | C36: 2 | D36: 0 | E36: 1 | F36: 2 | G36: 17.5 | H36: 0.5 | I36: 0 | J36: 0 | K36: 0 | L36: 0 | M36: 0 | N36: 30 | O36: 2019-05-31 | Q36: 1 | T36: 1 | U36: 1
A37: 6 | B37: 1 | C37: 0 | D37: 0 | E37: 0 | F37: 0 | G37: 0 | H37: 14.5 | I37: 0 | J37: 0 | K37: 0 | L37: 0 | M37: 0 | N37: 31 | O37: 2019-06-01 | U37: 1 | V37: 1
A38: 6 | B38: 2 | C38: 0 | D38: 0 | E38: 0 | F38: 0 | G38: 0 | H38: 0 | I38: 0 | J38: 0 | K38: 0 | L38: 0 | M38: 1.5 | N38: 32 | O38: 2019-06-02 | V38: 1
A39: 6 | B39: 3 | C39: 0 | D39: 0 | E39: 0 | F39: 0 | G39: 0 | H39: 0 | I39: 0 | J39: 38.5 | K39: 0 | L39: 0 | M39: 0 | N39: 33 | O39: 2019-06-03 | X39: 1
A40: 6 | B40: 4 | C40: 0 | D40: 32 | E40: 0 | F40: 0 | G40: 0 | H40: 0 | I40: 4 | J40: 0 | K40: 0 | L40: 0 | M40: 0 | N40: 34 | O40: 2019-06-04 | R40: 1 | W40: 1 | X40: 1
A41: 6 | B41: 5 | C41: 6 | D41: 0 | E41: 0 | F41: 0 | G41: 0 | H41: 0 | I41: 5 | J41: 24.5 | K41: 2.5 | L41: 0 | M41: 0 | N41: 35 | O41: 2019-06-05 | Q41: 1 | R41: 1 | W41: 1 | X41: 1 | Y41: 1
A42: 6 | B42: 6 | C42: 35.5 | D42: 0 | E42: 0 | F42: 0 | G42: 31 | H42: 0 | I42: 0 | J42: 1.5 | K42: 0 | L42: 18 | M42: 0 | N42: 36 | O42: 2019-06-06 | Q42: 1 | R42: 1 | U42: 1 | X42: 1 | Z42: 1
A43: 6 | B43: 7 | C43: 2 | D43: 0 | E43: 0 | F43: 21.5 | G43: 0 | H43: 23 | I43: 10 | J43: 0 | K43: 1 | L43: 0 | M43: 0 | N43: 37 | O43: 2019-06-07 | Q43: 1 | T43: 1 | U43: 1 | V43: 1 | W43: 1 | Z43: 1
A44: 6 | B44: 8 | C44: 0 | D44: 0 | E44: 0 | F44: 3.5 | G44: 7 | H44: 1 | I44: 0 | J44: 3.5 | K44: 0.5 | L44: 0 | M44: 32.5 | N44: 38 | O44: 2019-06-08 | Q44: 1 | T44: 1 | U44: 1 | V44: 1 | W44: 1 | X44: 1 | AA44: 1
A45: 6 | B45: 9 | C45: 0 | D45: 0 | E45: 0 | F45: 0 | G45: 4 | H45: 0 | I45: 2 | J45: 8 | K45: 16.5 | L45: 0 | M45: 5 | N45: 39 | O45: 2019-06-09 | U45: 1 | W45: 1 | X45: 1 | Y45: 1 | AA45: 1
A46: 6 | B46: 10 | C46: 0 | D46: 0 | E46: 0 | F46: 1 | G46: 2.5 | H46: 0 | I46: 0 | J46: 0 | K46: 0.5 | L46: 0 | M46: 0 | N46: 40 | O46: 2019-06-10 | U46: 1 | Y46: 1 | AA46: 1
A47: 6 | B47: 11 | C47: 0.5 | D47: 0 | E47: 15.5 | F47: 0 | G47: 10.5 | H47: 0 | I47: 0 | J47: 6 | K47: 0.5 | L47: 0 | M47: 0 | N47: 41 | O47: 2019-06-11 | S47: 1 | U47: 1 | X47: 1
A48: 6 | B48: 12 | C48: 0 | D48: 0 | E48: 28.5 | F48: 0 | G48: 2.5 | H48: 0 | I48: 18 | J48: 10 | K48: 27.5 | L48: 0 | M48: 0.5 | N48: 42 | O48: 2019-06-12 | S48: 1 | U48: 1 | W48: 1 | X48: 1 | Y48: 1
A49: 6 | B49: 13 | C49: 0 | D49: 7.5 | E49: 52 | F49: 0 | G49: 2.5 | H49: 0 | I49: 27 | J49: 0 | K49: 0.5 | L49: 0 | M49: 0 | N49: 43 | O49: 2019-06-13 | R49: 1 | S49: 1 | U49: 1 | W49: 1 | X49: 1 | Y49: 1
A50: 6 | B50: 14 | C50: 9.5 | D50: 8.5 | E50: 26 | F50: 0 | G50: 0 | H50: 0 | I50: 0.5 | J50: 0 | K50: 0 | L50: 0 | M50: 0 | N50: 44 | O50: 2019-06-14 | Q50: 1 | R50: 1 | S50: 1 | W50: 1
A51: 6 | B51: 15 | C51: 1.5 | D51: 33 | E51: 0 | F51: 36.5 | G51: 1 | H51: 0 | I51: 0 | J51: 0 | K51: 0 | L51: 9.5 | M51: 1.5 | N51: 45 | O51: 2019-06-15 | R51: 1 | S51: 1 | T51: 1 | Z51: 1
A52: 6 | B52: 16 | C52: 0 | D52: 12 | E52: 0 | F52: 5 | G52: 0 | H52: 0 | I52: 16.5 | J52: 0 | K52: 0 | L52: 0 | M52: 44.5 | N52: 46 | O52: 2019-06-16 | R52: 1 | T52: 1 | W52: 1 | AA52: 1
A53: 6 | B53: 17 | C53: 0 | D53: 0 | E53: 0 | F53: 0.5 | G53: 0 | H53: 0 | I53: 3 | J53: 0 | K53: 0 | L53: 0 | M53: 11 | N53: 47 | O53: 2019-06-17 | R53: 1 | T53: 1 | W53: 1 | AA53: 1
A54: 6 | B54: 18 | C54: 0 | D54: 4 | E54: 15.5 | F54: 0 | G54: 0 | H54: 0 | I54: 0 | J54: 2 | K54: 0 | L54: 0 | M54: 0 | N54: 48 | O54: 2019-06-18 | R54: 1 | S54: 1 | X54: 1 | AA54: 1
A55: 6 | B55: 19 | C55: 0 | D55: 20 | E55: 48 | F55: 0 | G55: 2.5 | H55: 0 | I55: 4.5 | J55: 11 | K55: 0 | L55: 57.5 | M55: 68 | N55: 49 | O55: 2019-06-19 | R55: 1 | S55: 1 | U55: 1 | W55: 1 | X55: 1 | Z55: 1 | AA55: 1
A56: 6 | B56: 20 | C56: 0 | D56: 0 | E56: 0.5 | F56: 0 | G56: 35 | H56: 0.5 | I56: 0 | J56: 0.5 | K56: 2.5 | L56: 18 | M56: 2.5 | N56: 50 | O56: 2019-06-20 | R56: 1 | S56: 1 | U56: 1 | X56: 1 | Y56: 1 | Z56: 1 | AA56: 1
A57: 6 | B57: 21 | C57: 6 | D57: 0 | E57: 0 | F57: 0 | G57: 0 | H57: 28 | I57: 16 | J57: 13 | K57: 0.5 | L57: 7.5 | M57: 19 | N57: 51 | O57: 2019-06-21 | Q57: 1 | S57: 1 | U57: 1 | V57: =IF(H57>=$C$108,1,IF(H56>=$C$109,1,IF(H55>=$C$110,1,""))) -> 1 | W57: 1 | X57: 1 | Z57: 1 | AA57: 1
A58: 6 | B58: 22 | C58: 0.5 | D58: 0 | E58: 0 | F58: 0 | G58: 0 | H58: 0 | I58: 14 | J58: 0 | K58: 7 | L58: 0 | M58: 23.5 | N58: 52 | O58: 2019-06-22 | U58: 1 | V58: 1 | W58: 1 | X58: 1 | Y58: 1 | AA58: 1
A59: 6 | B59: 23 | C59: 0 | D59: 0 | E59: 0 | F59: 0 | G59: 4 | H59: 0 | I59: 17.5 | J59: 0 | K59: 0 | L59: 0 | M59: 0 | N59: 53 | O59: 2019-06-23 | U59: 1 | W59: 1 | AA59: 1
A60: 6 | B60: 24 | C60: 3 | D60: 12 | E60: 0 | F60: 0 | G60: 0 | H60: 0.5 | I60: 8 | J60: 1.5 | K60: 0 | L60: 1 | M60: 0 | N60: 54 | O60: 2019-06-24 | Q60: 1 | R60: 1 | W60: 1
A61: 6 | B61: 25 | C61: 0 | D61: 0 | E61: 2 | F61: 0 | G61: 0 | H61: 24 | I61: 17 | J61: 0 | K61: 0 | L61: 0 | M61: 1.5 | N61: 55 | O61: 2019-06-25 | R61: 1 | S61: 1 | V61: 1 | W61: 1
A62: 6 | B62: 26 | C62: 0 | D62: 0 | E62: 2 | F62: 0 | G62: 0 | H62: 0 | I62: 0 | J62: 22.5 | K62: 28.5 | L62: 54.5 | M62: 0 | N62: 56 | O62: 2019-06-26 | Q62: =IF(C62>=$C$108,1,IF(C61>=$C$109,1,IF(C60>=$C$110,1,""))) ->  | S62: 1 | V62: 1 | W62: 1 | X62: 1 | Y62: 1 | Z62: 1
A63: 6 | B63: 27 | C63: 8 | D63: 0 | E63: 0.5 | F63: 8.5 | G63: 0 | H63: 0 | I63: 13.5 | J63: 0.5 | K63: 0 | L63: 0 | M63: 0 | N63: 57 | O63: 2019-06-27 | Q63: 1 | T63: 1 | W63: 1 | X63: 1 | Y63: 1 | Z63: 1
A64: 6 | B64: 28 | C64: 0 | D64: 0 | E64: 26.5 | F64: 0 | G64: 15.5 | H64: 3.5 | I64: 7.5 | J64: 1.5 | K64: 16.5 | L64: 0 | M64: 0 | N64: 58 | O64: 2019-06-28 | S64: 1 | U64: 1 | V64: 1 | W64: 1 | Y64: 1 | Z64: 1
A65: 6 | B65: 29 | C65: 0 | D65: 1.5 | E65: 0 | F65: 8.5 | G65: 59 | H65: 6.5 | I65: 5.5 | J65: 0 | K65: 0 | L65: 0 | M65: 0 | N65: 59 | O65: 2019-06-29 | S65: 1 | T65: 1 | U65: 1 | V65: 1 | W65: 1 | Y65: 1
A66: 6 | B66: 30 | C66: 0 | D66: 2.5 | E66: 12.5 | F66: 11.5 | G66: 4 | H66: 40 | I66: 0 | J66: 13 | K66: 0 | L66: 0 | M66: 4 | N66: 60 | O66: 2019-06-30 | R66: 1 | S66: 1 | T66: 1 | U66: 1 | V66: 1 | X66: 1 | AA66: 1
A67: 7 | B67: 1 | C67: 0 | D67: 7.5 | E67: 0 | F67: 2 | G67: 0 | H67: 13.5 | I67: 0 | J67: 10 | K67: 0 | L67: 0 | M67: 34.5 | N67: 61 | O67: 2019-07-01
A68: 7 | B68: 2 | C68: 0 | D68: 6.5 | E68: 0.5 | F68: 1.5 | G68: 0 | H68: 15 | I68: 0 | J68: 0 | K68: 0 | L68: 0 | M68: 0 | N68: 62 | O68: 2019-07-02
A69: 7 | B69: 3 | C69: 132 | D69: 1.5 | E69: 36 | F69: 2.5 | G69: 0 | H69: 0 | I69: 11 | J69: 0 | K69: 13 | L69: 11 | M69: 32 | N69: 63 | O69: 2019-07-03 | Q69: 1 | S69: 1 | T69: 1 | V69: 1 | W69: 1 | Y69: 1 | Z69: 1 | AA69: 1
A70: 7 | B70: 4 | C70: 4.5 | D70: 0.5 | E70: 11.5 | F70: 0.5 | G70: 19.5 | H70: 69.5 | I70: 17 | J70: 19 | K70: 1 | L70: 47 | M70: 0 | N70: 64 | O70: 2019-07-04 | Q70: 1 | S70: 1 | U70: 1 | V70: 1 | W70: 1 | X70: 1 | Y70: 1 | Z70: 1 | AA70: 1
A71: 7 | B71: 5 | C71: 6 | D71: 2 | E71: 0 | F71: 0 | G71: 89 | H71: 12 | I71: 0 | J71: 0 | K71: 7.5 | L71: 21 | M71: 16 | N71: 65 | O71: 2019-07-05 | Q71: 1 | R71: 1 | S71: 1 | U71: 1 | V71: 1 | W71: 1 | X71: 1 | Y71: 1 | Z71: 1 | AA71: 1
A72: 7 | B72: 6 | C72: 0 | D72: 0.5 | E72: 38.5 | F72: 0 | G72: 90 | H72: 0 | I72: 0 | J72: 0.5 | K72: 21 | L72: 2.5 | M72: 36.5 | N72: 66 | O72: 2019-07-06 | S72: 1 | U72: 1 | V72: 1 | Y72: 1 | Z72: 1 | AA72: 1
A73: 7 | B73: 7 | C73: 0 | D73: 79 | E73: 19 | F73: 0 | G73: 146 | H73: 0 | I73: 0 | J73: 12.5 | K73: 6 | L73: 0 | M73: 16 | N73: 67 | O73: 2019-07-07 | R73: 1 | S73: 1 | U73: 1 | X73: 1 | Y73: 1 | AA73: 1
A74: 7 | B74: 8 | C74: 0 | D74: 34.5 | E74: 33 | F74: 0 | G74: 0 | H74: 0 | I74: 3 | J74: 7 | K74: 0 | L74: 0 | M74: 0 | N74: 68 | O74: 2019-07-08 | R74: 1 | S74: 1 | U74: 1 | W74: 1 | X74: 1 | AA74: 1
A75: 7 | B75: 9 | C75: 40.5 | D75: 8.5 | E75: 1 | F75: 11.5 | G75: 0 | H75: 4 | I75: 20.5 | J75: 37 | K75: 0 | L75: 0 | M75: 0 | N75: 69 | O75: 2019-07-09 | Q75: 1 | R75: 1 | S75: 1 | T75: 1 | U75: 1 | V75: 1 | W75: 1 | X75: 1
A76: 7 | B76: 10 | C76: 0 | D76: 1.5 | E76: 16 | F76: 0 | G76: 0 | H76: 16 | I76: 0 | J76: 0 | K76: 6.5 | L76: 0 | M76: 0 | N76: 70 | O76: 2019-07-10 | Q76: 1 | R76: 1 | S76: 1 | T76: 1 | V76: 1 | W76: 1 | X76: 1 | Y76: 1
A77: 7 | B77: 11 | C77: 0 | D77: 12 | E77: 8 | F77: 12 | G77: 0 | H77: 0 | I77: 0 | J77: 0 | K77: 1 | L77: 0 | M77: 0 | N77: 71 | O77: 2019-07-11 | Q77: 1 | R77: 1 | S77: 1 | T77: 1 | V77: 1 | X77: 1
A78: 7 | B78: 12 | C78: 46.5 | D78: 0.5 | E78: 2 | F78: 1 | G78: 0 | H78: 0 | I78: 4 | J78: 0 | K78: 0 | L78: 0 | M78: 16.5 | N78: 72 | O78: 2019-07-12 | Q78: 1 | R78: 1 | S78: 1 | T78: 1 | W78: 1 | AA78: 1
A79: 7 | B79: 13 | C79: 0.5 | D79: 7 | E79: 26 | F79: 7 | G79: 0 | H79: 0 | I79: 53 | J79: 0 | K79: 10.5 | L79: 29.5 | M79: 4.5 | N79: 73 | O79: 2019-07-13 | Q79: 1 | R79: 1 | S79: 1 | T79: 1 | W79: 1 | Y79: 1 | Z79: 1 | AA79: 1
A80: 7 | B80: 14 | C80: 6.5 | D80: 0.5 | E80: 21.5 | F80: 12.5 | G80: 0 | H80: 0 | I80: 58 | J80: 0 | K80: 2 | L80: 2.5 | M80: 0 | N80: 74 | O80: 2019-07-14 | Q80: 1 | S80: 1 | T80: 1 | W80: 1 | Y80: 1 | Z80: 1
A81: 7 | B81: 15 | C81: 18.5 | D81: 15 | E81: 0 | F81: 0 | G81: 0 | H81: 0 | I81: 2.5 | J81: 0 | K81: 0 | L81: 2.5 | M81: 3 | N81: 75 | O81: 2019-07-15 | Q81: 1 | R81: 1 | S81: 1 | T81: 1 | W81: 1 | Z81: 1 | AA81: 1
A82: 7 | B82: 16 | C82: 0 | D82: 4.5 | E82: 0 | F82: 0 | G82: 0 | H82: 11.5 | I82: 0 | J82: 16.5 | K82: 0 | L82: 0 | M82: 0 | N82: 76 | O82: 2019-07-16 | Q82: 1 | R82: 1 | V82: 1 | W82: 1 | X82: 1
A83: 7 | B83: 17 | C83: 0 | D83: 0 | E83: 1.5 | F83: 0 | G83: 0 | H83: 0 | I83: 3 | J83: 117 | K83: 0 | L83: 0 | M83: 0 | N83: 77 | O83: 2019-07-17 | V83: 1 | W83: 1 | X83: 1
A84: 7 | B84: 18 | C84: 0 | D84: 0 | E84: 1.5 | F84: 21 | G84: 0 | H84: 13.5 | I84: 0 | J84: 9 | K84: 8.5 | L84: 0.5 | M84: 0 | N84: 78 | O84: 2019-07-18 | T84: 1 | V84: 1 | X84: 1 | Y84: 1
A85: 7 | B85: 19 | C85: 48.5 | D85: 14.5 | E85: 0 | F85: 16 | G85: 0 | H85: 0 | I85: 0 | J85: 2.5 | K85: 14 | L85: 0 | M85: 0 | N85: 79 | O85: 2019-07-19 | Q85: 1 | R85: 1 | T85: 1 | V85: 1 | X85: 1 | Y85: 1
A86: 7 | B86: 20 | C86: 0 | D86: 8.5 | E86: 0 | F86: 1.5 | G86: 0 | H86: 0 | I86: 0 | J86: 0 | K86: 0 | L86: 0 | M86: 46 | N86: 80 | O86: 2019-07-20 | Q86: 1 | R86: 1 | T86: 1 | Y86: 1 | AA86: 1
A87: 7 | B87: 21 | C87: 4.5 | D87: 0 | E87: 68 | F87: 0 | G87: 0 | H87: 0 | I87: 0 | J87: 0 | K87: 0 | L87: 0 | M87: 0.5 | N87: 81 | O87: 2019-07-21 | Q87: 1 | S87: 1 | AA87: 1
A88: 7 | B88: 22 | C88: 2 | D88: 0 | E88: 1.5 | F88: 11 | G88: 0 | H88: 0 | I88: 0 | J88: 4.5 | K88: 0 | L88: 2 | M88: 10 | N88: 82 | O88: 2019-07-22 | Q88: 1 | S88: 1 | T88: 1 | X88: 1 | Z88: 1 | AA88: 1
A89: 7 | B89: 23 | C89: 1 | D89: 0 | E89: 0.5 | F89: 20 | G89: 0 | H89: 0 | I89: 0 | J89: 24 | K89: 0 | L89: 0 | M89: 0 | N89: 83 | O89: 2019-07-23 | S89: 1 | T89: 1 | X89: 1 | Y89: =IF(K89>=$C$108,1,IF(K88>=$C$109,1,IF(K87>=$C$110,1,""))) ->  | AA89: 1
A90: 7 | B90: 24 | C90: 0 | D90: 0 | E90: 11 | F90: 0.5 | G90: 0 | H90: 5.5 | I90: 0 | J90: 0 | K90: 0 | L90: 4.5 | M90: 0 | N90: 84 | O90: 2019-07-24 | Q90: =IF(C90>=$C$108,1,IF(C89>=$C$109,1,IF(C88>=$C$110,1,""))) ->  | S90: 1 | T90: 1 | V90: 1 | X90: 1 | Z90: 1
A91: 7 | B91: 25 | C91: 0 | D91: 0 | E91: 25 | F91: 0 | G91: 0 | H91: 26.5 | I91: 0 | J91: 0 | K91: 0 | L91: 0.5 | M91: 0 | N91: 85 | O91: 2019-07-25 | S91: 1 | V91: 1
A92: 7 | B92: 26 | C92: 0 | D92: 0 | E92: 2 | F92: 0 | G92: 0 | H92: 4 | I92: 22.5 | J92: 0 | K92: 0 | L92: 0 | M92: 0 | N92: 86 | O92: 2019-07-26 | S92: 1 | V92: 1 | W92: 1
A93: 7 | B93: 27 | C93: 43 | D93: 0 | E93: 3 | F93: 4.5 | G93: 0 | H93: 2.5 | I93: 0 | J93: 1.5 | K93: 1.5 | L93: 0 | M93: 0 | N93: 87 | O93: 2019-07-27 | Q93: 1 | S93: 1 | T93: 1 | V93: 1 | W93: 1
A94: 7 | B94: 28 | C94: 1.5 | D94: 0 | E94: 1.5 | F94: 0 | G94: 0 | H94: 1 | I94: 0 | J94: 2 | K94: 0 | L94: 1.5 | M94: 0 | N94: 88 | O94: 2019-07-28 | Q94: 1 | X94: 1
A95: 7 | B95: 29 | C95: 0 | D95: 2.5 | E95: 7.5 | F95: 0 | G95: 16.5 | H95: 0 | I95: 0 | J95: 0.5 | K95: 0 | L95: 10.5 | M95: 0 | N95: 89 | O95: 2019-07-29 | Q95: 1 | R95: 1 | S95: 1 | U95: 1 | Z95: 1
A96: 7 | B96: 30 | C96: 0 | D96: 0 | E96: 2.5 | F96: 0 | G96: 0 | H96: 12 | I96: 0 | J96: 0.5 | K96: 0 | L96: 0 | M96: 0 | N96: 90 | O96: 2019-07-30 | S96: 1 | U96: 1 | V96: 1 | Z96: 1
A97: 7 | B97: 31 | C97: 0 | D97: 0 | E97: 0 | F97: 0 | G97: 0 | H97: 0 | I97: 0 | J97: 0 | K97: 36 | L97: 0 | M97: 0 | N97: 91 | O97: 2019-07-31 | V97: 1 | Y97: 1
A98: 8 | B98: 1 | C98: 0 | D98: 0 | E98: 0 | F98: 0 | G98: 0 | H98: 0 | I98: 0 | J98: 0 | K98: 0 | L98: 37 | M98: 0 | N98: 92 | O98: 2019-08-01 | Y98: 1 | Z98: 1
A99: 8 | B99: 2 | C99: 0 | D99: 0 | E99: 0 | F99: 7 | G99: 0 | H99: 0 | I99: 0 | J99: 0 | K99: 0 | L99: 0.5 | M99: 0 | N99: 93 | O99: 2019-08-02 | T99: 1 | Y99: 1 | Z99: 1
A100: 8 | B100: 3 | C100: 0 | D100: 32 | E100: 0 | F100: 3.5 | G100: 0 | H100: 0 | I100: 0 | J100: 0 | K100: 1.5 | L100: 0 | M100: 0 | N100: 94 | O100: 2019-08-03 | R100: 1 | T100: 1 | Z100: 1
A101: 8 | B101: 4 | C101: 41 | D101: 0 | E101: 0 | F101: 0 | G101: 0 | H101: 0 | I101: 0 | J101: 0 | K101: 7 | L101: 0 | M101: 0 | N101: 95 | O101: 2019-08-04 | Q101: 1 | R101: 1 | Y101: 1
A102: 8 | B102: 5 | C102: 27.5 | D102: 0 | E102: 0 | F102: 0 | G102: 0 | H102: 0 | I102: 0 | J102: 0 | K102: 0.5 | L102: 8.5 | M102: 0 | N102: 96 | O102: 2019-08-05 | Q102: 1 | R102: 1 | Z102: 1
A103: 8 | B103: 6 | C103: 0 | D103: 0 | E103: 0 | F103: 2 | G103: 0 | H103: 33 | I103: 0 | J103: 2.5 | K103: 3.5 | L103: 0 | M103: 0 | N103: 97 | O103: 2019-08-06 | Q103: 1 | T103: 1 | V103: 1 | X103: 1 | Y103: 1
B105: 土寄せ作業可能か どうかの判断条件 | E105: 判断日 | F105: =判断日 -> 2025-06-01 | I105: 判断年 | J105: =YEAR(判断日) -> 2025 | P105: 可能日の | Q105: 1 | R105: 2 | S105: 3 | T105: 4 | U105: 5 | V105: 6 | W105: 7 | X105: 8 | Y105: 9 | Z105: 10 | AA105: 11
F106: 適期始 | G106: 適期終 | J106: 5/1から数えて | P106: 10年平均 | Q106: 作業可能日 | R106: 作業可能日 | S106: 作業可能日 | T106: 作業可能日 | U106: 作業可能日 | V106: 作業可能日 | W106: 作業可能日 | X106: 作業可能日 | Y106: 作業可能日 | Z106: 作業可能日 | AA106: 作業可能日 | AB106: 近5年平均 | AC106: 近3年平均 | AD106: 最多日数 | AE106: 最少日数
B107: 作業できない降雨量mm | E107: 土寄① | F107: =土寄①始修正 -> 2025-06-21 | G107: =土寄①終修正 -> 2025-07-01 | I107: 土寄①適期始は | J107: =$F$107-DATEVALUE(TEXT(判断年,"####")&"/5/1") -> 51 | K107: 日後 | O107: 5月 | P107: =AVERAGE(Q107:Z107) -> 21.1 | Q107: =31-SUM(Q$6:Q$36) -> 22 | R107: =31-SUM(R$6:R$36) -> 18 | S107: =31-SUM(S$6:S$36) -> 21 | T107: 21 | U107: 18 | V107: 25 | W107: 18 | X107: 23 | Y107: 22 | Z107: 23 | AA107: 23 | AB107: =AVERAGE(Q107:U107) -> 20 | AC107: =AVERAGE(Q107:S107) -> 20.33333333 | AD107: =MAX(Q107:Z107) -> 25 | AE107: =MIN(Q107:Z107) -> 18
B108: 当日 | C108: =入力表!C26 -> 2 | D108: mm | E108: 土寄② | F108: =土寄②始修正 -> 2025-07-06 | G108: =土寄②終 -> 2025-07-16 | I108: 土寄①適期終は | J108: =$G$107-DATEVALUE(TEXT($J$105,"####")&"/5/1") -> 61 | K108: 日後 | O108: 6月 | P108: 17.1 | Q108: =30-SUM(Q$37:Q$66) -> 22 | R108: =30-SUM(R$37:R$66) -> 16 | S108: =30-SUM(S$37:S$66) -> 16 | T108: 22 | U108: 13 | V108: 19 | W108: 10 | X108: 13 | Y108: 19 | Z108: 21 | AA108: 18 | AB108: =AVERAGE(Q108:U108) -> 17.8 | AC108: =AVERAGE(Q108:S108) -> 18 | AD108: =MAX(Q108:Z108) -> 22 | AE108: =MIN(Q108:Z108) -> 10
B109: 翌日 | C109: =入力表!C27 -> 10 | D109: mm | E109: 除草剤 | F109: =茎葉始 -> 2025-07-13 | G109: =茎葉終 -> 2025-07-23 | I109: 土寄②適期始は | J109: =$F$108-DATEVALUE(TEXT($J$105,"####")&"/5/1") -> 66 | K109: 日後 | O109: 7月 | P109: 16.5 | Q109: =31-SUM(Q$67:Q$97) -> 13 | R109: =31-SUM(R$67:R$97) -> 18 | S109: =31-SUM(S$67:S$97) -> 9 | T109: 16 | U109: 23 | V109: 14 | W109: 17 | X109: 16 | Y109: 19 | Z109: 20 | AA109: 18 | AB109: 15.8 | AC109: 13.33333333 | AD109: 23 | AE109: 9
B110: ２日後 | C110: =入力表!C28 -> 30 | D110: mm | E110: 摘心 | F110: =摘心始 -> 7/1以降の主茎長で判断 | G110: =摘心終 -> 2025-07-21 | I110: 土寄②適期終は | J110: =$G$108-DATEVALUE(TEXT($J$105,"####")&"/5/1") -> 76 | K110: 日後 | O110: 6/25-7/24 | P110: 15.3 | Q110: =30-SUM(Q$61:Q$90) -> 14 | R110: =31-SUM(R$61:R$90) -> 17 | S110: =31-SUM(S$61:S$90) -> 9 | T110: 14 | U110: 22 | V110: 14 | W110: 14 | X110: 14 | Y110: 16 | Z110: 19 | AA110: 17 | AB110: 15.2 | AC110: 13.33333333 | AD110: 22 | AE110: 9
C111: ↑ | I111: 除草剤適期始行 | J111: =$F$109-DATEVALUE(TEXT($J$105,"####")&"/5/1") -> 73 | K111: 日後 | N111: 土寄せ①適期日数 | O111: =G107-F107+1 -> 11 | P111: 6.3 | Q111: =$O111-SUM(OFFSET(表の5月1日位置,$J$107,Q$105,$J$108-$J$107+1,1)) -> 11 | R111: =$O111-SUM(OFFSET(表の5月1日位置,$J$107,R105,$J$108-$J$107+1,1)) -> 8 | S111: 8 | T111: 5 | U111: 8 | V111: 5 | W111: 4 | X111: 2 | Y111: 6 | Z111: 6 | AA111: 7 | AB111: 8 | AC111: 9 | AD111: 11 | AE111: 2
C112: 入力された条件 | I112: 除草剤適期終行 | J112: =$G$109-DATEVALUE(TEXT($J$105,"####")&"/5/1") -> 83 | K112: 日後 | N112: 土寄せ②適期日数 | O112: =G108-F108+1 -> 11 | P112: 4.8 | Q112: =$O112-SUM(OFFSET(表の5月1日位置,$J$109,Q$105,$J$110-$J$109+1,1)) -> 11 | R112: 3 | S112: 2 | T112: 1 | U112: 4 | V112: 7 | W112: 6 | X112: 3 | Y112: 5 | Z112: 6 | AA112: 7 | AB112: 4.2 | AC112: 5.333333333 | AD112: 11 | AE112: 1
I113: 摘心適期始行 | J113: =$F$110-DATEVALUE(TEXT($J$105,"####")&"/5/1") ->  | K113: 日後 | N113: 除草剤適期日数 | O113: =G109-F109+1 -> 11 | P113: 6.6 | Q113: =$O113-COUNTIF(OFFSET(表の5月1日位置,$J$111,-13+Q$105,$J$112-$J$111+1,1),">=1") -> 5 | R113: 6 | S113: 5 | T113: 4 | U113: 11 | V113: 9 | W113: 7 | X113: 5 | Y113: 7 | Z113: 7 | AA113: 7 | AB113: 6.2 | AC113: 5.333333333 | AD113: 11 | AE113: 4
D114: 土寄① | E114: 土寄② | F114: 除草剤 | G114: 摘心 | I114: 摘心適期終行 | J114: =$G$110-DATEVALUE(TEXT($J$105,"####")&"/5/1") -> 81 | K114: 日後 | N114: 摘心適期日数 | O114: =G110-F110+1 ->  | Q114: =$O114-COUNTIF(OFFSET(表の5月1日位置,$J$113,-13+Q$105,$J$114-$J$113+1,1),">=1") -> 
A115: 適期作業の確率 | D115: =P111/O111 -> 0.5727272727 | E115: =P112/O112 -> 0.4363636364 | F115: =P113/O113 -> 0.6 | G115: =P114/O114 ->  | O115: 7月の1mm以上降雨日数 | P115: =AVERAGE(R115:AA115) -> 12.7 | Q115: =COUNTIF(C67:C97,">=1") -> 13 | R115: 15 | S115: 22 | T115: 14 | U115: 5 | V115: 14 | W115: 10 | X115: 13 | Y115: 13 | Z115: 11 | AA115: 10 | AB115: =AVERAGE(R115:V115) -> 14 | AC115: =AVERAGE(R115:T115) -> 17 | AD115: =MAX(R115:AA115) -> 22 | AE115: =MIN(R115:AA115) -> 5
O125: 2019-02-28 | Q125: 2020-02-28 | R125: 43524 | S125: 43889
O126: 2019-03-01 | Q126: 2020-02-29 | R126: 43525 | S126: 43890
N127: 作表日付 | O127: 2019-03-02 | Q127: 2020-03-01 | R127: 43526 | S127: 43891
N128: 判断日 | Q128: 2019-05-01 | R128: 43586 | T128: 5/1の行 | U128: =ROW(表の5月1日位置) -> 6
N129: 判断年 | Q129: 2020-07-03 | R129: 44015
N130: 判断年5/1算出 | R130: 43952
N131: 5/1から土寄①適期始の行 | Q131: =DATEVALUE(TEXT(P127,"####")&"/5/1") | R131: =DATEVALUE(TEXT($J$105,"####")&"/5/1") -> 45778
N132: 5/1から土寄①適期終の行 | Q132: =$M$106-$Q$128 | R132: =$F$107-$R$131 -> 51
N133: 適期始～適期終の不可日 | Q133: =$N$106-$Q$128 | R133: =$G$107-$R$131 -> 61
R134: =SUM(OFFSET($O$6,$R$132,4,58-53+1,1)) -> 3
N136: 土寄①適期始の行
N137: 土寄①適期終の行 | Q137: =ROW(表の5月1日位置)+($M$106-$Q$128) | R137: =ROW(表の5月1日位置)+($F$107-$R$131) -> 57 | S137: セル位置 | T137: =ADDRESS(R137,17) -> $Q$57 | U137: =6+($F$107-$R$131) -> 57 | V137: =T137 -> $Q$57
N138: 土寄①適期内の不可日数 | Q138: =ROW(表の5月1日位置)+($M$107-$Q$128) | R138: =ROW(表の5月1日位置)+($G$107-$R$131) -> 67 | T138: =ADDRESS(R138,17) -> $Q$67
N139: 土寄①適期終の行 | R139: =SUM(T137:T138) -> 0
O141: 上の枠内不要

Sheet アメダス三和
B1: 降雨日から見た黒大豆作業の検討 | J1: ="（"&C3&"～"&L3&"年平均）" -> （2022～2013年平均）
B2: アメダス三和データ
A3: 月 | B3: 日 | C3: 2022 | D3: 2021 | E3: 2020 | F3: 2019 | G3: 2018 | H3: 2017 | I3: 2016 | J3: 2015 | K3: 2014 | L3: 2013 | M3: 2012 | Q3: =C3 -> 2022 | R3: 2021 | S3: 2020 | T3: 2019 | U3: 2018 | V3: 2017 | W3: 2016 | X3: 2015 | Y3: 2014 | Z3: 2013 | AA3: 2012
A4: 4 | B4: 29 | C4: 53.5 | D4: 61.5 | E4: 0 | F4: 13.5 | G4: 0 | H4: 1.5 | I4: 0 | J4: 0 | K4: 38 | L4: 0 | M4: 0 | O4: 2019-04-29 | Q4: =IF(C4>=$C$108,1,"") -> 1 | R4: 1 | T4: 1 | Y4: 1
A5: 4 | B5: 30 | C5: 0.5 | D5: 0.5 | E5: 0 | F5: 14.5 | G5: 0 | H5: 0 | I5: 0 | J5: 0 | K5: 13 | L5: 4.5 | M5: 0 | O5: 2019-04-30 | Q5: =IF(C5>=$C$108,1,IF(C4>=$C$109,1,"")) -> 1 | R5: 1 | T5: 1 | Y5: 1 | Z5: 1
A6: 5 | B6: 1 | C6: 8 | D6: 1.5 | E6: 0 | F6: 10.5 | G6: 0 | H6: 0 | I6: 0 | J6: 0 | K6: 0.5 | L6: 0 | M6: 0 | N6: 0 | O6: 2019-05-01 | Q6: =IF(C6>=$C$108,1,IF(C5>=$C$109,1,IF(C4>=$C$110,1,""))) -> 1 | R6: 1 | T6: 1 | Y6: 1
A7: 5 | B7: 2 | C7: 0.5 | D7: 5 | E7: 0 | F7: 0 | G7: 4.5 | H7: 0 | I7: 0 | J7: 0 | K7: 0 | L7: 1 | M7: 28 | N7: 1 | O7: 2019-05-02 | R7: 1 | T7: 1 | U7: 1 | AA7: 1
A8: 5 | B8: 3 | C8: 0 | D8: 0 | E8: 2.5 | F8: 0 | G8: 1 | H8: 0 | I8: 5.5 | J8: 0 | K8: 0 | L8: 0 | M8: 9.5 | N8: 2 | O8: 2019-05-03 | S8: 1 | W8: 1 | AA8: 1
A9: 5 | B9: 4 | C9: 0 | D9: 0 | E9: 0.5 | F9: 0 | G9: 0 | H9: 0 | I9: 0.5 | J9: 1.5 | K9: 0 | L9: 1.5 | M9: 2 | N9: 3 | O9: 2019-05-04 | AA9: 1
A10: 5 | B10: 5 | C10: 0 | D10: 7 | E10: 0 | F10: 0 | G10: 0 | H10: 0 | I10: 0 | J10: 0 | K10: 0 | L10: 0 | M10: 1 | N10: 4 | O10: 2019-05-05 | R10: 1
A11: 5 | B11: 6 | C11: 0 | D11: 0.5 | E11: 1.5 | F11: 6 | G11: 12.5 | H11: 2 | I11: 6 | J11: 0 | K11: 0 | L11: 0 | M11: 4 | N11: 5 | O11: 2019-05-06 | T11: 1 | U11: 1 | V11: 1 | W11: 1 | AA11: 1
A12: 5 | B12: 7 | C12: 0 | D12: 0 | E12: 0 | F12: 0 | G12: 47.5 | H12: 0 | I12: 0 | J12: 0 | K12: 0 | L12: 0 | M12: 0 | N12: 6 | O12: 2019-05-07 | U12: 1
A13: 5 | B13: 8 | C13: 0 | D13: 0 | E13: 0 | F13: 0 | G13: 13 | H13: 0 | I13: 0 | J13: 0 | K13: 0 | L13: 0 | M13: 0 | N13: 7 | O13: 2019-05-08 | U13: 1
A14: 5 | B14: 9 | C14: 0 | D14: 0.5 | E14: 3 | F14: 0 | G14: 7.5 | H14: 4.5 | I14: 11.5 | J14: 0 | K14: 0 | L14: 0 | M14: 0 | N14: 8 | O14: 2019-05-09 | S14: 1 | U14: 1 | V14: 1 | W14: 1
A15: 5 | B15: 10 | C15: 0 | D15: 0 | E15: 4.5 | F15: 0 | G15: 0 | H15: 2.5 | I15: 1 | J15: 0 | K15: 0 | L15: 3.5 | M15: 0 | N15: 9 | O15: 2019-05-10 | S15: 1 | V15: 1 | W15: 1 | Z15: 1
A16: 5 | B16: 11 | C16: 4 | D16: 0 | E16: 0 | F16: 0 | G16: 0 | H16: 0 | I16: 18.5 | J16: 0 | K16: 0 | L16: 6.5 | M16: 0 | N16: 10 | O16: 2019-05-11 | Q16: 1 | W16: 1 | Z16: 1
A17: 5 | B17: 12 | C17: 4 | D17: 0.5 | E17: 0 | F17: 0 | G17: 0 | H17: 0.5 | I17: 0 | J17: 41.5 | K17: 5 | L17: 0 | M17: 1 | N17: 11 | O17: 2019-05-12 | Q17: 1 | W17: 1 | X17: 1 | Y17: 1
A18: 5 | B18: 13 | C18: 12 | D18: 0 | E18: 0 | F18: 0 | G18: 44 | H18: 10 | I18: 0 | J18: 0 | K18: 1 | L18: 0 | M18: 0 | N18: 12 | O18: 2019-05-13 | Q18: 1 | U18: 1 | V18: 1 | X18: 1
A19: 5 | B19: 14 | C19: 9 | D19: 0 | E19: 0 | F19: 4 | G19: 0 | H19: 0 | I19: 0 | J19: 0 | K19: 0 | L19: 0 | M19: 0 | N19: 13 | O19: 2019-05-14 | Q19: 1 | T19: 1 | U19: 1 | V19: 1 | X19: 1
A20: 5 | B20: 15 | C20: 0 | D20: 0.5 | E20: 3 | F20: 0 | G20: 0 | H20: 0 | I20: 0 | J20: 0 | K20: 3.5 | L20: 0 | M20: 3 | N20: 14 | O20: 2019-05-15 | S20: 1 | U20: 1 | Y20: 1 | AA20: 1
A21: 5 | B21: 16 | C21: 0 | D21: 5 | E21: 40.5 | F21: 0 | G21: 0 | H21: 0 | I21: 81.5 | J21: 26 | K21: 0 | L21: 0 | M21: 0 | N21: 15 | O21: 2019-05-16 | R21: 1 | S21: 1 | W21: 1 | X21: 1
A22: 5 | B22: 17 | C22: 0 | D22: 20 | E22: 0 | F22: 0 | G22: 0 | H22: 0 | I22: 0.5 | J22: 0 | K22: 0 | L22: 0 | M22: 0.5 | N22: 16 | O22: 2019-05-17 | R22: 1 | S22: 1 | W22: 1 | X22: 1
A23: 5 | B23: 18 | C23: 0 | D23: 1 | E23: 14 | F23: 0 | G23: 20.5 | H23: 0 | I23: 0 | J23: 7 | K23: 0 | L23: 0 | M23: 0.5 | N23: 17 | O23: 2019-05-18 | R23: 1 | S23: 1 | U23: 1 | W23: 1 | X23: 1
A24: 5 | B24: 19 | C24: 0 | D24: 0.5 | E24: 1 | F24: 0 | G24: 1.5 | H24: 0 | I24: 0 | J24: 3 | K24: 0 | L24: 4.5 | M24: 0 | N24: 18 | O24: 2019-05-19 | S24: 1 | U24: 1 | X24: 1 | Z24: 1
A25: 5 | B25: 20 | C25: 0 | D25: 22 | E25: 0 | F25: 11 | G25: 0 | H25: 0 | I25: 0 | J25: 2.5 | K25: 10 | L25: 1 | M25: 0 | N25: 19 | O25: 2019-05-20 | R25: 1 | T25: 1 | X25: 1 | Y25: 1
A26: 5 | B26: 21 | C26: 0 | D26: 12.5 | E26: 0 | F26: 24 | G26: 0 | H26: 0 | I26: 0 | J26: 0 | K26: 42.5 | L26: 0 | M26: 0 | N26: 20 | O26: 2019-05-21 | R26: 1 | T26: 1 | Y26: 1
A27: 5 | B27: 22 | C27: 1.5 | D27: 0 | E27: 0 | F27: 0 | G27: 0 | H27: 0 | I27: 0 | J27: 0 | K27: 0 | L27: 0 | M27: 0 | N27: 21 | O27: 2019-05-22 | R27: 1 | T27: 1 | Y27: 1
A28: 5 | B28: 23 | C28: 0 | D28: 0 | E28: 0 | F28: 3.5 | G28: 7.5 | H28: 0 | I28: 0 | J28: 0 | K28: 0 | L28: 0 | M28: 0 | N28: 22 | O28: 2019-05-23 | T28: 1 | U28: 1 | Y28: 1
A29: 5 | B29: 24 | C29: 0 | D29: 4 | E29: 0 | F29: 0 | G29: 0.5 | H29: 2.5 | I29: 0 | J29: 0 | K29: 0 | L29: 0 | M29: 0 | N29: 23 | O29: 2019-05-24 | R29: 1 | S29: =IF(E29>=$C$108,1,IF(E28>=$C$109,1,IF(E27>=$C$110,1,""))) ->  | V29: 1
A30: 5 | B30: 25 | C30: 0 | D30: 0 | E30: 0 | F30: 0 | G30: 0 | H30: 18 | I30: 0 | J30: 0 | K30: 0 | L30: 0 | M30: 1 | N30: 24 | O30: 2019-05-25 | Q30: =IF(C30>=$C$108,1,IF(C29>=$C$109,1,IF(C28>=$C$110,1,""))) ->  | V30: 1
A31: 5 | B31: 26 | C31: 1.5 | D31: 0 | E31: 10 | F31: 0 | G31: 0 | H31: 0 | I31: 0.5 | J31: 0 | K31: 2.5 | L31: 0 | M31: 0 | N31: 25 | O31: 2019-05-26 | S31: 1 | V31: 1 | Y31: 1
A32: 5 | B32: 27 | C32: 41 | D32: 22 | E32: 0 | F32: 0 | G32: 0 | H32: 0 | I32: 3.5 | J32: 0 | K32: 0 | L32: 0 | M32: 0 | N32: 26 | O32: 2019-05-27 | Q32: 1 | R32: 1 | S32: 1 | W32: 1
A33: 5 | B33: 28 | C33: 0 | D33: 0 | E33: 0 | F33: 24 | G33: 0 | H33: 0 | I33: 0 | J33: 0 | K33: 0 | L33: 8 | M33: 0 | N33: 27 | O33: 2019-05-28 | Q33: 1 | R33: 1 | T33: 1 | Z33: 1
A34: 5 | B34: 29 | C34: 0 | D34: 0 | E34: 0 | F34: 0 | G34: 0 | H34: 0 | I34: 17.5 | J34: 0 | K34: 0 | L34: 8.5 | M34: 17 | N34: 28 | O34: 2019-05-29 | Q34: 1 | T34: 1 | W34: 1 | Z34: 1 | AA34: 1
A35: 5 | B35: 30 | C35: 0 | D35: 0 | E35: 0 | F35: 0 | G35: 9 | H35: 0 | I35: 7.5 | J35: 0 | K35: 0 | L35: 2 | M35: 0 | N35: 29 | O35: 2019-05-30 | U35: 1 | W35: 1 | Z35: 1 | AA35: 1
A36: 5 | B36: 31 | C36: 0.5 | D36: 0 | E36: 1 | F36: 0.5 | G36: 4.5 | H36: 0.5 | I36: 0 | J36: 0 | K36: 0 | L36: 0 | M36: 0 | N36: 30 | O36: 2019-05-31 | U36: 1
A37: 6 | B37: 1 | C37: 0 | D37: 0 | E37: 0 | F37: 0.5 | G37: 0 | H37: 13.5 | I37: 0 | J37: 0 | K37: 0 | L37: 0 | M37: 0 | N37: 31 | O37: 2019-06-01 | V37: 1
A38: 6 | B38: 2 | C38: 0 | D38: 0 | E38: 0 | F38: 0 | G38: 0 | H38: 0 | I38: 0 | J38: 0 | K38: 0 | L38: 0 | M38: 0 | N38: 32 | O38: 2019-06-02 | V38: 1
A39: 6 | B39: 3 | C39: 0 | D39: 0 | E39: 0 | F39: 0 | G39: 0 | H39: 0 | I39: 0 | J39: 38.5 | K39: 0 | L39: 0 | M39: 0 | N39: 33 | O39: 2019-06-03 | X39: 1
A40: 6 | B40: 4 | C40: 0 | D40: 38 | E40: 0 | F40: 0 | G40: 0 | H40: 0 | I40: 4 | J40: 0 | K40: 2 | L40: 0 | M40: 0 | N40: 34 | O40: 2019-06-04 | R40: 1 | W40: 1 | X40: 1 | Y40: 1
A41: 6 | B41: 5 | C41: 5.5 | D41: 0 | E41: 0 | F41: 0 | G41: 1 | H41: 0 | I41: 7 | J41: 20.5 | K41: 4.5 | L41: 0 | M41: 0 | N41: 35 | O41: 2019-06-05 | Q41: 1 | R41: 1 | W41: 1 | X41: 1 | Y41: 1
A42: 6 | B42: 6 | C42: 40.5 | D42: 0 | E42: 0 | F42: 0 | G42: 32.5 | H42: 0 | I42: 0 | J42: 1 | K42: 0 | L42: 2 | M42: 0 | N42: 36 | O42: 2019-06-06 | Q42: 1 | R42: 1 | U42: 1 | X42: 1 | Z42: 1
A43: 6 | B43: 7 | C43: 3 | D43: 0 | E43: 0 | F43: 23 | G43: 0 | H43: 22.5 | I43: 7 | J43: 0 | K43: 0 | L43: 0 | M43: 0 | N43: 37 | O43: 2019-06-07 | Q43: 1 | T43: 1 | U43: 1 | V43: 1 | W43: 1
A44: 6 | B44: 8 | C44: 0 | D44: 0 | E44: 0 | F44: 3 | G44: 10 | H44: 1.5 | I44: 0 | J44: 3 | K44: 0 | L44: 0 | M44: 37 | N44: 38 | O44: 2019-06-08 | Q44: 1 | T44: 1 | U44: 1 | V44: 1 | X44: 1 | AA44: 1
A45: 6 | B45: 9 | C45: 0 | D45: 0 | E45: 0 | F45: 0 | G45: 5.5 | H45: 0 | I45: 8.5 | J45: 8.5 | K45: 20 | L45: 0 | M45: 8 | N45: 39 | O45: 2019-06-09 | U45: 1 | W45: 1 | X45: 1 | Y45: 1 | AA45: 1
A46: 6 | B46: 10 | C46: 0 | D46: 0 | E46: 0 | F46: 1 | G46: 1.5 | H46: 0 | I46: 0 | J46: 0 | K46: 0 | L46: 0 | M46: 0 | N46: 40 | O46: 2019-06-10 | Y46: 1 | AA46: 1
A47: 6 | B47: 11 | C47: 0.5 | D47: 0 | E47: 12.5 | F47: 0 | G47: 13.5 | H47: 0 | I47: 0 | J47: 3.5 | K47: 6 | L47: 0 | M47: 0 | N47: 41 | O47: 2019-06-11 | S47: 1 | U47: 1 | X47: 1 | Y47: 1
A48: 6 | B48: 12 | C48: 0 | D48: 0 | E48: 28 | F48: 0 | G48: 2.5 | H48: 0 | I48: 24 | J48: 3 | K48: 32.5 | L48: 0 | M48: 1 | N48: 42 | O48: 2019-06-12 | S48: 1 | U48: 1 | W48: 1 | X48: 1 | Y48: 1
A49: 6 | B49: 13 | C49: 0 | D49: 15 | E49: 50 | F49: 0 | G49: 2 | H49: 0 | I49: 34.5 | J49: 0 | K49: 0 | L49: 0 | M49: 0 | N49: 43 | O49: 2019-06-13 | R49: 1 | S49: 1 | U49: 1 | W49: 1 | Y49: 1
A50: 6 | B50: 14 | C50: 10.5 | D50: 6.5 | E50: 19 | F50: 0 | G50: 0 | H50: 0 | I50: 0.5 | J50: 0 | K50: 0 | L50: 0 | M50: 0 | N50: 44 | O50: 2019-06-14 | Q50: 1 | R50: 1 | S50: 1 | W50: 1 | Y50: 1
A51: 6 | B51: 15 | C51: 1 | D51: 0.5 | E51: 0 | F51: 43 | G51: 2 | H51: 0 | I51: 0 | J51: 0 | K51: 0 | L51: 12.5 | M51: 1 | N51: 45 | O51: 2019-06-15 | Q51: 1 | S51: 1 | T51: 1 | U51: 1 | W51: 1 | Z51: 1
A52: 6 | B52: 16 | C52: 0 | D52: 12 | E52: 0 | F52: 6 | G52: 0 | H52: 0 | I52: 19 | J52: 0 | K52: 0 | L52: 0.5 | M52: 36 | N52: 46 | O52: 2019-06-16 | R52: 1 | T52: 1 | W52: 1 | Z52: 1 | AA52: 1
A53: 6 | B53: 17 | C53: 0 | D53: 0 | E53: 0 | F53: 0 | G53: 0 | H53: 0 | I53: 2 | J53: 0 | K53: 0 | L53: 0 | M53: 8.5 | N53: 47 | O53: 2019-06-17 | R53: 1 | T53: 1 | W53: 1 | AA53: 1
A54: 6 | B54: 18 | C54: 0 | D54: 5 | E54: 18.5 | F54: 0 | G54: 0 | H54: 0 | I54: 0 | J54: 5.5 | K54: 1 | L54: 0 | M54: 0 | N54: 48 | O54: 2019-06-18 | R54: 1 | S54: 1 | X54: 1 | AA54: 1
A55: 6 | B55: 19 | C55: 0 | D55: 15.5 | E55: 46 | F55: 0 | G55: 3 | H55: 0 | I55: 4.5 | J55: 15.5 | K55: 0 | L55: 46 | M55: 83.5 | N55: 49 | O55: 2019-06-19 | R55: 1 | S55: 1 | U55: 1 | W55: 1 | X55: 1 | Z55: 1 | AA55: 1
A56: 6 | B56: 20 | C56: 0 | D56: 0 | E56: 0 | F56: 0 | G56: 35.5 | H56: 0.5 | I56: 0 | J56: 0 | K56: 0 | L56: 16.5 | M56: 0.5 | N56: 50 | O56: 2019-06-20 | R56: 1 | S56: 1 | U56: 1 | X56: 1 | Z56: 1 | AA56: 1
A57: 6 | B57: 21 | C57: 9 | D57: 0 | E57: 0 | F57: 0 | G57: 0 | H57: 33 | I57: 18 | J57: 15 | K57: 6 | L57: 6.5 | M57: 21 | N57: 51 | O57: 2019-06-21 | Q57: 1 | S57: 1 | U57: 1 | V57: =IF(H57>=$C$108,1,IF(H56>=$C$109,1,IF(H55>=$C$110,1,""))) -> 1 | W57: 1 | X57: 1 | Y57: 1 | Z57: 1 | AA57: 1
A58: 6 | B58: 22 | C58: 1 | D58: 0 | E58: 0 | F58: 0 | G58: 0 | H58: 0 | I58: 17 | J58: 0 | K58: 5.5 | L58: 0 | M58: 25.5 | N58: 52 | O58: 2019-06-22 | U58: 1 | V58: 1 | W58: 1 | X58: 1 | Y58: 1 | AA58: 1
A59: 6 | B59: 23 | C59: 0 | D59: 0 | E59: 0 | F59: 0 | G59: 3.5 | H59: 0 | I59: 20.5 | J59: 0 | K59: 0 | L59: 0 | M59: 0 | N59: 53 | O59: 2019-06-23 | U59: 1 | V59: 1 | W59: 1 | AA59: 1
A60: 6 | B60: 24 | C60: 9.5 | D60: 0 | E60: 0 | F60: 0 | G60: 0 | H60: 1.5 | I60: 8.5 | J60: 0.5 | K60: 0 | L60: 1 | M60: 0.5 | N60: 54 | O60: 2019-06-24 | Q60: 1 | W60: 1
A61: 6 | B61: 25 | C61: 0 | D61: 0 | E61: 3.5 | F61: 0 | G61: 0 | H61: 20 | I61: 16.5 | J61: 0 | K61: 0 | L61: 0 | M61: 3 | N61: 55 | O61: 2019-06-25 | S61: 1 | V61: 1 | W61: 1 | AA61: 1
A62: 6 | B62: 26 | C62: 0 | D62: 0 | E62: 2.5 | F62: 0 | G62: 0 | H62: 0 | I62: 4 | J62: 22.5 | K62: 0 | L62: 61 | M62: 0 | N62: 56 | O62: 2019-06-26 | Q62: =IF(C62>=$C$108,1,IF(C61>=$C$109,1,IF(C60>=$C$110,1,""))) ->  | S62: 1 | V62: 1 | W62: 1 | X62: 1 | Z62: 1
A63: 6 | B63: 27 | C63: 0 | D63: 0.5 | E63: 1.5 | F63: 8 | G63: 0 | H63: 0 | I63: 14.5 | J63: 0 | K63: 0 | L63: 0 | M63: 0 | N63: 57 | O63: 2019-06-27 | T63: 1 | W63: 1 | X63: 1 | Z63: 1
A64: 6 | B64: 28 | C64: 0 | D64: 11 | E64: 18.5 | F64: 0.5 | G64: 16 | H64: 3 | I64: 9 | J64: 2.5 | K64: 12.5 | L64: 0 | M64: 0 | N64: 58 | O64: 2019-06-28 | R64: 1 | S64: 1 | U64: 1 | V64: 1 | W64: 1 | X64: 1 | Y64: 1 | Z64: 1
A65: 6 | B65: 29 | C65: 0 | D65: 3 | E65: 0 | F65: 6.5 | G65: 57 | H65: 6.5 | I65: 5.5 | J65: 0.5 | K65: 5 | L65: 0 | M65: 0 | N65: 59 | O65: 2019-06-29 | R65: 1 | S65: 1 | T65: 1 | U65: 1 | V65: 1 | W65: 1 | Y65: 1
A66: 6 | B66: 30 | C66: 0.5 | D66: 3.5 | E66: 9.5 | F66: 13 | G66: 1.5 | H66: 35 | I66: 0 | J66: 16.5 | K66: 0 | L66: 0 | M66: 6 | N66: 60 | O66: 2019-06-30 | R66: 1 | S66: 1 | T66: 1 | U66: 1 | V66: 1 | X66: 1 | AA66: 1
A67: 7 | B67: 1 | C67: 0 | D67: 3.5 | E67: 0.5 | F67: 2 | G67: 0 | H67: 10.5 | I67: 0 | J67: 5 | K67: 0 | L67: 0.5 | M67: 31.5 | N67: 61 | O67: 2019-07-01
A68: 7 | B68: 2 | C68: 0 | D68: 11 | E68: 0 | F68: 1.5 | G68: 0 | H68: 62 | I68: 0 | J68: 0 | K68: 0 | L68: 0 | M68: 0 | N68: 62 | O68: 2019-07-02
A69: 7 | B69: 3 | C69: 139.5 | D69: 1.5 | E69: 37.5 | F69: 2.5 | G69: 0 | H69: 0 | I69: 17 | J69: 0 | K69: 9.5 | L69: 5 | M69: 47.5 | N69: 63 | O69: 2019-07-03 | Q69: 1 | R69: 1 | S69: 1 | T69: 1 | V69: 1 | W69: 1 | Y69: 1 | Z69: 1 | AA69: 1
A70: 7 | B70: 4 | C70: 3 | D70: 1 | E70: 7 | F70: 0 | G70: 26 | H70: 67.5 | I70: 0.5 | J70: 15 | K70: 12 | L70: 51 | M70: 0 | N70: 64 | O70: 2019-07-04 | Q70: 1 | S70: 1 | U70: 1 | V70: 1 | W70: 1 | X70: 1 | Y70: 1 | Z70: 1 | AA70: 1
A71: 7 | B71: 5 | C71: 1.5 | D71: 0.5 | E71: 0 | F71: 0 | G71: 75 | H71: 15.5 | I71: 0 | J71: 0.5 | K71: 0 | L71: 8.5 | M71: 8.5 | N71: 65 | O71: 2019-07-05 | Q71: 1 | S71: 1 | U71: 1 | V71: 1 | X71: 1 | Y71: 1 | Z71: 1 | AA71: 1
A72: 7 | B72: 6 | C72: 0 | D72: 0.5 | E72: 25 | F72: 0 | G72: 87 | H72: 0 | I72: 0 | J72: 0 | K72: 15.5 | L72: 0 | M72: 22.5 | N72: 66 | O72: 2019-07-06 | S72: 1 | U72: 1 | V72: 1 | Y72: 1 | Z72: 1 | AA72: 1
A73: 7 | B73: 7 | C73: 0 | D73: 74.5 | E73: 10.5 | F73: 0 | G73: 157.5 | H73: 0 | I73: 0 | J73: 15.5 | K73: 3.5 | L73: 0.5 | M73: 17 | N73: 67 | O73: 2019-07-07 | R73: 1 | S73: 1 | U73: 1 | X73: 1 | Y73: 1 | AA73: 1
A74: 7 | B74: 8 | C74: 46 | D74: 58.5 | E74: 23.5 | F74: 0 | G74: 0 | H74: 0 | I74: 3 | J74: 27.5 | K74: 0.5 | L74: 0 | M74: 0 | N74: 68 | O74: 2019-07-08 | Q74: 1 | R74: 1 | S74: 1 | U74: 1 | W74: 1 | X74: 1 | AA74: 1
A75: 7 | B75: 9 | C75: 107 | D75: 3 | E75: 0.5 | F75: 30 | G75: 0 | H75: 20.5 | I75: 24.5 | J75: 16 | K75: 1.5 | L75: 0 | M75: 0 | N75: 69 | O75: 2019-07-09 | Q75: 1 | R75: 1 | S75: 1 | T75: 1 | U75: 1 | V75: 1 | W75: 1 | X75: 1
A76: 7 | B76: 10 | C76: 0 | D76: 2 | E76: 17 | F76: 0 | G76: 0 | H76: 5.5 | I76: 0 | J76: 0 | K76: 14 | L76: 0 | M76: 0 | N76: 70 | O76: 2019-07-10 | Q76: 1 | R76: 1 | S76: 1 | T76: 1 | V76: 1 | W76: 1 | X76: 1 | Y76: 1
A77: 7 | B77: 11 | C77: 0.5 | D77: 23 | E77: 6.5 | F77: 12 | G77: 0 | H77: 0 | I77: 0 | J77: 0 | K77: 0 | L77: 0 | M77: 0 | N77: 71 | O77: 2019-07-11 | Q77: 1 | R77: 1 | S77: 1 | T77: 1 | Y77: 1
A78: 7 | B78: 12 | C78: 43.5 | D78: 0.5 | E78: 1 | F78: 5 | G78: 0 | H78: 0 | I78: 8 | J78: 0 | K78: 0 | L78: 0 | M78: 12 | N78: 72 | O78: 2019-07-12 | Q78: 1 | R78: 1 | T78: 1 | W78: 1 | AA78: 1
A79: 7 | B79: 13 | C79: 1.5 | D79: 24.5 | E79: 26 | F79: 6 | G79: 0 | H79: 1 | I79: 27 | J79: 0 | K79: 7.5 | L79: 40 | M79: 0.5 | N79: 73 | O79: 2019-07-13 | Q79: 1 | R79: 1 | S79: 1 | T79: 1 | W79: 1 | Y79: 1 | Z79: 1 | AA79: 1
A80: 7 | B80: 14 | C80: 6.5 | D80: 4 | E80: 15.5 | F80: 14 | G80: 0 | H80: 0 | I80: 10 | J80: 0 | K80: 1.5 | L80: 11.5 | M80: 0 | N80: 74 | O80: 2019-07-14 | Q80: 1 | R80: 1 | S80: 1 | T80: 1 | W80: 1 | Z80: 1
A81: 7 | B81: 15 | C81: 19 | D81: 4 | E81: 1 | F81: 0 | G81: 0 | H81: 0 | I81: 1 | J81: 0 | K81: 0 | L81: 20.5 | M81: 0 | N81: 75 | O81: 2019-07-15 | Q81: 1 | R81: 1 | S81: 1 | T81: 1 | W81: 1 | Z81: 1
A82: 7 | B82: 16 | C82: 0 | D82: 2 | E82: 0 | F82: 0 | G82: 0 | H82: 19 | I82: 0 | J82: 21.5 | K82: 0 | L82: 0 | M82: 0 | N82: 76 | O82: 2019-07-16 | Q82: 1 | R82: 1 | V82: 1 | X82: 1 | Z82: 1
A83: 7 | B83: 17 | C83: 3 | D83: 0 | E83: 0.5 | F83: 0 | G83: 0 | H83: 0 | I83: 5 | J83: 114 | K83: 0 | L83: 0 | M83: 0 | N83: 77 | O83: 2019-07-17 | Q83: 1 | V83: 1 | W83: 1 | X83: 1
A84: 7 | B84: 18 | C84: 0 | D84: 0 | E84: 0.5 | F84: 18 | G84: 0 | H84: 3.5 | I84: 0 | J84: 1 | K84: 12 | L84: 0.5 | M84: 0 | N84: 78 | O84: 2019-07-18 | T84: 1 | V84: 1 | X84: 1 | Y84: 1
A85: 7 | B85: 19 | C85: 40.5 | D85: 0 | E85: 0 | F85: 18.5 | G85: 0 | H85: 0 | I85: 0 | J85: 0.5 | K85: 24.5 | L85: 0 | M85: 0 | N85: 79 | O85: 2019-07-19 | Q85: 1 | T85: 1 | X85: 1 | Y85: 1
A86: 7 | B86: 20 | C86: 0 | D86: 0 | E86: 0 | F86: 1 | G86: 0 | H86: 0 | I86: 0 | J86: 0 | K86: 0 | L86: 0 | M86: 5.5 | N86: 80 | O86: 2019-07-20 | Q86: 1 | T86: 1 | Y86: 1 | AA86: 1
A87: 7 | B87: 21 | C87: 4 | D87: 0 | E87: 39 | F87: 0 | G87: 0 | H87: 0 | I87: 0 | J87: 0 | K87: 0 | L87: 0 | M87: 0 | N87: 81 | O87: 2019-07-21 | Q87: 1 | S87: 1
A88: 7 | B88: 22 | C88: 0.5 | D88: 0 | E88: 3.5 | F88: 8 | G88: 1 | H88: 0 | I88: 0 | J88: 10 | K88: 0 | L88: 14.5 | M88: 18 | N88: 82 | O88: 2019-07-22 | S88: 1 | T88: 1 | X88: 1 | Z88: 1 | AA88: 1
A89: 7 | B89: 23 | C89: 4 | D89: 0 | E89: 0 | F89: 3 | G89: 0 | H89: 0 | I89: 0 | J89: 20 | K89: 0 | L89: 1.5 | M89: 0 | N89: 83 | O89: 2019-07-23 | Q89: 1 | S89: 1 | T89: 1 | X89: 1 | Y89: =IF(K89>=$C$108,1,IF(K88>=$C$109,1,IF(K87>=$C$110,1,""))) ->  | Z89: 1 | AA89: 1
A90: 7 | B90: 24 | C90: 0 | D90: 0 | E90: 16 | F90: 44 | G90: 0 | H90: 3 | I90: 0 | J90: 0 | K90: 0 | L90: 2.5 | M90: 0 | N90: 84 | O90: 2019-07-24 | Q90: =IF(C90>=$C$108,1,IF(C89>=$C$109,1,IF(C88>=$C$110,1,""))) ->  | S90: 1 | T90: 1 | V90: 1 | X90: 1 | Z90: 1
A91: 7 | B91: 25 | C91: 0 | D91: 0 | E91: 38 | F91: 0 | G91: 0 | H91: 24 | I91: 0 | J91: 0 | K91: 0 | L91: 3.5 | M91: 0 | N91: 85 | O91: 2019-07-25 | S91: 1 | T91: 1 | V91: 1 | Z91: 1
A92: 7 | B92: 26 | C92: 0 | D92: 0 | E92: 4 | F92: 0 | G92: 0 | H92: 1 | I92: 13.5 | J92: 0 | K92: 0 | L92: 0 | M92: 0 | N92: 86 | O92: 2019-07-26 | S92: 1 | T92: 1 | V92: 1 | W92: 1
A93: 7 | B93: 27 | C93: 44 | D93: 0 | E93: 2 | F93: 15.5 | G93: 0 | H93: 1 | I93: 0.5 | J93: 0 | K93: 6.5 | L93: 0 | M93: 0 | N93: 87 | O93: 2019-07-27 | Q93: 1 | S93: 1 | T93: 1 | W93: 1 | Y93: 1
A94: 7 | B94: 28 | C94: 0 | D94: 0 | E94: 5.5 | F94: 0 | G94: 0 | H94: 0.5 | I94: 0 | J94: 15.5 | K94: 0 | L94: 4 | M94: 5.5 | N94: 88 | O94: 2019-07-28 | Q94: 1 | S94: 1 | T94: 1 | X94: 1 | Z94: 1 | AA94: 1
A95: 7 | B95: 29 | C95: 0 | D95: 3.5 | E95: 4.5 | F95: 0 | G95: 29.5 | H95: 0 | I95: 0 | J95: 6.5 | K95: 0 | L95: 7.5 | M95: 0 | N95: 89 | O95: 2019-07-29 | Q95: 1 | R95: 1 | S95: 1 | U95: 1 | X95: 1 | Z95: 1
A96: 7 | B96: 30 | C96: 0 | D96: 0 | E96: 6.5 | F96: 0 | G96: 0 | H96: 39 | I96: 0 | J96: 0 | K96: 0 | L96: 54.5 | M96: 0 | N96: 90 | O96: 2019-07-30 | S96: 1 | U96: 1 | V96: 1 | Z96: 1
A97: 7 | B97: 31 | C97: 0 | D97: 0 | E97: 0 | F97: 0 | G97: 0 | H97: 2 | I97: 0 | J97: 0 | K97: 0 | L97: 2.5 | M97: 0 | N97: 91 | O97: 2019-07-31 | V97: 1 | Z97: 1
A98: 8 | B98: 1 | C98: 0 | D98: 0 | E98: 0 | F98: 0 | G98: 0 | H98: 0 | I98: 0 | J98: 0 | K98: 0 | L98: 34.5 | M98: 0 | N98: 92 | O98: 2019-08-01 | V98: 1 | Z98: 1
A99: 8 | B99: 2 | C99: 0 | D99: 0 | E99: 0 | F99: 0 | G99: 0 | H99: 0 | I99: 0 | J99: 0 | K99: 0 | L99: 0 | M99: 0 | N99: 93 | O99: 2019-08-02 | Z99: 1
A100: 8 | B100: 3 | C100: 11 | D100: 27 | E100: 0 | F100: 0 | G100: 0 | H100: 0 | I100: 0 | J100: 0 | K100: 2 | L100: 0 | M100: 0 | N100: 94 | O100: 2019-08-03 | Q100: 1 | R100: 1 | Y100: 1 | Z100: 1
A101: 8 | B101: 4 | C101: 3.5 | D101: 0 | E101: 0 | F101: 0 | G101: 0 | H101: 0 | I101: 0 | J101: 0 | K101: 4.5 | L101: 0 | M101: 0 | N101: 95 | O101: 2019-08-04 | Q101: 1 | R101: 1 | Y101: 1
A102: 8 | B102: 5 | C102: 0 | D102: 0 | E102: 0 | F102: 0 | G102: 0 | H102: 0 | I102: 0 | J102: 0 | K102: 1 | L102: 19 | M102: 0.5 | N102: 96 | O102: 2019-08-05 | Z102: 1
A103: 8 | B103: 6 | C103: 0 | D103: 0 | E103: 0 | F103: 0 | G103: 0 | H103: 0 | I103: 0 | J103: 3.5 | K103: 1.5 | L103: 0 | M103: 1.5 | N103: 97 | O103: 2019-08-06 | X103: 1 | Z103: 1
B105: 土寄せ作業可能か どうかの判断条件 | E105: 判断日 | F105: =判断日 -> 2025-06-01 | I105: 判断年 | J105: =YEAR(判断日) -> 2025 | P105: 可能日の | Q105: 1 | R105: 2 | S105: 3 | T105: 4 | U105: 5 | V105: 6 | W105: 7 | X105: 8 | Y105: 9 | Z105: 10 | AA105: 11
F106: 適期始 | G106: 適期終 | J106: 5/1から数えて | P106: 10年平均 | Q106: 作業可能日 | R106: 作業可能日 | S106: 作業可能日 | T106: 作業可能日 | U106: 作業可能日 | V106: 作業可能日 | W106: 作業可能日 | X106: 作業可能日 | Y106: 作業可能日 | Z106: 作業可能日 | AA106: 作業可能日 | AB106: 近5年平均 | AC106: 近3年平均 | AD106: 最多日数 | AE106: 最少日数
B107: 作業できない降雨量mm | E107: 土寄① | F107: =土寄①始修正 -> 2025-06-21 | G107: =土寄①終修正 -> 2025-07-01 | I107: 土寄①適期始は | J107: =$F$107-DATEVALUE(TEXT(判断年,"####")&"/5/1") -> 51 | K107: 日後 | O107: 5月 | P107: =AVERAGE(Q107:Z107) -> 21.5 | Q107: =31-SUM(Q$6:Q$36) -> 23 | R107: =31-SUM(R$6:R$36) -> 19 | S107: =31-SUM(S$6:S$36) -> 21 | T107: 21 | U107: 18 | V107: 23 | W107: 19 | X107: 23 | Y107: 23 | Z107: 25 | AA107: 24 | AB107: =AVERAGE(Q107:U107) -> 20.4 | AC107: =AVERAGE(Q107:S107) -> 21 | AD107: =MAX(Q107:Z107) -> 25 | AE107: =MIN(Q107:Z107) -> 18
B108: 当日 | C108: =入力表!C26 -> 2 | D108: mm | E108: 土寄② | F108: =土寄②始修正 -> 2025-07-06 | G108: =土寄②終 -> 2025-07-16 | I108: 土寄①適期終は | J108: =$G$107-DATEVALUE(TEXT($J$105,"####")&"/5/1") -> 61 | K108: 日後 | O108: 6月 | P108: 17.1 | Q108: =30-SUM(Q$37:Q$66) -> 22 | R108: =30-SUM(R$37:R$66) -> 17 | S108: =30-SUM(S$37:S$66) -> 16 | T108: 22 | U108: 14 | V108: 18 | W108: 10 | X108: 13 | Y108: 18 | Z108: 21 | AA108: 17 | AB108: =AVERAGE(Q108:U108) -> 18.2 | AC108: =AVERAGE(Q108:S108) -> 18.33333333 | AD108: =MAX(Q108:Z108) -> 22 | AE108: =MIN(Q108:Z108) -> 10
B109: 翌日 | C109: =入力表!C27 -> 10 | D109: mm | E109: 除草剤 | F109: =茎葉始 -> 2025-07-13 | G109: =茎葉終 -> 2025-07-23 | I109: 土寄②適期始は | J109: =$F$108-DATEVALUE(TEXT($J$105,"####")&"/5/1") -> 66 | K109: 日後 | O109: 7月 | P109: 16.1 | Q109: =31-SUM(Q$67:Q$97) -> 11 | R109: =31-SUM(R$67:R$97) -> 19 | S109: =31-SUM(S$67:S$97) -> 9 | T109: 13 | U109: 23 | V109: 17 | W109: 19 | X109: 16 | Y109: 19 | Z109: 15 | AA109: 19 | AB109: 15 | AC109: 13 | AD109: 23 | AE109: 9
B110: ２日後 | C110: =入力表!C28 -> 30 | D110: mm | E110: 摘心 | F110: =摘心始 -> 7/1以降の主茎長で判断 | G110: =摘心終 -> 2025-07-21 | I110: 土寄②適期終は | J110: =$G$108-DATEVALUE(TEXT($J$105,"####")&"/5/1") -> 76 | K110: 日後 | O110: 6/25-7/24 | P110: 15.7 | Q110: =30-SUM(Q$61:Q$90) -> 13 | R110: =31-SUM(R$61:R$90) -> 17 | S110: =31-SUM(S$61:S$90) -> 10 | T110: 14 | U110: 22 | V110: 16 | W110: 16 | X110: 14 | Y110: 18 | Z110: 17 | AA110: 18 | AB110: 15.2 | AC110: 13.33333333 | AD110: 22 | AE110: 10
C111: ↑ | I111: 除草剤適期始行 | J111: =$F$109-DATEVALUE(TEXT($J$105,"####")&"/5/1") -> 73 | K111: 日後 | N111: 土寄せ①適期日数 | O111: =G107-F107+1 -> 11 | P111: 6.3 | Q111: =$O111-SUM(OFFSET(表の5月1日位置,$J$107,Q$105,$J$108-$J$107+1,1)) -> 11 | R111: =$O111-SUM(OFFSET(表の5月1日位置,$J$107,R105,$J$108-$J$107+1,1)) -> 9 | S111: 8 | T111: 5 | U111: 8 | V111: 5 | W111: 3 | X111: 2 | Y111: 5 | Z111: 7 | AA111: 7 | AB111: 8.2 | AC111: 9.333333333 | AD111: 11 | AE111: 2
C112: 入力された条件 | I112: 除草剤適期終行 | J112: =$G$109-DATEVALUE(TEXT($J$105,"####")&"/5/1") -> 83 | K112: 日後 | N112: 土寄せ②適期日数 | O112: =G108-F108+1 -> 11 | P112: 5 | Q112: =$O112-SUM(OFFSET(表の5月1日位置,$J$109,Q$105,$J$110-$J$109+1,1)) -> 11 | R112: 2 | S112: 1 | T112: 2 | U112: 4 | V112: 7 | W112: 7 | X112: 4 | Y112: 6 | Z112: 6 | AA112: 6 | AB112: 4 | AC112: 4.666666667 | AD112: 11 | AE112: 1
I113: 摘心適期始行 | J113: =$F$110-DATEVALUE(TEXT($J$105,"####")&"/5/1") ->  | K113: 日後 | N113: 除草剤適期日数 | O113: =G109-F109+1 -> 11 | P113: 6.5 | Q113: =$O113-COUNTIF(OFFSET(表の5月1日位置,$J$111,-13+Q$105,$J$112-$J$111+1,1),">=1") -> 4 | R113: 7 | S113: 6 | T113: 4 | U113: 10 | V113: 8 | W113: 7 | X113: 6 | Y113: 7 | Z113: 6 | AA113: 9 | AB113: 6.2 | AC113: 5.666666667 | AD113: 10 | AE113: 4
D114: 土寄① | E114: 土寄② | F114: 除草剤 | G114: 摘心 | I114: 摘心適期終行 | J114: =$G$110-DATEVALUE(TEXT($J$105,"####")&"/5/1") -> 81 | K114: 日後 | N114: 摘心適期日数 | O114: =G110-F110+1 ->  | Q114: =$O114-COUNTIF(OFFSET(表の5月1日位置,$J$113,-13+Q$105,$J$114-$J$113+1,1),">=1") -> 
A115: 適期作業の確率 | D115: =P111/O111 -> 0.5727272727 | E115: =P112/O112 -> 0.4545454545 | F115: =P113/O113 -> 0.5909090909 | G115: =P114/O114 ->  | O115: 7月の1mm以上降雨日数 | P115: =AVERAGE(R115:AA115) -> 12.5 | Q115: =COUNTIF(C67:C97,">=1") -> 14 | R115: 14 | S115: 20 | T115: 15 | U115: 6 | V115: 15 | W115: 9 | X115: 12 | Y115: 11 | Z115: 14 | AA115: 9 | AB115: =AVERAGE(R115:V115) -> 14 | AC115: =AVERAGE(R115:T115) -> 16.33333333 | AD115: =MAX(R115:AA115) -> 20 | AE115: =MIN(R115:AA115) -> 6
O125: 2019-02-28 | Q125: 2020-02-28 | R125: 43524 | S125: 43889
O126: 2019-03-01 | Q126: 2020-02-29 | R126: 43525 | S126: 43890
N127: 作表日付 | O127: 2019-03-02 | Q127: 2020-03-01 | R127: 43526 | S127: 43891
N128: 判断日 | Q128: 2019-05-01 | R128: 43586 | T128: 5/1の行 | U128: =ROW(表の5月1日位置) -> 6
N129: 判断年 | Q129: 2020-07-03 | R129: 44015
N130: 判断年5/1算出 | R130: 43952
N131: 5/1から土寄①適期始の行 | Q131: =DATEVALUE(TEXT(P127,"####")&"/5/1") | R131: =DATEVALUE(TEXT($J$105,"####")&"/5/1") -> 45778
N132: 5/1から土寄①適期終の行 | Q132: =$M$106-$Q$128 | R132: =$F$107-$R$131 -> 51
N133: 適期始～適期終の不可日 | Q133: =$N$106-$Q$128 | R133: =$G$107-$R$131 -> 61
R134: =SUM(OFFSET($O$6,$R$132,4,58-53+1,1)) -> 3
N136: 土寄①適期始の行
N137: 土寄①適期終の行 | Q137: =ROW(表の5月1日位置)+($M$106-$Q$128) | R137: =ROW(表の5月1日位置)+($F$107-$R$131) -> 57 | S137: セル位置 | T137: =ADDRESS(R137,17) -> $Q$57 | U137: =6+($F$107-$R$131) -> 57 | V137: =T137 -> $Q$57
N138: 土寄①適期内の不可日数 | Q138: =ROW(表の5月1日位置)+($M$107-$Q$128) | R138: =ROW(表の5月1日位置)+($G$107-$R$131) -> 67 | T138: =ADDRESS(R138,17) -> $Q$67
N139: 土寄①適期終の行 | R139: =SUM(T137:T138) -> 0
O141: 上の枠内不要
